Body Name,Body,Service Label,Transaction Number,Date,Expenditure Category,Supplier Name,Supplier Classification,Amount
Lancs Fire & Rescue Service,E6123,Fire,105326987,17-Sep-19,Course Providers,QA LTD,ICT HARDWARE,"1,901.37"
Lancs Fire & Rescue Service,E6123,Fire,105327024,17-Sep-19,Course Providers,QA LTD,ICT HARDWARE,"-1,901.37"
Lancs Fire & Rescue Service,E6123,Fire,105690223,06-Dec-19,Course Providers,SERCO LTD,ICT SOFTWARE,-75
Lancs Fire & Rescue Service,E6123,Fire,105690223,06-Dec-19,Course Providers,SERCO LTD,ICT SOFTWARE,-880
Lancs Fire & Rescue Service,E6123,Fire,105763469,30-Jul-19,Protective Clothing,THE OUTDOORS CO,FRS SPECIALIST EQUIPMENT,204.08
Lancs Fire & Rescue Service,E6123,Fire,105763469,30-Jul-19,Protective Clothing,THE OUTDOORS CO,FRS SPECIALIST EQUIPMENT,102.04
Lancs Fire & Rescue Service,E6123,Fire,105763469,30-Jul-19,Protective Clothing,THE OUTDOORS CO,FRS SPECIALIST EQUIPMENT,306.12
Lancs Fire & Rescue Service,E6123,Fire,105763469,30-Jul-19,Protective Clothing,THE OUTDOORS CO,FRS SPECIALIST EQUIPMENT,51.94
Lancs Fire & Rescue Service,E6123,Fire,105763469,30-Jul-19,Protective Clothing,THE OUTDOORS CO,FRS SPECIALIST EQUIPMENT,207.76
Lancs Fire & Rescue Service,E6123,Fire,105763469,30-Jul-19,Protective Clothing,THE OUTDOORS CO,FRS SPECIALIST EQUIPMENT,51.94
Lancs Fire & Rescue Service,E6123,Fire,105763469,30-Jul-19,Protective Clothing,THE OUTDOORS CO,FRS SPECIALIST EQUIPMENT,51.94
Lancs Fire & Rescue Service,E6123,Fire,105763469,30-Jul-19,Protective Clothing,THE OUTDOORS CO,FRS SPECIALIST EQUIPMENT,"1,288.08"
Lancs Fire & Rescue Service,E6123,Fire,105763471,26-Jul-19,Protective Clothing,THE OUTDOORS CO,FRS SPECIALIST EQUIPMENT,163.44
Lancs Fire & Rescue Service,E6123,Fire,105763471,26-Jul-19,Protective Clothing,THE OUTDOORS CO,FRS SPECIALIST EQUIPMENT,644.04
Lancs Fire & Rescue Service,E6123,Fire,105763471,26-Jul-19,Protective Clothing,THE OUTDOORS CO,FRS SPECIALIST EQUIPMENT,477.84
Lancs Fire & Rescue Service,E6123,Fire,105763471,26-Jul-19,Protective Clothing,THE OUTDOORS CO,FRS SPECIALIST EQUIPMENT,212
Lancs Fire & Rescue Service,E6123,Fire,105763471,26-Jul-19,Protective Clothing,THE OUTDOORS CO,FRS SPECIALIST EQUIPMENT,171.42
Lancs Fire & Rescue Service,E6123,Fire,105763471,26-Jul-19,Protective Clothing,THE OUTDOORS CO,FRS SPECIALIST EQUIPMENT,570
Lancs Fire & Rescue Service,E6123,Fire,105763471,26-Jul-19,Protective Clothing,THE OUTDOORS CO,FRS SPECIALIST EQUIPMENT,58.99
Lancs Fire & Rescue Service,E6123,Fire,105763471,26-Jul-19,Protective Clothing,THE OUTDOORS CO,FRS SPECIALIST EQUIPMENT,306.12
Lancs Fire & Rescue Service,E6123,Fire,105763471,26-Jul-19,Protective Clothing,THE OUTDOORS CO,FRS SPECIALIST EQUIPMENT,9.7
Lancs Fire & Rescue Service,E6123,Fire,105763471,26-Jul-19,Protective Clothing,THE OUTDOORS CO,FRS SPECIALIST EQUIPMENT,103.88
Lancs Fire & Rescue Service,E6123,Fire,105763471,26-Jul-19,Protective Clothing,THE OUTDOORS CO,FRS SPECIALIST EQUIPMENT,311.64
Lancs Fire & Rescue Service,E6123,Fire,105781978,30-Jul-19,Course Providers,REDACTED,EDUCATION SERVICES,-66.8
Lancs Fire & Rescue Service,E6123,Fire,105781978,30-Jul-19,Course Providers,REDACTED,EDUCATION SERVICES,-650
Lancs Fire & Rescue Service,E6123,Fire,105788574,09-Jul-19,Rents - Premises,PRESTON CITY COUNCIL,LOCAL GOVERNMENT,912.5
Lancs Fire & Rescue Service,E6123,Fire,105790487,12-Jul-19,Gas,CORONA ENERGY,UTILITIES GAS,935.46
Lancs Fire & Rescue Service,E6123,Fire,105790491,12-Jul-19,Gas,CORONA ENERGY,UTILITIES GAS,"1,928.37"
Lancs Fire & Rescue Service,E6123,Fire,105790494,12-Jul-19,Gas,CORONA ENERGY,UTILITIES GAS,"1,172.53"
Lancs Fire & Rescue Service,E6123,Fire,105790512,12-Jul-19,Gas,CORONA ENERGY,UTILITIES GAS,464.14
Lancs Fire & Rescue Service,E6123,Fire,105790523,05-Jul-19,Rents - Premises,WEST LANCASHIRE BOROUGH COUNCIL,LOCAL GOVERNMENT,"1,010.50"
Lancs Fire & Rescue Service,E6123,Fire,105790527,12-Jul-19,Gas,CORONA ENERGY,UTILITIES GAS,441.37
Lancs Fire & Rescue Service,E6123,Fire,105790530,12-Jul-19,Gas,CORONA ENERGY,UTILITIES GAS,878.61
Lancs Fire & Rescue Service,E6123,Fire,105790547,16-Jul-19,Electricity,NPOWER,UTILITIES ELECTRICITY,"3,981.14"
Lancs Fire & Rescue Service,E6123,Fire,105790550,16-Jul-19,Electricity,NPOWER,UTILITIES ELECTRICITY,"4,187.97"
Lancs Fire & Rescue Service,E6123,Fire,105790552,16-Jul-19,Electricity,NPOWER,UTILITIES ELECTRICITY,"4,483.67"
Lancs Fire & Rescue Service,E6123,Fire,105790556,16-Jul-19,Electricity,NPOWER,UTILITIES ELECTRICITY,"4,127.63"
Lancs Fire & Rescue Service,E6123,Fire,105790559,16-Jul-19,Electricity,NPOWER,UTILITIES ELECTRICITY,"1,057.90"
Lancs Fire & Rescue Service,E6123,Fire,105790560,16-Jul-19,Electricity,NPOWER,UTILITIES ELECTRICITY,"1,104.64"
Lancs Fire & Rescue Service,E6123,Fire,105790562,16-Jul-19,Electricity,NPOWER,UTILITIES ELECTRICITY,"1,468.55"
Lancs Fire & Rescue Service,E6123,Fire,105790564,16-Jul-19,Electricity,NPOWER,UTILITIES ELECTRICITY,"1,382.43"
Lancs Fire & Rescue Service,E6123,Fire,105792277,02-Jul-19,Electricity,NPOWER,UTILITIES ELECTRICITY,440.79
Lancs Fire & Rescue Service,E6123,Fire,105792281,02-Jul-19,Electricity,NPOWER,UTILITIES ELECTRICITY,892.35
Lancs Fire & Rescue Service,E6123,Fire,105792285,02-Jul-19,Electricity,NPOWER,UTILITIES ELECTRICITY,635.99
Lancs Fire & Rescue Service,E6123,Fire,105792286,02-Jul-19,Electricity,NPOWER,UTILITIES ELECTRICITY,658.87
Lancs Fire & Rescue Service,E6123,Fire,105792292,02-Jul-19,Electricity,NPOWER,UTILITIES ELECTRICITY,594.05
Lancs Fire & Rescue Service,E6123,Fire,105792300,02-Jul-19,Electricity,NPOWER,UTILITIES ELECTRICITY,523.11
Lancs Fire & Rescue Service,E6123,Fire,105792301,02-Jul-19,Electricity,NPOWER,UTILITIES ELECTRICITY,432.19
Lancs Fire & Rescue Service,E6123,Fire,105792302,02-Jul-19,Electricity,NPOWER,UTILITIES ELECTRICITY,510.28
Lancs Fire & Rescue Service,E6123,Fire,105792305,12-Jul-19,Electricity,NPOWER,UTILITIES ELECTRICITY,639.97
Lancs Fire & Rescue Service,E6123,Fire,105792306,12-Jul-19,Electricity,NPOWER,UTILITIES ELECTRICITY,621.92
Lancs Fire & Rescue Service,E6123,Fire,105792309,12-Jul-19,Electricity,NPOWER,UTILITIES ELECTRICITY,554.38
Lancs Fire & Rescue Service,E6123,Fire,105792323,12-Jul-19,Electricity,NPOWER,UTILITIES ELECTRICITY,498.16
Lancs Fire & Rescue Service,E6123,Fire,105792339,12-Jul-19,Course Providers,DATA DISCOVERY SOLUTIONS LTD T/A ACTIVE NAVIGATION,ICT SOFTWARE,"2,400.00"
Lancs Fire & Rescue Service,E6123,Fire,105792348,12-Jul-19,Programmed Work,NORTH WEST CATERING ENGINEERS,CATERING SERVICES,"6,618.51"
Lancs Fire & Rescue Service,E6123,Fire,105792361,12-Jul-19,Course Providers,SKILLS FOR JUSTICE ENTERPRISES LTD (PART OF WORKFORCE DEVELOPMENT TRUST LTD),EDUCATION SERVICES,390
Lancs Fire & Rescue Service,E6123,Fire,105792361,12-Jul-19,Course Providers,SKILLS FOR JUSTICE ENTERPRISES LTD (PART OF WORKFORCE DEVELOPMENT TRUST LTD),EDUCATION SERVICES,510
Lancs Fire & Rescue Service,E6123,Fire,105792361,12-Jul-19,Course Providers,SKILLS FOR JUSTICE ENTERPRISES LTD (PART OF WORKFORCE DEVELOPMENT TRUST LTD),EDUCATION SERVICES,270
Lancs Fire & Rescue Service,E6123,Fire,105792361,12-Jul-19,Course Providers,SKILLS FOR JUSTICE ENTERPRISES LTD (PART OF WORKFORCE DEVELOPMENT TRUST LTD),EDUCATION SERVICES,420
Lancs Fire & Rescue Service,E6123,Fire,105792361,12-Jul-19,Course Providers,SKILLS FOR JUSTICE ENTERPRISES LTD (PART OF WORKFORCE DEVELOPMENT TRUST LTD),EDUCATION SERVICES,420
Lancs Fire & Rescue Service,E6123,Fire,105792361,12-Jul-19,Course Providers,SKILLS FOR JUSTICE ENTERPRISES LTD (PART OF WORKFORCE DEVELOPMENT TRUST LTD),EDUCATION SERVICES,540
Lancs Fire & Rescue Service,E6123,Fire,105792361,12-Jul-19,Course Providers,SKILLS FOR JUSTICE ENTERPRISES LTD (PART OF WORKFORCE DEVELOPMENT TRUST LTD),EDUCATION SERVICES,300
Lancs Fire & Rescue Service,E6123,Fire,105792361,12-Jul-19,Course Providers,SKILLS FOR JUSTICE ENTERPRISES LTD (PART OF WORKFORCE DEVELOPMENT TRUST LTD),EDUCATION SERVICES,300
Lancs Fire & Rescue Service,E6123,Fire,105792361,12-Jul-19,Course Providers,SKILLS FOR JUSTICE ENTERPRISES LTD (PART OF WORKFORCE DEVELOPMENT TRUST LTD),EDUCATION SERVICES,180
Lancs Fire & Rescue Service,E6123,Fire,105792374,09-Jul-19,Programmed Work,A & D DRAIN SERVICES LTD,BUILDING MATS&SVCS PLUMB,"1,248.00"
Lancs Fire & Rescue Service,E6123,Fire,105792377,12-Jul-19,Electricity,NPOWER,UTILITIES ELECTRICITY,484.17
Lancs Fire & Rescue Service,E6123,Fire,105792379,12-Jul-19,Electricity,NPOWER,UTILITIES ELECTRICITY,869.67
Lancs Fire & Rescue Service,E6123,Fire,105792396,12-Jul-19,Electricity,NPOWER,UTILITIES ELECTRICITY,613.46
Lancs Fire & Rescue Service,E6123,Fire,105792402,09-Jul-19,Course Providers,GREATER MANCHESTER COMBINED AUTHORITY,LOCAL GOVERNMENT,"3,072.00"
Lancs Fire & Rescue Service,E6123,Fire,105798673,02-Jul-19,Programmed Work,A & D DRAIN SERVICES LTD,BUILDING MATS&SVCS PLUMB,"1,646.00"
Lancs Fire & Rescue Service,E6123,Fire,105798675,02-Jul-19,Programmed Work,A & D DRAIN SERVICES LTD,BUILDING MATS&SVCS PLUMB,848
Lancs Fire & Rescue Service,E6123,Fire,105799547,02-Jul-19,Programmed Work,PDP PROPERTY SERVICES LTD,BUILDING MATS&SVCS PAINT,780
Lancs Fire & Rescue Service,E6123,Fire,105799548,02-Jul-19,Professional Services,DEVELOPMENT DESIGN ASSOCIATES CONSULTING ENGINEERS,CONSULTANCY CONSTRUCTION,"3,750.00"
Lancs Fire & Rescue Service,E6123,Fire,105799551,02-Jul-19,Programmed Work,P.G.B ROOFING,BUILDING MATS&SVCS ROOF,"1,132.21"
Lancs Fire & Rescue Service,E6123,Fire,105799553,02-Jul-19,Repairs & Maintenance General,R H WELLS ELECTRICAL LTD,BUILDING MATS&SVCS ELEC,882.92
Lancs Fire & Rescue Service,E6123,Fire,105802849,02-Jul-19,Fire Mobs Paging Equipment,PAGEONE COMMUNICATIONS LTD,ICT CALL SYSTEMS,"1,823.12"
Lancs Fire & Rescue Service,E6123,Fire,105802853,02-Jul-19,Professional Services,MERSEYSIDE FIRE & RESCUE AUTHORITY,LOCAL GOVERNMENT,"1,667.33"
Lancs Fire & Rescue Service,E6123,Fire,105802862,02-Jul-19,Professional Services,REDACTED,CONSULTANCY MANAGEMENT,"1,262.50"
Lancs Fire & Rescue Service,E6123,Fire,105802897,02-Jul-19,Computer Hardware,INSIGHT DIRECT (UK) LTD,ICT SOFTWARE,550
Lancs Fire & Rescue Service,E6123,Fire,105802920,05-Jul-19,Consumable Materials,PILKINGTON OILS,UTILITIES HEATING OIL,"1,560.00"
Lancs Fire & Rescue Service,E6123,Fire,105802946,02-Jul-19,Protective Clothing,BALLYCLARE LHD LTD,CLOTHING PERSONAL,"4,015.44"
Lancs Fire & Rescue Service,E6123,Fire,105802946,02-Jul-19,Protective Clothing,BALLYCLARE LHD LTD,CLOTHING PERSONAL,"1,338.48"
Lancs Fire & Rescue Service,E6123,Fire,105802946,02-Jul-19,Protective Clothing,BALLYCLARE LHD LTD,CLOTHING PERSONAL,"4,015.44"
Lancs Fire & Rescue Service,E6123,Fire,105802965,02-Jul-19,Agency Staff,OFFICE ANGELS LIMITED,HR TEMPOARY&AGENCY STAFF,602.84
Lancs Fire & Rescue Service,E6123,Fire,105802966,02-Jul-19,Agency Staff,OFFICE ANGELS LIMITED,HR TEMPOARY&AGENCY STAFF,512.43
Lancs Fire & Rescue Service,E6123,Fire,105802967,02-Jul-19,Fire - Training Props,ABBY WELDING LTD,WORKS BUILDINGS,487.75
Lancs Fire & Rescue Service,E6123,Fire,105802968,02-Jul-19,Agency Staff,ITECCO LTD,HR TEMPOARY&AGENCY STAFF,"1,200.00"
Lancs Fire & Rescue Service,E6123,Fire,105802970,02-Jul-19,Exchange Phones,MAINTEL EUROPE LTD,ICT TELECOMMS FIXED,"2,268.68"
Lancs Fire & Rescue Service,E6123,Fire,105802972,02-Jul-19,Mobile Phone Costs,EVERYTHING EVERYWHERE LTD,TELEPHONE SERVICES,"1,728.56"
Lancs Fire & Rescue Service,E6123,Fire,105802977,02-Jul-19,Programmed Work,DLP SERVICES NORTHERN LTD,BUILDING MATS&SVCS GEN,"2,266.30"
Lancs Fire & Rescue Service,E6123,Fire,105802983,02-Jul-19,Repairs & Maintenance General,DLP SERVICES NORTHERN LTD,BUILDING MATS&SVCS GEN,469.72
Lancs Fire & Rescue Service,E6123,Fire,105802984,02-Jul-19,Repairs & Maintenance General,DLP SERVICES NORTHERN LTD,BUILDING MATS&SVCS GEN,"2,341.04"
Lancs Fire & Rescue Service,E6123,Fire,105802987,02-Jul-19,Repairs & Maintenance General,DLP SERVICES NORTHERN LTD,BUILDING MATS&SVCS GEN,849.7
Lancs Fire & Rescue Service,E6123,Fire,105802988,02-Jul-19,Repairs & Maintenance General,THE JAMES MERCER GROUP LIMITED,BUILDING MATS&SVCS GEN,"2,026.35"
Lancs Fire & Rescue Service,E6123,Fire,105802991,02-Jul-19,Professional Services,FORBES SOLICITORS,LEGAL SVCS GENERAL,"1,758.00"
Lancs Fire & Rescue Service,E6123,Fire,105802995,02-Jul-19,Professional Services,IKG CONSULTING LIMITED,CONSULTANCY BUSINESS,"2,020.00"
Lancs Fire & Rescue Service,E6123,Fire,105802997,09-Jul-19,Fire - Operational Equipment,KRUUSE UK LTD,MEDICAL EQUIPMENT,977.04
Lancs Fire & Rescue Service,E6123,Fire,105802998,02-Jul-19,Fire � Op equip R&D,LYON EQUIPMENT LTD,CLOTHING PROTECTIVE,"4,804.95"
Lancs Fire & Rescue Service,E6123,Fire,105802998,02-Jul-19,Fire � Op equip R&D,LYON EQUIPMENT LTD,CLOTHING PROTECTIVE,-76.88
Lancs Fire & Rescue Service,E6123,Fire,105802999,02-Jul-19,Fire � Op equip R&D,LYON EQUIPMENT LTD,CLOTHING PROTECTIVE,-76.88
Lancs Fire & Rescue Service,E6123,Fire,105802999,02-Jul-19,Fire � Op equip R&D,LYON EQUIPMENT LTD,CLOTHING PROTECTIVE,"4,254.78"
Lancs Fire & Rescue Service,E6123,Fire,105803003,02-Jul-19,Medical Fees,DRS.DIRECT,MEDICAL SERVICES,900
Lancs Fire & Rescue Service,E6123,Fire,105811574,05-Jul-19,Programmed Work,A & D DRAIN SERVICES LTD,BUILDING MATS&SVCS PLUMB,448
Lancs Fire & Rescue Service,E6123,Fire,105811579,02-Jul-19,Programmed Work,OFFICE FURNITURE ONLINE,FURNITURE OFFICE,888
Lancs Fire & Rescue Service,E6123,Fire,105811588,12-Jul-19,Service Contracts,OPEN BUILDING SYSTEMS LTD,FACIL&MGMT ENERGYEFFIC,"1,480.00"
Lancs Fire & Rescue Service,E6123,Fire,105811589,12-Jul-19,Service Contracts,OPEN BUILDING SYSTEMS LTD,FACIL&MGMT ENERGYEFFIC,553
Lancs Fire & Rescue Service,E6123,Fire,105811590,12-Jul-19,Service Contracts,OPEN BUILDING SYSTEMS LTD,FACIL&MGMT ENERGYEFFIC,930
Lancs Fire & Rescue Service,E6123,Fire,105811591,12-Jul-19,Service Contracts,OPEN BUILDING SYSTEMS LTD,FACIL&MGMT ENERGYEFFIC,"1,680.00"
Lancs Fire & Rescue Service,E6123,Fire,105811592,12-Jul-19,Service Contracts,OPEN BUILDING SYSTEMS LTD,FACIL&MGMT ENERGYEFFIC,"1,452.00"
Lancs Fire & Rescue Service,E6123,Fire,105811593,12-Jul-19,Service Contracts,OPEN BUILDING SYSTEMS LTD,FACIL&MGMT ENERGYEFFIC,690
Lancs Fire & Rescue Service,E6123,Fire,105811594,12-Jul-19,Service Contracts,OPEN BUILDING SYSTEMS LTD,FACIL&MGMT ENERGYEFFIC,830
Lancs Fire & Rescue Service,E6123,Fire,105812208,05-Jul-19,Computer Software,ROCKET SOFTWARE UK LTD,ICT SOFTWARE,"6,943.31"
Lancs Fire & Rescue Service,E6123,Fire,105812214,05-Jul-19,Programmed Work,R R KIPPAX & SON,ENVIRON WASTE MGMT,840
Lancs Fire & Rescue Service,E6123,Fire,105812215,05-Jul-19,Programmed Work,MONK OF COLNE LTD,WORKS ROADS,"2,283.05"
Lancs Fire & Rescue Service,E6123,Fire,105812216,05-Jul-19,Repairs & Maintenance General,SANTS FABRICATIONS LTD,NOT CLASSIFIED,"1,929.00"
Lancs Fire & Rescue Service,E6123,Fire,105812219,05-Jul-19,Ext� Adapt� Improv� Etc,JOHN TURNER CONSTRUCTION GROUP LTD,WORKS BUILDINGS,"46,315.57"
Lancs Fire & Rescue Service,E6123,Fire,105812220,05-Jul-19,Programmed Work,DLP SERVICES NORTHERN LTD,BUILDING MATS&SVCS GEN,452.91
Lancs Fire & Rescue Service,E6123,Fire,105812221,05-Jul-19,Repairs & Maintenance General,THE JAMES MERCER GROUP LIMITED,BUILDING MATS&SVCS GEN,582.25
Lancs Fire & Rescue Service,E6123,Fire,105812222,05-Jul-19,Car Contract Hire Recharge,LEX AUTOLEASE LTD,TRANSPORT FLEET MGMT,"5,500.25"
Lancs Fire & Rescue Service,E6123,Fire,105812228,05-Jul-19,Course Providers,BLACKBURN COLLEGE,EDUCATION SERVICES,990
Lancs Fire & Rescue Service,E6123,Fire,105812229,05-Jul-19,Consultant Fees,PUBLIC HEALTH ENGLAND,HEALTH&SAFETY SERVICES,"1,440.00"
Lancs Fire & Rescue Service,E6123,Fire,105812236,05-Jul-19,Fire - Hydrants,APEX SIGNS & GRAPHICS LTD,HEALTH&SAFETY PRODUCTS,321.5
Lancs Fire & Rescue Service,E6123,Fire,105812236,05-Jul-19,Fire - Hydrants,APEX SIGNS & GRAPHICS LTD,HEALTH&SAFETY PRODUCTS,245.8
Lancs Fire & Rescue Service,E6123,Fire,105812236,05-Jul-19,Fire - Operational Equipment,APEX SIGNS & GRAPHICS LTD,HEALTH&SAFETY PRODUCTS,313.8
Lancs Fire & Rescue Service,E6123,Fire,105813893,05-Jul-19,Stocks And Stores - General,DRAEGER SAFETY UK LTD,HEALTH&SAFETY PRODUCTS,652.32
Lancs Fire & Rescue Service,E6123,Fire,105813896,05-Jul-19,Stocks And Stores - General,RELIANCE MEDICAL LTD,MEDICAL CONSUMABLES,661.44
Lancs Fire & Rescue Service,E6123,Fire,105813898,05-Jul-19,Stocks And Stores - General,NPS SHOES LTD,CLOTHING PERSONAL,451.5
Lancs Fire & Rescue Service,E6123,Fire,105813900,05-Jul-19,Postage & Carriage,WELDBANK PLASTIC CO LTD,BUILDING MATS&SVCS GEN,0.14
Lancs Fire & Rescue Service,E6123,Fire,105813900,05-Jul-19,Stocks And Stores - General,WELDBANK PLASTIC CO LTD,BUILDING MATS&SVCS GEN,665.38
Lancs Fire & Rescue Service,E6123,Fire,105813901,05-Jul-19,Stocks And Stores - General,BHW PRINT GROUP LTD T/A HASLAM PRINTERS,MEDIA AND MARKETING,"1,632.00"
Lancs Fire & Rescue Service,E6123,Fire,105813902,05-Jul-19,Stocks And Stores - General,WM SUGDEN & SONS LTD,CLOTHING PERSONAL,568.96
Lancs Fire & Rescue Service,E6123,Fire,105813903,05-Jul-19,Stocks And Stores - General,CPC (COMBINED PRECISION COMPONENTS) PLC,BUILDING MATS&SVCS ELEC,469.6
Lancs Fire & Rescue Service,E6123,Fire,105813904,05-Jul-19,Stocks And Stores - General,THOMAS KNEALE & CO LIMITED,CATERING EQPMT&UTENSILS,993.9
Lancs Fire & Rescue Service,E6123,Fire,105813905,05-Jul-19,Stocks And Stores - General,THOMAS KNEALE & CO LIMITED,CATERING EQPMT&UTENSILS,443.9
Lancs Fire & Rescue Service,E6123,Fire,105816597,05-Jul-19,Car Allowances,LEX AUTOLEASE LTD,TRANSPORT FLEET MGMT,-577.09
Lancs Fire & Rescue Service,E6123,Fire,105816606,05-Jul-19,Vehicle & Plant R&M (External),JAMES HART (CHORLEY) LTD,TRANSPORT MAINTENANCE,"2,313.86"
Lancs Fire & Rescue Service,E6123,Fire,105816608,05-Jul-19,Vehicle & Plant R&M (External),COMMERCIAL CONTRACT ENGINEERS LTD,VEHICLES MAINTENANCE,"1,370.50"
Lancs Fire & Rescue Service,E6123,Fire,105818558,05-Jul-19,Water,WATER PLUS LTD,UTILITIES WATER,"1,088.11"
Lancs Fire & Rescue Service,E6123,Fire,105818564,09-Jul-19,Vehicle & Plant R&M (External),OTRA LTD,VEHICLES MAINTENANCE,475
Lancs Fire & Rescue Service,E6123,Fire,105818565,09-Jul-19,Vehicle & Plant R&M (External),OTRA LTD,VEHICLES MAINTENANCE,"1,096.00"
Lancs Fire & Rescue Service,E6123,Fire,105818729,09-Jul-19,Agency Staff,OFFICE ANGELS LIMITED,HR TEMPOARY&AGENCY STAFF,516.85
Lancs Fire & Rescue Service,E6123,Fire,105818747,23-Jul-19,Catering Service (External),BUNZL CATERING SUPPLIES,CATERING EQPMT&UTENSILS,25.16
Lancs Fire & Rescue Service,E6123,Fire,105818747,23-Jul-19,Catering Service (External),BUNZL CATERING SUPPLIES,CATERING EQPMT&UTENSILS,19.19
Lancs Fire & Rescue Service,E6123,Fire,105818747,23-Jul-19,Catering Service (External),BUNZL CATERING SUPPLIES,CATERING EQPMT&UTENSILS,134.55
Lancs Fire & Rescue Service,E6123,Fire,105818747,23-Jul-19,Catering Service (External),BUNZL CATERING SUPPLIES,CATERING EQPMT&UTENSILS,46.26
Lancs Fire & Rescue Service,E6123,Fire,105818747,23-Jul-19,Catering Service (External),BUNZL CATERING SUPPLIES,CATERING EQPMT&UTENSILS,17.42
Lancs Fire & Rescue Service,E6123,Fire,105818747,23-Jul-19,Catering Service (External),BUNZL CATERING SUPPLIES,CATERING EQPMT&UTENSILS,39.62
Lancs Fire & Rescue Service,E6123,Fire,105818747,23-Jul-19,Catering Service (External),BUNZL CATERING SUPPLIES,CATERING EQPMT&UTENSILS,28.1
Lancs Fire & Rescue Service,E6123,Fire,105818747,23-Jul-19,Catering Service (External),BUNZL CATERING SUPPLIES,CATERING EQPMT&UTENSILS,31.02
Lancs Fire & Rescue Service,E6123,Fire,105818747,23-Jul-19,Catering Service (External),BUNZL CATERING SUPPLIES,CATERING EQPMT&UTENSILS,26.48
Lancs Fire & Rescue Service,E6123,Fire,105818747,23-Jul-19,Catering Service (External),BUNZL CATERING SUPPLIES,CATERING EQPMT&UTENSILS,51
Lancs Fire & Rescue Service,E6123,Fire,105818747,23-Jul-19,Catering Service (External),BUNZL CATERING SUPPLIES,CATERING EQPMT&UTENSILS,207.92
Lancs Fire & Rescue Service,E6123,Fire,105818747,23-Jul-19,Catering Service (External),BUNZL CATERING SUPPLIES,CATERING EQPMT&UTENSILS,37.6
Lancs Fire & Rescue Service,E6123,Fire,105818747,23-Jul-19,Catering Service (External),BUNZL CATERING SUPPLIES,CATERING EQPMT&UTENSILS,51
Lancs Fire & Rescue Service,E6123,Fire,105818747,23-Jul-19,Catering Service (External),BUNZL CATERING SUPPLIES,CATERING EQPMT&UTENSILS,23.69
Lancs Fire & Rescue Service,E6123,Fire,105818747,23-Jul-19,Catering Service (External),BUNZL CATERING SUPPLIES,CATERING EQPMT&UTENSILS,8.64
Lancs Fire & Rescue Service,E6123,Fire,105818751,09-Jul-19,Pensions Services SLA,LANCASHIRE COUNTY COUNCIL,LOCAL GOVERNMENT,733
Lancs Fire & Rescue Service,E6123,Fire,105818755,19-Jul-19,Course Providers,THE STATIONARY OFFICE,UNCLASSIFIED NON-TRADE,500
Lancs Fire & Rescue Service,E6123,Fire,105818757,09-Jul-19,Medical Fees,ORGANISATIONAL HEALTHCARE LTD,HEALTH&SAFETY SERVICES,"6,300.00"
Lancs Fire & Rescue Service,E6123,Fire,105819568,09-Jul-19,Vehicle & Plant R&M (External),OTRA LTD,VEHICLES MAINTENANCE,671.98
Lancs Fire & Rescue Service,E6123,Fire,105819572,09-Jul-19,Vehicle & Plant R&M (External),OTRA LTD,VEHICLES MAINTENANCE,"1,096.00"
Lancs Fire & Rescue Service,E6123,Fire,105821833,09-Jul-19,Programmed Work,AC ELECTRICAL SUPPLIES LTD,BUILDING MATS&SVCS ELEC,"4,250.00"
Lancs Fire & Rescue Service,E6123,Fire,105821837,09-Jul-19,Programmed Work,AC ELECTRICAL SUPPLIES LTD,BUILDING MATS&SVCS ELEC,"2,789.00"
Lancs Fire & Rescue Service,E6123,Fire,105821841,09-Jul-19,Programmed Work,AC ELECTRICAL SUPPLIES LTD,BUILDING MATS&SVCS ELEC,"2,645.00"
Lancs Fire & Rescue Service,E6123,Fire,105821843,09-Jul-19,Programmed Work,AC ELECTRICAL SUPPLIES LTD,BUILDING MATS&SVCS ELEC,"1,777.77"
Lancs Fire & Rescue Service,E6123,Fire,105821844,09-Jul-19,Programmed Work,AC ELECTRICAL SUPPLIES LTD,BUILDING MATS&SVCS ELEC,"4,650.00"
Lancs Fire & Rescue Service,E6123,Fire,105821847,09-Jul-19,Programmed Work,MONK OF COLNE LTD,WORKS ROADS,"2,229.10"
Lancs Fire & Rescue Service,E6123,Fire,105821873,09-Jul-19,Other Expenses,NORTH WEST FIRE CONTROL LIMITED,PUBLIC SECTOR,"297,720.75"
Lancs Fire & Rescue Service,E6123,Fire,105821877,09-Jul-19,Computer Data Network,TIS LIMITED,TELEPHONE SERVICES,692.71
Lancs Fire & Rescue Service,E6123,Fire,105821881,09-Jul-19,Course Providers,LANCASHIRE MIND LTD,SOCIAL COMM CARE ADULTS,860
Lancs Fire & Rescue Service,E6123,Fire,105821882,09-Jul-19,Course Providers,LANCASHIRE MIND LTD,SOCIAL COMM CARE ADULTS,"4,300.00"
Lancs Fire & Rescue Service,E6123,Fire,105821885,09-Jul-19,Protective Clothing,BALLYCLARE LHD LTD,CLOTHING PERSONAL,"9,771.84"
Lancs Fire & Rescue Service,E6123,Fire,105821889,09-Jul-19,Premises Materials & Equipment,BID GROUP LTD,BUILDING MATS&SVCS GEN,"14,221.00"
Lancs Fire & Rescue Service,E6123,Fire,105821891,09-Jul-19,Premises Materials & Equipment,BID GROUP LTD,BUILDING MATS&SVCS GEN,"-1,000.00"
Lancs Fire & Rescue Service,E6123,Fire,105821909,09-Jul-19,Consumable Materials,C & W BERRY LTD,BUILDING MATS&SVCS GEN,578.5
Lancs Fire & Rescue Service,E6123,Fire,105824295,12-Jul-19,Programmed Work,A & D DRAIN SERVICES LTD,BUILDING MATS&SVCS PLUMB,596
Lancs Fire & Rescue Service,E6123,Fire,105828897,30-Jul-19,Diesel,ALLSTAR BUSINESS SOLUTIONS LTD,VEHICLES FUEL,"17,995.62"
Lancs Fire & Rescue Service,E6123,Fire,105828897,30-Jul-19,Petrol,ALLSTAR BUSINESS SOLUTIONS LTD,VEHICLES FUEL,848.17
Lancs Fire & Rescue Service,E6123,Fire,105828898,12-Jul-19,Professional Services,AMCAT (UK) LTD,HR PROFESSIONAL&ADVISORY,"2,504.75"
Lancs Fire & Rescue Service,E6123,Fire,105828898,12-Jul-19,Professional Services,AMCAT (UK) LTD,HR PROFESSIONAL&ADVISORY,2.26
Lancs Fire & Rescue Service,E6123,Fire,105828899,26-Jul-19,Professional Services,DEVELOPMENT DESIGN ASSOCIATES CONSULTING ENGINEERS,CONSULTANCY CONSTRUCTION,"1,536.00"
Lancs Fire & Rescue Service,E6123,Fire,105828900,12-Jul-19,Professional Services,EQUILIBRIUM ARCHITECTS LTD,CONSULTANCY CONSTRUCTION,"2,985.00"
Lancs Fire & Rescue Service,E6123,Fire,105828909,12-Jul-19,Repairs & Maintenance General,BID GROUP LTD,BUILDING MATS&SVCS GEN,548
Lancs Fire & Rescue Service,E6123,Fire,105828912,12-Jul-19,Repairs & Maintenance General,BID GROUP LTD,BUILDING MATS&SVCS GEN,563
Lancs Fire & Rescue Service,E6123,Fire,105828913,12-Jul-19,Professional Services,IKG CONSULTING LIMITED,CONSULTANCY BUSINESS,"1,300.00"
Lancs Fire & Rescue Service,E6123,Fire,105828917,17-Sep-19,Fire - Breathing Apparatus,TSI INSTRUMENTS LTD,ENVIRON TECHNICAL EQT,7.85
Lancs Fire & Rescue Service,E6123,Fire,105828917,17-Sep-19,Fire - Breathing Apparatus,TSI INSTRUMENTS LTD,ENVIRON TECHNICAL EQT,505
Lancs Fire & Rescue Service,E6123,Fire,105828974,10-Jul-19,Compensation - Loss Of Office,REDACTED,NOT CLASSIFIED,"4,285.88"
Lancs Fire & Rescue Service,E6123,Fire,105829242,19-Jul-19,Photographic,DIGITAL ID LTD,EDUCATION SUPPLIES,540
Lancs Fire & Rescue Service,E6123,Fire,105829242,19-Jul-19,Photographic,DIGITAL ID LTD,EDUCATION SUPPLIES,23.95
Lancs Fire & Rescue Service,E6123,Fire,105829242,19-Jul-19,Photographic,DIGITAL ID LTD,EDUCATION SUPPLIES,8.95
Lancs Fire & Rescue Service,E6123,Fire,105829245,09-Aug-19,Fire - Breathing Apparatus,OTRA LTD,VEHICLES MAINTENANCE,600
Lancs Fire & Rescue Service,E6123,Fire,105829252,30-Jul-19,Waste Collection Charges,SUEZ RECYCLING & RECOVERY UK LTD,ENVIRON WASTE MGMT,"2,186.42"
Lancs Fire & Rescue Service,E6123,Fire,105829254,16-Jul-19,Computer Data Network,TIS LIMITED,TELEPHONE SERVICES,888.25
Lancs Fire & Rescue Service,E6123,Fire,105829255,16-Jul-19,Computer Data Network,TIS LIMITED,TELEPHONE SERVICES,888.25
Lancs Fire & Rescue Service,E6123,Fire,105829256,16-Jul-19,Computer Data Network,TIS LIMITED,TELEPHONE SERVICES,"1,189.00"
Lancs Fire & Rescue Service,E6123,Fire,105829257,16-Jul-19,Computer Data Network,TIS LIMITED,TELEPHONE SERVICES,885
Lancs Fire & Rescue Service,E6123,Fire,105829259,26-Jul-19,Computer Hardware,INSIGHT DIRECT (UK) LTD,ICT SOFTWARE,510
Lancs Fire & Rescue Service,E6123,Fire,105829260,02-Aug-19,Agency Staff,PARASOL LTD,FINANCIAL ACCOUNTANCY,570
Lancs Fire & Rescue Service,E6123,Fire,105829261,16-Jul-19,Fire Mobs Network Maint,3TC SOFTWARE LIMITED,ICT SOFTWARE,"6,333.60"
Lancs Fire & Rescue Service,E6123,Fire,105829261,16-Jul-19,Fire Mobs Network Maint,3TC SOFTWARE LIMITED,ICT SOFTWARE,"11,763.00"
Lancs Fire & Rescue Service,E6123,Fire,105829261,16-Jul-19,Fire Mobs Network Maint,3TC SOFTWARE LIMITED,ICT SOFTWARE,"1,134.00"
Lancs Fire & Rescue Service,E6123,Fire,105829262,16-Jul-19,Fire Operational Communications,DATANET,ICT SOFTWARE,11
Lancs Fire & Rescue Service,E6123,Fire,105829262,16-Jul-19,Fire Operational Communications,DATANET,ICT SOFTWARE,612
Lancs Fire & Rescue Service,E6123,Fire,105829262,16-Jul-19,Fire Operational Communications,DATANET,ICT SOFTWARE,60
Lancs Fire & Rescue Service,E6123,Fire,105829267,16-Jul-19,Fire Safety - Publicity & Promotion,KLEER PRINT,FACIL&MGMT REPROGRAPHICS,"1,450.00"
Lancs Fire & Rescue Service,E6123,Fire,105829271,23-Jul-19,Fire - Breathing Apparatus,BAUER KOMPRESSOREN UK LTD,VEHICLES PARTS,"5,629.66"
Lancs Fire & Rescue Service,E6123,Fire,105829273,26-Jul-19,Clothing & Uniform,BRISTOL UNIFORMS LTD,CLOTHING PERSONAL,593.94
Lancs Fire & Rescue Service,E6123,Fire,105829273,26-Jul-19,Clothing & Uniform,BRISTOL UNIFORMS LTD,CLOTHING PERSONAL,"1,187.88"
Lancs Fire & Rescue Service,E6123,Fire,105829273,26-Jul-19,Clothing & Uniform,BRISTOL UNIFORMS LTD,CLOTHING PERSONAL,"1,484.85"
Lancs Fire & Rescue Service,E6123,Fire,105829273,26-Jul-19,Clothing & Uniform,BRISTOL UNIFORMS LTD,CLOTHING PERSONAL,296.97
Lancs Fire & Rescue Service,E6123,Fire,105829273,26-Jul-19,Clothing & Uniform,BRISTOL UNIFORMS LTD,CLOTHING PERSONAL,296.97
Lancs Fire & Rescue Service,E6123,Fire,105829274,26-Jul-19,Clothing & Uniform,BRISTOL UNIFORMS LTD,CLOTHING PERSONAL,"1,330.70"
Lancs Fire & Rescue Service,E6123,Fire,105829274,26-Jul-19,Clothing & Uniform,BRISTOL UNIFORMS LTD,CLOTHING PERSONAL,266.14
Lancs Fire & Rescue Service,E6123,Fire,105829274,26-Jul-19,Clothing & Uniform,BRISTOL UNIFORMS LTD,CLOTHING PERSONAL,"1,064.56"
Lancs Fire & Rescue Service,E6123,Fire,105829275,16-Jul-19,Fire - Operational Equipment,FIRE HOSETECH LTD,HEALTH&SAFETY PRODUCTS,40
Lancs Fire & Rescue Service,E6123,Fire,105829275,16-Jul-19,Fire - Operational Equipment,FIRE HOSETECH LTD,HEALTH&SAFETY PRODUCTS,193.77
Lancs Fire & Rescue Service,E6123,Fire,105829275,16-Jul-19,Fire - Operational Equipment,FIRE HOSETECH LTD,HEALTH&SAFETY PRODUCTS,160.94
Lancs Fire & Rescue Service,E6123,Fire,105829275,16-Jul-19,Fire - Operational Equipment,FIRE HOSETECH LTD,HEALTH&SAFETY PRODUCTS,"1,029.92"
Lancs Fire & Rescue Service,E6123,Fire,105829279,16-Jul-19,Course Providers,PRINCE'S TRUST TRADING LTD,HR TRAINING&CONFERENCES,"5,300.00"
Lancs Fire & Rescue Service,E6123,Fire,105829280,16-Jul-19,Computer Data Network,SWITCH COMMUNICATIONS LTD,ICT SOFTWARE,"1,944.25"
Lancs Fire & Rescue Service,E6123,Fire,105829281,16-Jul-19,Mobile Phone Costs,O2 (UK) LTD,ICT TELECOMMS MOBILE,"4,650.95"
Lancs Fire & Rescue Service,E6123,Fire,105829282,16-Jul-19,Fire - Hydrants,YORKSHIRE WATER SERVICES LTD,UTILITIES WATER,418
Lancs Fire & Rescue Service,E6123,Fire,105829287,16-Jul-19,Vehicle Purchase,AUTOMOTIVE TOOLS & SUPPLIES LTD,BUILDING MATS&SVCS GEN,491.4
Lancs Fire & Rescue Service,E6123,Fire,105829287,16-Jul-19,Vehicle Purchase,AUTOMOTIVE TOOLS & SUPPLIES LTD,BUILDING MATS&SVCS GEN,7.26
Lancs Fire & Rescue Service,E6123,Fire,105829310,16-Jul-19,Water,WATER PLUS LTD,UTILITIES WATER,"1,427.61"
Lancs Fire & Rescue Service,E6123,Fire,105829315,16-Jul-19,Water,WATER PLUS LTD,UTILITIES WATER,839.87
Lancs Fire & Rescue Service,E6123,Fire,105829316,16-Jul-19,Water,WATER PLUS LTD,UTILITIES WATER,520.21
Lancs Fire & Rescue Service,E6123,Fire,105829323,16-Jul-19,Professional Services,CHORLEY BOROUGH COUNCIL,LOCAL GOVERNMENT,864
Lancs Fire & Rescue Service,E6123,Fire,105833359,30-Jul-19,Tyres,GOODYEAR DUNLOP TYRES UK LTD,VEHICLES MAINTENANCE,"4,991.42"
Lancs Fire & Rescue Service,E6123,Fire,105833368,16-Jul-19,Vehicle & Plant R&M (External),ROSENBAUER UK LTD,FRS SPECIALIST VEHICLES,"12,858.57"
Lancs Fire & Rescue Service,E6123,Fire,105833955,16-Jul-19,Waste Collection Charges,SUEZ RECYCLING & RECOVERY UK LTD,ENVIRON WASTE MGMT,"2,306.53"
Lancs Fire & Rescue Service,E6123,Fire,105834061,26-Jul-19,Protective Clothing,BALLYCLARE LHD LTD,CLOTHING PERSONAL,"2,714.40"
Lancs Fire & Rescue Service,E6123,Fire,105834061,26-Jul-19,Protective Clothing,BALLYCLARE LHD LTD,CLOTHING PERSONAL,"-2,714.40"
Lancs Fire & Rescue Service,E6123,Fire,105834061,26-Jul-19,Protective Clothing,BALLYCLARE LHD LTD,CLOTHING PERSONAL,"8,143.20"
Lancs Fire & Rescue Service,E6123,Fire,105834061,26-Jul-19,Protective Clothing,BALLYCLARE LHD LTD,CLOTHING PERSONAL,"-8,143.20"
Lancs Fire & Rescue Service,E6123,Fire,105834061,26-Jul-19,Protective Clothing,BALLYCLARE LHD LTD,CLOTHING PERSONAL,"2,714.40"
Lancs Fire & Rescue Service,E6123,Fire,105834061,26-Jul-19,Protective Clothing,BALLYCLARE LHD LTD,CLOTHING PERSONAL,"1,628.64"
Lancs Fire & Rescue Service,E6123,Fire,105834061,26-Jul-19,Protective Clothing,BALLYCLARE LHD LTD,CLOTHING PERSONAL,"6,514.56"
Lancs Fire & Rescue Service,E6123,Fire,105834063,26-Jul-19,Protective Clothing,BALLYCLARE LHD LTD,CLOTHING PERSONAL,"-2,171.52"
Lancs Fire & Rescue Service,E6123,Fire,105834063,26-Jul-19,Protective Clothing,BALLYCLARE LHD LTD,CLOTHING PERSONAL,"2,171.52"
Lancs Fire & Rescue Service,E6123,Fire,105834063,26-Jul-19,Protective Clothing,BALLYCLARE LHD LTD,CLOTHING PERSONAL,"2,171.52"
Lancs Fire & Rescue Service,E6123,Fire,105834066,23-Jul-19,Fire - Breathing Apparatus,BAUER KOMPRESSOREN UK LTD,VEHICLES PARTS,"4,726.49"
Lancs Fire & Rescue Service,E6123,Fire,105834070,16-Jul-19,Fire - Hydrants,UNITED UTILITIES WATER PLC,UTILITIES WATER,570.04
Lancs Fire & Rescue Service,E6123,Fire,105834072,16-Jul-19,Fire - Hydrants,UNITED UTILITIES WATER PLC,UTILITIES WATER,523
Lancs Fire & Rescue Service,E6123,Fire,105834090,16-Jul-19,Fire - Op Equip Repairs,SUPPLY PLUS LTD,TRANSPORT FLEET MGMT,468
Lancs Fire & Rescue Service,E6123,Fire,105834090,16-Jul-19,Fire - Op Equip Repairs,SUPPLY PLUS LTD,TRANSPORT FLEET MGMT,"12,773.37"
Lancs Fire & Rescue Service,E6123,Fire,105834138,16-Jul-19,Professional Services,FORBES SOLICITORS,LEGAL SVCS GENERAL,800
Lancs Fire & Rescue Service,E6123,Fire,105834162,16-Jul-19,Repairs & Maintenance General,WEST LANCASHIRE ELECTRICAL CONTRACTORS LTD,BUILDING MATS&SVCS ELEC,487.4
Lancs Fire & Rescue Service,E6123,Fire,105834163,16-Jul-19,Ext� Adapt� Improv� Etc,WEST LANCASHIRE ELECTRICAL CONTRACTORS LTD,BUILDING MATS&SVCS ELEC,465.17
Lancs Fire & Rescue Service,E6123,Fire,105834166,16-Jul-19,Repairs & Maintenance General,WEST LANCASHIRE ELECTRICAL CONTRACTORS LTD,BUILDING MATS&SVCS ELEC,525
Lancs Fire & Rescue Service,E6123,Fire,105834167,16-Jul-19,Repairs & Maintenance General,WEST LANCASHIRE ELECTRICAL CONTRACTORS LTD,BUILDING MATS&SVCS ELEC,449.81
Lancs Fire & Rescue Service,E6123,Fire,105834169,23-Jul-19,Programmed Work,FUTURE TECHNOLOGY SERVICES LTD,BUILDING MATS&SVCS ELEC,"3,310.00"
Lancs Fire & Rescue Service,E6123,Fire,105834171,30-Jul-19,Repairs & Maintenance General,DLP SERVICES NORTHERN LTD,BUILDING MATS&SVCS GEN,535.74
Lancs Fire & Rescue Service,E6123,Fire,105834180,16-Jul-19,Repairs & Maintenance General,THE JAMES MERCER GROUP LIMITED,BUILDING MATS&SVCS GEN,"1,658.34"
Lancs Fire & Rescue Service,E6123,Fire,105834181,16-Jul-19,Delegated Grounds Maintenance,LANCASHIRE COUNTY COUNCIL,LOCAL GOVERNMENT,"5,819.07"
Lancs Fire & Rescue Service,E6123,Fire,105834183,19-Jul-19,Professional Services,MERSEYSIDE FIRE & RESCUE AUTHORITY,LOCAL GOVERNMENT,"1,667.33"
Lancs Fire & Rescue Service,E6123,Fire,105834188,16-Jul-19,Mobile Phone Costs,SOFTCAT LTD,ICT CALL SYSTEMS,585.5
Lancs Fire & Rescue Service,E6123,Fire,105834188,16-Jul-19,Mobile Phone Costs,SOFTCAT LTD,ICT CALL SYSTEMS,"1,052.00"
Lancs Fire & Rescue Service,E6123,Fire,105834188,16-Jul-19,Mobile Phone Costs,SOFTCAT LTD,ICT CALL SYSTEMS,241.25
Lancs Fire & Rescue Service,E6123,Fire,105834188,16-Jul-19,Mobile Phone Costs,SOFTCAT LTD,ICT CALL SYSTEMS,"3,782.75"
Lancs Fire & Rescue Service,E6123,Fire,105834226,16-Jul-19,Computer Data Network,VIRGIN MEDIA LTD,ICT TELECOMMS FIXED,"15,444.00"
Lancs Fire & Rescue Service,E6123,Fire,105834315,19-Jul-19,Vehicle Repairs & Maintenance,LANCASHIRE COUNTY COUNCIL,LOCAL GOVERNMENT,"8,172.44"
Lancs Fire & Rescue Service,E6123,Fire,105834315,19-Jul-19,Vehicle Repairs & Maintenance,LANCASHIRE COUNTY COUNCIL,LOCAL GOVERNMENT,"2,402.33"
Lancs Fire & Rescue Service,E6123,Fire,105834315,19-Jul-19,Vehicle Repairs & Maintenance,LANCASHIRE COUNTY COUNCIL,LOCAL GOVERNMENT,"8,604.14"
Lancs Fire & Rescue Service,E6123,Fire,105834316,19-Jul-19,Fire - Op Equip Repairs,ASPLI SAFETY LTD,HEALTH&SAFETY PRODUCTS,499.04
Lancs Fire & Rescue Service,E6123,Fire,105834317,23-Jul-19,Course Providers,MERSEYSIDE FIRE & RESCUE AUTHORITY,LOCAL GOVERNMENT,"1,273.00"
Lancs Fire & Rescue Service,E6123,Fire,105834320,19-Jul-19,Vehicle & Plant Insurance Below Excess,TRAVELLERS INSURANCE COMPANY LTD,FINANCIAL� INSURANCE,"1,305.32"
Lancs Fire & Rescue Service,E6123,Fire,105834323,02-Aug-19,Course Providers,DRAEGER SAFETY UK LTD,HEALTH&SAFETY PRODUCTS,"2,560.00"
Lancs Fire & Rescue Service,E6123,Fire,105834323,02-Aug-19,Course Providers,DRAEGER SAFETY UK LTD,HEALTH&SAFETY PRODUCTS,"9,440.00"
Lancs Fire & Rescue Service,E6123,Fire,105834324,19-Jul-19,Fire - Op Equip Repairs,HOLMATRO UK LTD,VEHICLES PARTS,103
Lancs Fire & Rescue Service,E6123,Fire,105834324,19-Jul-19,Fire - Op Equip Repairs,HOLMATRO UK LTD,VEHICLES PARTS,117.6
Lancs Fire & Rescue Service,E6123,Fire,105834324,19-Jul-19,Fire - Op Equip Repairs,HOLMATRO UK LTD,VEHICLES PARTS,"2,058.00"
Lancs Fire & Rescue Service,E6123,Fire,105834324,19-Jul-19,Fire - Op Equip Repairs,HOLMATRO UK LTD,VEHICLES PARTS,17.5
Lancs Fire & Rescue Service,E6123,Fire,105834330,19-Jul-19,Fire - Operational Equipment,FERNO (UK) LTD,MEDICAL EQUIPMENT,705
Lancs Fire & Rescue Service,E6123,Fire,105834335,19-Jul-19,Agency Staff,OFFICE ANGELS LIMITED,HR TEMPOARY&AGENCY STAFF,512.43
Lancs Fire & Rescue Service,E6123,Fire,105834337,19-Jul-19,Agency Staff,OFFICE ANGELS LIMITED,HR TEMPOARY&AGENCY STAFF,599.38
Lancs Fire & Rescue Service,E6123,Fire,105834340,19-Jul-19,Agency Staff,OFFICE ANGELS LIMITED,HR TEMPOARY&AGENCY STAFF,634.38
Lancs Fire & Rescue Service,E6123,Fire,105834345,19-Jul-19,Agency Staff,OFFICE ANGELS LIMITED,HR TEMPOARY&AGENCY STAFF,-602.84
Lancs Fire & Rescue Service,E6123,Fire,105834346,19-Jul-19,Agency Staff,OFFICE ANGELS LIMITED,HR TEMPOARY&AGENCY STAFF,-569.58
Lancs Fire & Rescue Service,E6123,Fire,105836189,02-Aug-19,Programmed Work,WORTHINGTON & GRAHAM OF PRESTON LTD,BUILDING MATS&SVCS GEN,442.23
Lancs Fire & Rescue Service,E6123,Fire,105836199,16-Jul-19,Programmed Work,WEST LANCASHIRE ELECTRICAL CONTRACTORS LTD,BUILDING MATS&SVCS ELEC,"1,342.60"
Lancs Fire & Rescue Service,E6123,Fire,105843669,26-Jul-19,Computer Hardware,INSIGHT DIRECT (UK) LTD,ICT SOFTWARE,910
Lancs Fire & Rescue Service,E6123,Fire,105843669,26-Jul-19,Computer Hardware,INSIGHT DIRECT (UK) LTD,ICT SOFTWARE,"1,147.80"
Lancs Fire & Rescue Service,E6123,Fire,105844176,23-Jul-19,Water,WATER PLUS LTD,UTILITIES WATER,517.93
Lancs Fire & Rescue Service,E6123,Fire,105844177,23-Jul-19,Water,WATER PLUS LTD,UTILITIES WATER,586.55
Lancs Fire & Rescue Service,E6123,Fire,105844178,23-Jul-19,Water,WATER PLUS LTD,UTILITIES WATER,"2,824.47"
Lancs Fire & Rescue Service,E6123,Fire,105844179,02-Aug-19,Electricity,NPOWER LTD,UTILITIES ELECTRICITY,"4,102.32"
Lancs Fire & Rescue Service,E6123,Fire,105844180,02-Aug-19,Electricity,NPOWER LTD,UTILITIES ELECTRICITY,"4,049.76"
Lancs Fire & Rescue Service,E6123,Fire,105844181,02-Aug-19,Electricity,NPOWER LTD,UTILITIES ELECTRICITY,"1,361.33"
Lancs Fire & Rescue Service,E6123,Fire,105844182,02-Aug-19,Water,NPOWER LTD,UTILITIES ELECTRICITY,994.55
Lancs Fire & Rescue Service,E6123,Fire,105844195,23-Jul-19,Vehicle & Plant R&M (External),MILLERS OF LONGTON LTD,VEHICLES MAINTENANCE,"1,014.00"
Lancs Fire & Rescue Service,E6123,Fire,105844197,26-Jul-19,Vehicle & Plant R&M (External),THOMAS HARDIE COMMERCIALS LTD,VEHICLES COMMERCIAL,"1,725.22"
Lancs Fire & Rescue Service,E6123,Fire,105844198,30-Jul-19,Vehicle & Plant R&M (External),THOMAS HARDIE COMMERCIALS LTD,VEHICLES COMMERCIAL,615.46
Lancs Fire & Rescue Service,E6123,Fire,105844200,23-Jul-19,Vehicle & Plant R&M (External),JAMES HART (CHORLEY) LTD,TRANSPORT MAINTENANCE,"3,445.30"
Lancs Fire & Rescue Service,E6123,Fire,105844207,26-Jul-19,Vehicle & Plant R&M (External),OTRA LTD,VEHICLES MAINTENANCE,580
Lancs Fire & Rescue Service,E6123,Fire,105844208,26-Jul-19,Vehicle & Plant R&M (External),OTRA LTD,VEHICLES MAINTENANCE,"1,096.00"
Lancs Fire & Rescue Service,E6123,Fire,105844220,02-Aug-19,Vehicle & Plant R&M (External),OTRA LTD,VEHICLES MAINTENANCE,"1,096.00"
Lancs Fire & Rescue Service,E6123,Fire,105844223,23-Jul-19,Vehicle & Plant R&M (External),ROSENBAUER UK LTD,FRS SPECIALIST VEHICLES,"1,511.40"
Lancs Fire & Rescue Service,E6123,Fire,105844225,23-Jul-19,Computer Software,LONE WORKER SOLUTIONS LTD,UNCLASSIFIED,720
Lancs Fire & Rescue Service,E6123,Fire,105844225,23-Jul-19,Computer Software,LONE WORKER SOLUTIONS LTD,UNCLASSIFIED,"4,308.60"
Lancs Fire & Rescue Service,E6123,Fire,105844664,23-Jul-19,Programmed Work,LARS COMMUNICATION,ICT MAINTENANCE,800
Lancs Fire & Rescue Service,E6123,Fire,105844666,23-Jul-19,Programmed Work,LARS COMMUNICATION,ICT MAINTENANCE,"1,850.00"
Lancs Fire & Rescue Service,E6123,Fire,105844685,19-Jul-19,Agency Staff,OCCUPATIONAL HEALTH STAFFING LTD,UNCLASSIFIED,272
Lancs Fire & Rescue Service,E6123,Fire,105844685,19-Jul-19,Agency Staff,OCCUPATIONAL HEALTH STAFFING LTD,UNCLASSIFIED,255
Lancs Fire & Rescue Service,E6123,Fire,105844717,19-Jul-19,Fire - Hydrants,UNITED UTILITIES WATER PLC,UTILITIES WATER,"1,063.47"
Lancs Fire & Rescue Service,E6123,Fire,105844730,16-Jul-19,PFI - Capital Charge,MERSEYSIDE FIRE & RESCUE AUTHORITY,LOCAL GOVERNMENT,"152,856.69"
Lancs Fire & Rescue Service,E6123,Fire,105844830,19-Jul-19,Photocopying,XEROX (UK) LTD,FACIL&MGMT PRINTING,"14,046.26"
Lancs Fire & Rescue Service,E6123,Fire,105844832,19-Jul-19,Photocopying,XEROX (UK) LTD,FACIL&MGMT PRINTING,"10,106.26"
Lancs Fire & Rescue Service,E6123,Fire,105844835,19-Jul-19,Photocopying,XEROX (UK) LTD,FACIL&MGMT PRINTING,"-23,130.38"
Lancs Fire & Rescue Service,E6123,Fire,105844951,19-Jul-19,Stationery,VOW EUROPE LTD,STATIONERY PAPER,"2,116.39"
Lancs Fire & Rescue Service,E6123,Fire,105844957,26-Jul-19,Building Cleaning Contract (External),PORTABLE TOILET COMPANY (FORMERLY PORTABLE CONVENIENCES LTD),UNCLASSIFIED TRADE,110
Lancs Fire & Rescue Service,E6123,Fire,105844957,26-Jul-19,Building Cleaning Contract (External),PORTABLE TOILET COMPANY (FORMERLY PORTABLE CONVENIENCES LTD),UNCLASSIFIED TRADE,150
Lancs Fire & Rescue Service,E6123,Fire,105844957,26-Jul-19,Building Cleaning Contract (External),PORTABLE TOILET COMPANY (FORMERLY PORTABLE CONVENIENCES LTD),UNCLASSIFIED TRADE,330
Lancs Fire & Rescue Service,E6123,Fire,105848451,23-Jul-19,Fire - Operational Equipment,HEIGHTEC GROUP,HEALTH&SAFETY PRODUCTS,713.18
Lancs Fire & Rescue Service,E6123,Fire,105848457,30-Jul-19,Laundry,BERENDSEN UK LTD,CLEANING&JAN LAUNDRYMAINT,"8,353.27"
Lancs Fire & Rescue Service,E6123,Fire,105848458,23-Jul-19,Fire Mobs Paging Equipment,PAGEONE COMMUNICATIONS LTD,ICT CALL SYSTEMS,720.45
Lancs Fire & Rescue Service,E6123,Fire,105848460,23-Jul-19,Fire Operational Communications,DATANET,ICT SOFTWARE,888
Lancs Fire & Rescue Service,E6123,Fire,105848460,23-Jul-19,Fire Operational Communications,DATANET,ICT SOFTWARE,11
Lancs Fire & Rescue Service,E6123,Fire,105848472,23-Jul-19,Mobile Phone Costs,MANX TELECOM LTD,UNCLASSIFIED NON-TRADE,"1,150.48"
Lancs Fire & Rescue Service,E6123,Fire,105848472,23-Jul-19,Mobile Phone Costs,MANX TELECOM LTD,UNCLASSIFIED NON-TRADE,58.31
Lancs Fire & Rescue Service,E6123,Fire,105848481,08-Nov-19,Course Providers,QA LTD,ICT HARDWARE,"2,112.00"
Lancs Fire & Rescue Service,E6123,Fire,105848490,23-Jul-19,Building Cleaning Contract (External),ANDRON FACILITIES MANAGEMENT,FACIL&MGMT SECURITY,"16,942.53"
Lancs Fire & Rescue Service,E6123,Fire,105848492,02-Aug-19,Building Cleaning Contract (External),ANDRON FACILITIES MANAGEMENT,FACIL&MGMT SECURITY,"16,942.53"
Lancs Fire & Rescue Service,E6123,Fire,105848498,23-Jul-19,Building Cleaning Contract (External),ANDRON FACILITIES MANAGEMENT,FACIL&MGMT SECURITY,"16,942.53"
Lancs Fire & Rescue Service,E6123,Fire,105848524,23-Jul-19,Computer Data Network,MAINTEL EUROPE LTD,ICT TELECOMMS FIXED,248
Lancs Fire & Rescue Service,E6123,Fire,105848524,23-Jul-19,Computer Data Network,MAINTEL EUROPE LTD,ICT TELECOMMS FIXED,327
Lancs Fire & Rescue Service,E6123,Fire,105848526,23-Jul-19,Fire - Breathing Apparatus,BAUER KOMPRESSOREN UK LTD,VEHICLES PARTS,-879.66
Lancs Fire & Rescue Service,E6123,Fire,105848529,23-Jul-19,Course Providers,UNIVERSITY OF CENTRAL LANCASHIRE,HR TRAINING&CONFERENCES,"2,000.00"
Lancs Fire & Rescue Service,E6123,Fire,105848535,23-Jul-19,Medical Fees,DRS.DIRECT,MEDICAL SERVICES,900
Lancs Fire & Rescue Service,E6123,Fire,105848536,23-Jul-19,Medical Fees,ORGANISATIONAL HEALTHCARE LTD,HEALTH&SAFETY SERVICES,"3,150.00"
Lancs Fire & Rescue Service,E6123,Fire,105848542,23-Jul-19,Fire - Operational Equipment,HEIGHTEC GROUP,HEALTH&SAFETY PRODUCTS,812.88
Lancs Fire & Rescue Service,E6123,Fire,105848547,30-Jul-19,Course Providers,A HELM TRAINING SERVICES,EDUCATION SERVICES,650
Lancs Fire & Rescue Service,E6123,Fire,105848548,23-Jul-19,Course Providers,IMPELLER ASSURANCE & RESILIENCE LTD,ACS(NRCS&PAMS),"3,050.00"
Lancs Fire & Rescue Service,E6123,Fire,105849606,23-Jul-19,Postage & Carriage,WRAY BROS LIMITED,CLEANING&JANITORIAL SVCS,0.04
Lancs Fire & Rescue Service,E6123,Fire,105849606,23-Jul-19,Stocks And Stores - General,WRAY BROS LIMITED,CLEANING&JANITORIAL SVCS,852.15
Lancs Fire & Rescue Service,E6123,Fire,105849609,23-Jul-19,Stocks And Stores - General,C & W BERRY LTD,BUILDING MATS&SVCS GEN,598
Lancs Fire & Rescue Service,E6123,Fire,105849612,23-Jul-19,Stocks And Stores - General,RELIANCE MEDICAL LTD,MEDICAL CONSUMABLES,"1,001.58"
Lancs Fire & Rescue Service,E6123,Fire,105849616,23-Jul-19,Stocks And Stores - General,WELDBANK PLASTIC CO LTD,BUILDING MATS&SVCS GEN,"1,080.00"
Lancs Fire & Rescue Service,E6123,Fire,105850738,09-Aug-19,Repairs & Maintenance General,WORTHINGTON & GRAHAM OF PRESTON LTD,BUILDING MATS&SVCS GEN,513.88
Lancs Fire & Rescue Service,E6123,Fire,105850739,09-Aug-19,Repairs & Maintenance General,WORTHINGTON & GRAHAM OF PRESTON LTD,BUILDING MATS&SVCS GEN,590
Lancs Fire & Rescue Service,E6123,Fire,105850741,09-Aug-19,Repairs & Maintenance General,WORTHINGTON & GRAHAM OF PRESTON LTD,BUILDING MATS&SVCS GEN,656.69
Lancs Fire & Rescue Service,E6123,Fire,105850748,26-Jul-19,Repairs & Maintenance General,HARDACRES PLUMBERS (NW) LTD,WORKS BUILDINGS,"1,353.42"
Lancs Fire & Rescue Service,E6123,Fire,105850751,26-Jul-19,Service Contracts,TEMPERATURE CONTROL LTD,WORKS BUILDINGS,"4,305.00"
Lancs Fire & Rescue Service,E6123,Fire,105850754,26-Jul-19,Programmed Work,BID GROUP LTD,BUILDING MATS&SVCS GEN,"1,114.63"
Lancs Fire & Rescue Service,E6123,Fire,105850756,26-Jul-19,Repairs & Maintenance General,BID GROUP LTD,BUILDING MATS&SVCS GEN,"1,175.00"
Lancs Fire & Rescue Service,E6123,Fire,105851983,26-Jul-19,Computer Software,EXCELERATE TECHNOLOGY LTD,ICT SOFTWARE,"4,188.00"
Lancs Fire & Rescue Service,E6123,Fire,105851983,26-Jul-19,Computer Software,EXCELERATE TECHNOLOGY LTD,ICT SOFTWARE,"3,000.00"
Lancs Fire & Rescue Service,E6123,Fire,105851986,26-Jul-19,Vehicle Purchase,FORD MOTOR CO LTD,VEHICLES COMMERCIAL,"18,186.99"
Lancs Fire & Rescue Service,E6123,Fire,105851989,02-Aug-19,Course Providers,SKILLS FOR JUSTICE ENTERPRISES LTD (PART OF WORKFORCE DEVELOPMENT TRUST LTD),EDUCATION SERVICES,60
Lancs Fire & Rescue Service,E6123,Fire,105851989,02-Aug-19,Course Providers,SKILLS FOR JUSTICE ENTERPRISES LTD (PART OF WORKFORCE DEVELOPMENT TRUST LTD),EDUCATION SERVICES,30
Lancs Fire & Rescue Service,E6123,Fire,105851989,02-Aug-19,Course Providers,SKILLS FOR JUSTICE ENTERPRISES LTD (PART OF WORKFORCE DEVELOPMENT TRUST LTD),EDUCATION SERVICES,180
Lancs Fire & Rescue Service,E6123,Fire,105851989,02-Aug-19,Course Providers,SKILLS FOR JUSTICE ENTERPRISES LTD (PART OF WORKFORCE DEVELOPMENT TRUST LTD),EDUCATION SERVICES,120
Lancs Fire & Rescue Service,E6123,Fire,105851989,02-Aug-19,Course Providers,SKILLS FOR JUSTICE ENTERPRISES LTD (PART OF WORKFORCE DEVELOPMENT TRUST LTD),EDUCATION SERVICES,30
Lancs Fire & Rescue Service,E6123,Fire,105851989,02-Aug-19,Course Providers,SKILLS FOR JUSTICE ENTERPRISES LTD (PART OF WORKFORCE DEVELOPMENT TRUST LTD),EDUCATION SERVICES,60
Lancs Fire & Rescue Service,E6123,Fire,105851989,02-Aug-19,Course Providers,SKILLS FOR JUSTICE ENTERPRISES LTD (PART OF WORKFORCE DEVELOPMENT TRUST LTD),EDUCATION SERVICES,300
Lancs Fire & Rescue Service,E6123,Fire,105851990,26-Jul-19,Course Providers,NETWORKING WOMEN IN THE FIRE SERVICE,HR TRAINING&CONFERENCES,516
Lancs Fire & Rescue Service,E6123,Fire,105851990,26-Jul-19,Course Providers,NETWORKING WOMEN IN THE FIRE SERVICE,HR TRAINING&CONFERENCES,"3,168.00"
Lancs Fire & Rescue Service,E6123,Fire,105851990,26-Jul-19,Course Providers,NETWORKING WOMEN IN THE FIRE SERVICE,HR TRAINING&CONFERENCES,540
Lancs Fire & Rescue Service,E6123,Fire,105851991,26-Jul-19,Consumable Materials,C & W BERRY LTD,BUILDING MATS&SVCS GEN,578.5
Lancs Fire & Rescue Service,E6123,Fire,105852005,26-Jul-19,Agency Staff,OFFICE ANGELS LIMITED,HR TEMPOARY&AGENCY STAFF,468.13
Lancs Fire & Rescue Service,E6123,Fire,105852007,26-Jul-19,Pensions Services SLA,LANCASHIRE COUNTY COUNCIL,LOCAL GOVERNMENT,"21,802.00"
Lancs Fire & Rescue Service,E6123,Fire,105852008,26-Jul-19,Agency Staff,OFFICE ANGELS LIMITED,HR TEMPOARY&AGENCY STAFF,512.43
Lancs Fire & Rescue Service,E6123,Fire,105852010,26-Jul-19,Agency Staff,OFFICE ANGELS LIMITED,HR TEMPOARY&AGENCY STAFF,608.13
Lancs Fire & Rescue Service,E6123,Fire,105852016,26-Jul-19,Course Providers,PRESTON MARINE SERVICES LTD,VEHICLES PARTS,"1,650.00"
Lancs Fire & Rescue Service,E6123,Fire,105852018,30-Jul-19,Professional Services,DRIVER & VEHICLE STANDARDS AGENCY (DVSA),GOVERNMENT,950
Lancs Fire & Rescue Service,E6123,Fire,105852019,30-Jul-19,Professional Services,HARRISON NETWORK,HR PROFESSIONAL&ADVISORY,180
Lancs Fire & Rescue Service,E6123,Fire,105852019,30-Jul-19,Professional Services,HARRISON NETWORK,HR PROFESSIONAL&ADVISORY,70.2
Lancs Fire & Rescue Service,E6123,Fire,105852019,30-Jul-19,Professional Services,HARRISON NETWORK,HR PROFESSIONAL&ADVISORY,832.5
Lancs Fire & Rescue Service,E6123,Fire,105852020,16-Aug-19,Fire - Op Equip Repairs,OTRA LTD,VEHICLES MAINTENANCE,859
Lancs Fire & Rescue Service,E6123,Fire,105852023,26-Jul-19,Agency Staff,OFFICE ANGELS LIMITED,HR TEMPOARY&AGENCY STAFF,-577.89
Lancs Fire & Rescue Service,E6123,Fire,105852032,09-Aug-19,Ext� Adapt� Improv� Etc,J GREENWOOD (BUILDERS) LTD,BUILDING MATS&SVCS GEN,"36,180.64"
Lancs Fire & Rescue Service,E6123,Fire,105852033,26-Jul-19,Repairs & Maintenance General,HARDACRES PLUMBERS (NW) LTD,WORKS BUILDINGS,481.08
Lancs Fire & Rescue Service,E6123,Fire,105852038,09-Aug-19,Electricity,NPOWER,UTILITIES ELECTRICITY,"1,341.08"
Lancs Fire & Rescue Service,E6123,Fire,105852039,09-Aug-19,Electricity,NPOWER,UTILITIES ELECTRICITY,"1,152.52"
Lancs Fire & Rescue Service,E6123,Fire,105852040,09-Aug-19,Electricity,NPOWER,UTILITIES ELECTRICITY,522.35
Lancs Fire & Rescue Service,E6123,Fire,105852412,17-Sep-19,PFI - Capital Charge,MERSEYSIDE FIRE & RESCUE AUTHORITY,LOCAL GOVERNMENT,-850.32
Lancs Fire & Rescue Service,E6123,Fire,105852414,30-Jul-19,Course Providers,PRINCE'S TRUST TRADING LTD,HR TRAINING&CONFERENCES,543.67
Lancs Fire & Rescue Service,E6123,Fire,105852415,30-Jul-19,Course Providers,PRINCE'S TRUST TRADING LTD,HR TRAINING&CONFERENCES,543.67
Lancs Fire & Rescue Service,E6123,Fire,105852416,30-Jul-19,Conference Expenses,CFOA SERVICES LTD,GOVERNMENT,800
Lancs Fire & Rescue Service,E6123,Fire,105852420,30-Jul-19,Professional Services,HUMAN SPIRIT LTD,TRAINING,57.6
Lancs Fire & Rescue Service,E6123,Fire,105852420,30-Jul-19,Professional Services,HUMAN SPIRIT LTD,TRAINING,57.6
Lancs Fire & Rescue Service,E6123,Fire,105852420,30-Jul-19,Professional Services,HUMAN SPIRIT LTD,TRAINING,57.6
Lancs Fire & Rescue Service,E6123,Fire,105852420,30-Jul-19,Professional Services,HUMAN SPIRIT LTD,TRAINING,57.6
Lancs Fire & Rescue Service,E6123,Fire,105852420,30-Jul-19,Professional Services,HUMAN SPIRIT LTD,TRAINING,250
Lancs Fire & Rescue Service,E6123,Fire,105852420,30-Jul-19,Professional Services,HUMAN SPIRIT LTD,TRAINING,250
Lancs Fire & Rescue Service,E6123,Fire,105852420,30-Jul-19,Professional Services,HUMAN SPIRIT LTD,TRAINING,250
Lancs Fire & Rescue Service,E6123,Fire,105852420,30-Jul-19,Professional Services,HUMAN SPIRIT LTD,TRAINING,250
Lancs Fire & Rescue Service,E6123,Fire,105852420,30-Jul-19,Professional Services,HUMAN SPIRIT LTD,TRAINING,250
Lancs Fire & Rescue Service,E6123,Fire,105852420,30-Jul-19,Professional Services,HUMAN SPIRIT LTD,TRAINING,250
Lancs Fire & Rescue Service,E6123,Fire,105852420,30-Jul-19,Professional Services,HUMAN SPIRIT LTD,TRAINING,250
Lancs Fire & Rescue Service,E6123,Fire,105852420,30-Jul-19,Professional Services,HUMAN SPIRIT LTD,TRAINING,250
Lancs Fire & Rescue Service,E6123,Fire,105852420,30-Jul-19,Professional Services,HUMAN SPIRIT LTD,TRAINING,250
Lancs Fire & Rescue Service,E6123,Fire,105852421,09-Aug-19,Stationery,THE MYERS BRIGGS CO LTD,CONSULTANCY MANAGEMENT,825
Lancs Fire & Rescue Service,E6123,Fire,105852421,09-Aug-19,Stationery,THE MYERS BRIGGS CO LTD,CONSULTANCY MANAGEMENT,7.5
Lancs Fire & Rescue Service,E6123,Fire,105852421,09-Aug-19,Stationery,THE MYERS BRIGGS CO LTD,CONSULTANCY MANAGEMENT,35
Lancs Fire & Rescue Service,E6123,Fire,105852421,09-Aug-19,Stationery,THE MYERS BRIGGS CO LTD,CONSULTANCY MANAGEMENT,115.5
Lancs Fire & Rescue Service,E6123,Fire,105852421,09-Aug-19,Stationery,THE MYERS BRIGGS CO LTD,CONSULTANCY MANAGEMENT,20.5
Lancs Fire & Rescue Service,E6123,Fire,105852421,09-Aug-19,Stationery,THE MYERS BRIGGS CO LTD,CONSULTANCY MANAGEMENT,33.5
Lancs Fire & Rescue Service,E6123,Fire,105852422,30-Jul-19,Consumable Materials,PENNINE FIRE & SAFETY LTD,HEALTH&SAFETY SERVICES,102
Lancs Fire & Rescue Service,E6123,Fire,105852422,30-Jul-19,Consumable Materials,PENNINE FIRE & SAFETY LTD,HEALTH&SAFETY SERVICES,167.25
Lancs Fire & Rescue Service,E6123,Fire,105852422,30-Jul-19,Consumable Materials,PENNINE FIRE & SAFETY LTD,HEALTH&SAFETY SERVICES,28.6
Lancs Fire & Rescue Service,E6123,Fire,105852422,30-Jul-19,Consumable Materials,PENNINE FIRE & SAFETY LTD,HEALTH&SAFETY SERVICES,34.85
Lancs Fire & Rescue Service,E6123,Fire,105852422,30-Jul-19,Consumable Materials,PENNINE FIRE & SAFETY LTD,HEALTH&SAFETY SERVICES,19.5
Lancs Fire & Rescue Service,E6123,Fire,105852422,30-Jul-19,Consumable Materials,PENNINE FIRE & SAFETY LTD,HEALTH&SAFETY SERVICES,250.8
Lancs Fire & Rescue Service,E6123,Fire,105852423,30-Jul-19,Course Providers,EFIRESERVICE LTD,CONSULTANCY IT,"2,250.00"
Lancs Fire & Rescue Service,E6123,Fire,105852428,30-Jul-19,Fire - Operational Equipment,DELTA FIRE,HEALTH&SAFETY PRODUCTS,"3,800.00"
Lancs Fire & Rescue Service,E6123,Fire,105852429,30-Jul-19,Course Providers,REDACTED,EDUCATION SERVICES,"1,170.00"
Lancs Fire & Rescue Service,E6123,Fire,105852429,30-Jul-19,Course Providers,REDACTED,EDUCATION SERVICES,56
Lancs Fire & Rescue Service,E6123,Fire,105852433,30-Jul-19,Course Providers,REDACTED,TRAINING,745
Lancs Fire & Rescue Service,E6123,Fire,105852433,30-Jul-19,Course Providers,REDACTED,TRAINING,745
Lancs Fire & Rescue Service,E6123,Fire,105852433,30-Jul-19,Course Providers,REDACTED,TRAINING,895
Lancs Fire & Rescue Service,E6123,Fire,105852433,30-Jul-19,Course Providers,REDACTED,TRAINING,745
Lancs Fire & Rescue Service,E6123,Fire,105852437,09-Aug-19,Medical Fees,INITIAL WASHROOM SOLUTIONS,NOT CLASSIFIED,246.38
Lancs Fire & Rescue Service,E6123,Fire,105852437,09-Aug-19,Medical Fees,INITIAL WASHROOM SOLUTIONS,NOT CLASSIFIED,175.2
Lancs Fire & Rescue Service,E6123,Fire,105852438,30-Jul-19,Catering Service (External),BRAKE BROS LTD,CATERING FOOD&BEVERAGE,624.79
Lancs Fire & Rescue Service,E6123,Fire,105855070,26-Jul-19,Programmed Work,WEST LANCASHIRE ELECTRICAL CONTRACTORS LTD,BUILDING MATS&SVCS ELEC,"3,008.00"
Lancs Fire & Rescue Service,E6123,Fire,105855072,26-Jul-19,Repairs & Maintenance General,FUTURE TECHNOLOGY SERVICES LTD,BUILDING MATS&SVCS ELEC,446
Lancs Fire & Rescue Service,E6123,Fire,105855078,26-Jul-19,Repairs & Maintenance General,HARDACRES PLUMBERS (NW) LTD,WORKS BUILDINGS,572.94
Lancs Fire & Rescue Service,E6123,Fire,105855084,09-Aug-19,Repairs & Maintenance General,DLP SERVICES NORTHERN LTD,BUILDING MATS&SVCS GEN,"2,178.00"
Lancs Fire & Rescue Service,E6123,Fire,105863155,02-Aug-19,Fire Mobs Paging Equipment,PAGEONE COMMUNICATIONS LTD,ICT CALL SYSTEMS,0.24
Lancs Fire & Rescue Service,E6123,Fire,105863155,02-Aug-19,Fire Mobs Paging Equipment,PAGEONE COMMUNICATIONS LTD,ICT CALL SYSTEMS,750
Lancs Fire & Rescue Service,E6123,Fire,105863160,02-Aug-19,Fire - Hydrants,UNITED UTILITIES WATER PLC,UTILITIES WATER,"1,063.47"
Lancs Fire & Rescue Service,E6123,Fire,105863208,02-Aug-19,Consumable Materials,NOBEL FIRE SYSTEMS LTD,FRS SPECIALIST EQUIPMENT,750
Lancs Fire & Rescue Service,E6123,Fire,105863208,02-Aug-19,Consumable Materials,NOBEL FIRE SYSTEMS LTD,FRS SPECIALIST EQUIPMENT,10.8
Lancs Fire & Rescue Service,E6123,Fire,105863211,02-Aug-19,Fire - Operational Equipment,ANGUS FIRE LTD,HEALTH&SAFETY SERVICES,429.44
Lancs Fire & Rescue Service,E6123,Fire,105863213,02-Aug-19,Professional Services,UCLAN BUSINESS SERVICES LTD,HR TRAINING&CONFERENCES,"3,013.20"
Lancs Fire & Rescue Service,E6123,Fire,105863234,02-Aug-19,Professional Services,REDACTED,CONSULTANCY MANAGEMENT,"1,262.50"
Lancs Fire & Rescue Service,E6123,Fire,105863246,02-Aug-19,Agency Staff,OCCUPATIONAL HEALTH STAFFING LTD,UNCLASSIFIED,221
Lancs Fire & Rescue Service,E6123,Fire,105863246,02-Aug-19,Agency Staff,OCCUPATIONAL HEALTH STAFFING LTD,UNCLASSIFIED,255
Lancs Fire & Rescue Service,E6123,Fire,105863252,02-Aug-19,PFI - Capital Charge,PFF LANCASHIRE LTD,FACIL&MGMT RETAIL,"59,482.57"
Lancs Fire & Rescue Service,E6123,Fire,105863256,02-Aug-19,Course Providers,A HELM TRAINING SERVICES,EDUCATION SERVICES,"3,120.00"
Lancs Fire & Rescue Service,E6123,Fire,105863271,02-Aug-19,Programmed Work,R H WELLS ELECTRICAL LTD,BUILDING MATS&SVCS ELEC,"2,432.46"
Lancs Fire & Rescue Service,E6123,Fire,105863272,02-Aug-19,Programmed Work,R H WELLS ELECTRICAL LTD,BUILDING MATS&SVCS ELEC,"1,481.50"
Lancs Fire & Rescue Service,E6123,Fire,105863273,02-Aug-19,Programmed Work,R H WELLS ELECTRICAL LTD,BUILDING MATS&SVCS ELEC,"1,341.00"
Lancs Fire & Rescue Service,E6123,Fire,105863281,02-Aug-19,Vehicle Purchase,JAMES HART (CHORLEY) LTD,TRANSPORT MAINTENANCE,"26,000.00"
Lancs Fire & Rescue Service,E6123,Fire,105863283,23-Aug-19,Programmed Work,A & D DRAIN SERVICES LTD,BUILDING MATS&SVCS PLUMB,596
Lancs Fire & Rescue Service,E6123,Fire,105863287,23-Aug-19,Fire - Op Equip Repairs,OTRA LTD,VEHICLES MAINTENANCE,835
Lancs Fire & Rescue Service,E6123,Fire,105863661,30-Jul-19,Conference Expenses,CFOA SERVICES LTD,GOVERNMENT,700
Lancs Fire & Rescue Service,E6123,Fire,105863662,30-Jul-19,Consumable Materials,C & W BERRY LTD,BUILDING MATS&SVCS GEN,17
Lancs Fire & Rescue Service,E6123,Fire,105863662,30-Jul-19,Consumable Materials,C & W BERRY LTD,BUILDING MATS&SVCS GEN,12.25
Lancs Fire & Rescue Service,E6123,Fire,105863662,30-Jul-19,Consumable Materials,C & W BERRY LTD,BUILDING MATS&SVCS GEN,401
Lancs Fire & Rescue Service,E6123,Fire,105863662,30-Jul-19,Consumable Materials,C & W BERRY LTD,BUILDING MATS&SVCS GEN,29.52
Lancs Fire & Rescue Service,E6123,Fire,105863662,30-Jul-19,Consumable Materials,C & W BERRY LTD,BUILDING MATS&SVCS GEN,7.9
Lancs Fire & Rescue Service,E6123,Fire,105863662,30-Jul-19,Consumable Materials,C & W BERRY LTD,BUILDING MATS&SVCS GEN,-0.5
Lancs Fire & Rescue Service,E6123,Fire,105863662,30-Jul-19,Consumable Materials,C & W BERRY LTD,BUILDING MATS&SVCS GEN,2.44
Lancs Fire & Rescue Service,E6123,Fire,105863662,30-Jul-19,Consumable Materials,C & W BERRY LTD,BUILDING MATS&SVCS GEN,2.44
Lancs Fire & Rescue Service,E6123,Fire,105863662,30-Jul-19,Consumable Materials,C & W BERRY LTD,BUILDING MATS&SVCS GEN,2.44
Lancs Fire & Rescue Service,E6123,Fire,105863662,30-Jul-19,Consumable Materials,C & W BERRY LTD,BUILDING MATS&SVCS GEN,2.44
Lancs Fire & Rescue Service,E6123,Fire,105863662,30-Jul-19,Consumable Materials,C & W BERRY LTD,BUILDING MATS&SVCS GEN,2.44
Lancs Fire & Rescue Service,E6123,Fire,105868790,02-Aug-19,Exchange Phones,BRITISH TELECOMMUNICATIONS PLC,ICT TELECOMMS MOBILE,"9,372.75"
Lancs Fire & Rescue Service,E6123,Fire,105868792,02-Aug-19,Mobile Phone Costs,VODAFONE (T/A CABLE & WIRELESS WORLDWIDE),TELEPHONE SERVICES,477.26
Lancs Fire & Rescue Service,E6123,Fire,105868795,09-Aug-19,Mobile Phone Costs,EVERYTHING EVERYWHERE LTD,TELEPHONE SERVICES,"1,731.23"
Lancs Fire & Rescue Service,E6123,Fire,105868828,23-Aug-19,Fire - Op Equip Repairs,OTRA LTD,VEHICLES MAINTENANCE,670
Lancs Fire & Rescue Service,E6123,Fire,105868834,09-Aug-19,Catering Service (External),BRAKE BROS LTD,CATERING FOOD&BEVERAGE,-629.99
Lancs Fire & Rescue Service,E6123,Fire,105868834,09-Aug-19,Catering Service (External),BRAKE BROS LTD,CATERING FOOD&BEVERAGE,29.99
Lancs Fire & Rescue Service,E6123,Fire,105868834,09-Aug-19,Catering Service (External),BRAKE BROS LTD,CATERING FOOD&BEVERAGE,629.99
Lancs Fire & Rescue Service,E6123,Fire,105868834,09-Aug-19,Catering Service (External),BRAKE BROS LTD,CATERING FOOD&BEVERAGE,629.99
Lancs Fire & Rescue Service,E6123,Fire,105868838,06-Aug-19,Fire - Hoses,FIRE HOSETECH LTD,HEALTH&SAFETY PRODUCTS,"14,653.65"
Lancs Fire & Rescue Service,E6123,Fire,105869303,16-Aug-19,Professional Services,HARRISON NETWORK,HR PROFESSIONAL&ADVISORY,82.8
Lancs Fire & Rescue Service,E6123,Fire,105869303,16-Aug-19,Professional Services,HARRISON NETWORK,HR PROFESSIONAL&ADVISORY,370
Lancs Fire & Rescue Service,E6123,Fire,105869303,16-Aug-19,Professional Services,HARRISON NETWORK,HR PROFESSIONAL&ADVISORY,220
Lancs Fire & Rescue Service,E6123,Fire,105869303,16-Aug-19,Professional Services,HARRISON NETWORK,HR PROFESSIONAL&ADVISORY,315
Lancs Fire & Rescue Service,E6123,Fire,105869419,09-Aug-19,Electricity,NPOWER,UTILITIES ELECTRICITY,542.32
Lancs Fire & Rescue Service,E6123,Fire,105869442,09-Aug-19,Electricity,NPOWER,UTILITIES ELECTRICITY,426.98
Lancs Fire & Rescue Service,E6123,Fire,105869446,09-Aug-19,Electricity,NPOWER,UTILITIES ELECTRICITY,440.55
Lancs Fire & Rescue Service,E6123,Fire,105869468,09-Aug-19,Electricity,NPOWER,UTILITIES ELECTRICITY,809.35
Lancs Fire & Rescue Service,E6123,Fire,105869494,09-Aug-19,Electricity,NPOWER,UTILITIES ELECTRICITY,624.11
Lancs Fire & Rescue Service,E6123,Fire,105869496,09-Aug-19,Electricity,NPOWER,UTILITIES ELECTRICITY,545.42
Lancs Fire & Rescue Service,E6123,Fire,105869506,09-Aug-19,Electricity,NPOWER,UTILITIES ELECTRICITY,521.86
Lancs Fire & Rescue Service,E6123,Fire,105869511,09-Aug-19,Electricity,NPOWER,UTILITIES ELECTRICITY,-735.9
Lancs Fire & Rescue Service,E6123,Fire,105869513,09-Aug-19,Electricity,NPOWER,UTILITIES ELECTRICITY,"1,053.27"
Lancs Fire & Rescue Service,E6123,Fire,105869515,09-Aug-19,Electricity,NPOWER,UTILITIES ELECTRICITY,594.64
Lancs Fire & Rescue Service,E6123,Fire,105869516,09-Aug-19,Electricity,NPOWER,UTILITIES ELECTRICITY,567.71
Lancs Fire & Rescue Service,E6123,Fire,105869517,09-Aug-19,Electricity,NPOWER,UTILITIES ELECTRICITY,549.25
Lancs Fire & Rescue Service,E6123,Fire,105869530,06-Aug-19,Vehicle & Plant R&M (External),JAMES HART (CHORLEY) LTD,TRANSPORT MAINTENANCE,"4,559.90"
Lancs Fire & Rescue Service,E6123,Fire,105869545,09-Aug-19,Vehicle & Plant R&M (External),OTRA LTD,VEHICLES MAINTENANCE,"1,096.00"
Lancs Fire & Rescue Service,E6123,Fire,105869550,09-Aug-19,Day To Day,OTRA LTD,VEHICLES MAINTENANCE,421
Lancs Fire & Rescue Service,E6123,Fire,105869557,06-Aug-19,Vehicle & Plant R&M (External),JOHN TEIRE AND CO LTD,HEALTH&SAFETY PRODUCTS,512
Lancs Fire & Rescue Service,E6123,Fire,105869558,06-Aug-19,Diesel,STANDARD FUEL OILS LTD,UTILITIES HEATING OIL,"2,590.50"
Lancs Fire & Rescue Service,E6123,Fire,105869559,06-Aug-19,Diesel,STANDARD FUEL OILS LTD,UTILITIES HEATING OIL,"2,590.50"
Lancs Fire & Rescue Service,E6123,Fire,105869563,13-Aug-19,Gas,CORONA ENERGY,UTILITIES GAS,738.57
Lancs Fire & Rescue Service,E6123,Fire,105869933,06-Aug-19,Professional Services,AMCAT (UK) LTD,HR PROFESSIONAL&ADVISORY,183
Lancs Fire & Rescue Service,E6123,Fire,105869933,06-Aug-19,Professional Services,AMCAT (UK) LTD,HR PROFESSIONAL&ADVISORY,"1,807.25"
Lancs Fire & Rescue Service,E6123,Fire,105869934,06-Aug-19,Professional Services,AMCAT (UK) LTD,HR PROFESSIONAL&ADVISORY,"2,225.92"
Lancs Fire & Rescue Service,E6123,Fire,105869936,06-Aug-19,Professional Services,JENKINS DESIGN SERVICES LTD,CONSULTANCY CONSTRUCTION,841.5
Lancs Fire & Rescue Service,E6123,Fire,105869938,06-Aug-19,Professional Services,EQUILIBRIUM ARCHITECTS LTD,CONSULTANCY CONSTRUCTION,442.5
Lancs Fire & Rescue Service,E6123,Fire,105869943,06-Aug-19,Service Contracts,ADT FIRE & SECURITY PLC,FACIL&MGMT SECURITY,774.43
Lancs Fire & Rescue Service,E6123,Fire,105869943,06-Aug-19,Service Contracts,ADT FIRE & SECURITY PLC,FACIL&MGMT SECURITY,-774.73
Lancs Fire & Rescue Service,E6123,Fire,105869943,06-Aug-19,Service Contracts,ADT FIRE & SECURITY PLC,FACIL&MGMT SECURITY,774.73
Lancs Fire & Rescue Service,E6123,Fire,105869945,13-Aug-19,Fire - Op Equip Repairs,WILLIAM MOORE & SON LTD,FRS SPECIALIST EQUIPMENT,25.7
Lancs Fire & Rescue Service,E6123,Fire,105869945,13-Aug-19,Fire - Op Equip Repairs,WILLIAM MOORE & SON LTD,FRS SPECIALIST EQUIPMENT,25.36
Lancs Fire & Rescue Service,E6123,Fire,105869945,13-Aug-19,Fire - Op Equip Repairs,WILLIAM MOORE & SON LTD,FRS SPECIALIST EQUIPMENT,26.73
Lancs Fire & Rescue Service,E6123,Fire,105869945,13-Aug-19,Fire - Op Equip Repairs,WILLIAM MOORE & SON LTD,FRS SPECIALIST EQUIPMENT,16.02
Lancs Fire & Rescue Service,E6123,Fire,105869945,13-Aug-19,Fire - Op Equip Repairs,WILLIAM MOORE & SON LTD,FRS SPECIALIST EQUIPMENT,3.88
Lancs Fire & Rescue Service,E6123,Fire,105869945,13-Aug-19,Fire - Op Equip Repairs,WILLIAM MOORE & SON LTD,FRS SPECIALIST EQUIPMENT,2.46
Lancs Fire & Rescue Service,E6123,Fire,105869945,13-Aug-19,Fire - Op Equip Repairs,WILLIAM MOORE & SON LTD,FRS SPECIALIST EQUIPMENT,36.2
Lancs Fire & Rescue Service,E6123,Fire,105869945,13-Aug-19,Fire - Op Equip Repairs,WILLIAM MOORE & SON LTD,FRS SPECIALIST EQUIPMENT,27.34
Lancs Fire & Rescue Service,E6123,Fire,105869945,13-Aug-19,Fire - Op Equip Repairs,WILLIAM MOORE & SON LTD,FRS SPECIALIST EQUIPMENT,31.44
Lancs Fire & Rescue Service,E6123,Fire,105869945,13-Aug-19,Fire - Op Equip Repairs,WILLIAM MOORE & SON LTD,FRS SPECIALIST EQUIPMENT,138
Lancs Fire & Rescue Service,E6123,Fire,105869945,13-Aug-19,Fire - Op Equip Repairs,WILLIAM MOORE & SON LTD,FRS SPECIALIST EQUIPMENT,67.47
Lancs Fire & Rescue Service,E6123,Fire,105869945,13-Aug-19,Fire - Op Equip Repairs,WILLIAM MOORE & SON LTD,FRS SPECIALIST EQUIPMENT,3.98
Lancs Fire & Rescue Service,E6123,Fire,105869945,13-Aug-19,Fire - Op Equip Repairs,WILLIAM MOORE & SON LTD,FRS SPECIALIST EQUIPMENT,10.54
Lancs Fire & Rescue Service,E6123,Fire,105869945,13-Aug-19,Fire - Op Equip Repairs,WILLIAM MOORE & SON LTD,FRS SPECIALIST EQUIPMENT,27.96
Lancs Fire & Rescue Service,E6123,Fire,105869945,13-Aug-19,Fire - Op Equip Repairs,WILLIAM MOORE & SON LTD,FRS SPECIALIST EQUIPMENT,25.45
Lancs Fire & Rescue Service,E6123,Fire,105869947,06-Aug-19,Repairs & Maintenance General,BID GROUP LTD,BUILDING MATS&SVCS GEN,752
Lancs Fire & Rescue Service,E6123,Fire,105869949,06-Aug-19,Consumable Materials,C & W BERRY LTD,BUILDING MATS&SVCS GEN,578.5
Lancs Fire & Rescue Service,E6123,Fire,105869949,06-Aug-19,Consumable Materials,C & W BERRY LTD,BUILDING MATS&SVCS GEN,630.5
Lancs Fire & Rescue Service,E6123,Fire,105869950,06-Aug-19,Agency Staff,OFFICE ANGELS LIMITED,HR TEMPOARY&AGENCY STAFF,512.43
Lancs Fire & Rescue Service,E6123,Fire,105869953,06-Aug-19,Agency Staff,OFFICE ANGELS LIMITED,HR TEMPOARY&AGENCY STAFF,468.13
Lancs Fire & Rescue Service,E6123,Fire,105870577,13-Aug-19,Gas,CORONA ENERGY,UTILITIES GAS,685.41
Lancs Fire & Rescue Service,E6123,Fire,105870580,13-Aug-19,Gas,CORONA ENERGY,UTILITIES GAS,"1,540.32"
Lancs Fire & Rescue Service,E6123,Fire,105870581,13-Aug-19,Gas,CORONA ENERGY,UTILITIES GAS,694.08
Lancs Fire & Rescue Service,E6123,Fire,105870585,13-Aug-19,Gas,CORONA ENERGY,UTILITIES GAS,533.16
Lancs Fire & Rescue Service,E6123,Fire,105870597,06-Aug-19,Water,WATER PLUS LTD,UTILITIES WATER,"1,314.20"
Lancs Fire & Rescue Service,E6123,Fire,105870598,06-Aug-19,Water,WATER PLUS LTD,UTILITIES WATER,511.02
Lancs Fire & Rescue Service,E6123,Fire,105870599,06-Aug-19,Water,WATER PLUS LTD,UTILITIES WATER,"1,042.30"
Lancs Fire & Rescue Service,E6123,Fire,105870636,06-Aug-19,Vehicle & Plant R&M (External),JAMES HART (CHORLEY) LTD,TRANSPORT MAINTENANCE,"1,716.90"
Lancs Fire & Rescue Service,E6123,Fire,105870639,09-Aug-19,Vehicle & Plant R&M (External),OTRA LTD,VEHICLES MAINTENANCE,706.54
Lancs Fire & Rescue Service,E6123,Fire,105870646,16-Aug-19,Vehicle & Plant R&M (External),OTRA LTD,VEHICLES MAINTENANCE,"1,096.00"
Lancs Fire & Rescue Service,E6123,Fire,105870647,20-Aug-19,Vehicle & Plant R&M (External),OTRA LTD,VEHICLES MAINTENANCE,"1,096.00"
Lancs Fire & Rescue Service,E6123,Fire,105870648,06-Aug-19,Diesel,STANDARD FUEL OILS LTD,UTILITIES HEATING OIL,"2,590.50"
Lancs Fire & Rescue Service,E6123,Fire,105871276,06-Aug-19,Stocks And Stores - General,FIREANGEL SAFETY TECHNOLOGY LTD,HEALTH&SAFETY PRODUCTS,"13,600.00"
Lancs Fire & Rescue Service,E6123,Fire,105871278,06-Aug-19,Stocks And Stores - General,THOMAS KNEALE & CO LIMITED,CATERING EQPMT&UTENSILS,"2,189.20"
Lancs Fire & Rescue Service,E6123,Fire,105871282,06-Aug-19,Stocks And Stores - General,AQUACHECK ENGINEERING LTD,BUILDING MATS&SVCS GEN,"1,818.00"
Lancs Fire & Rescue Service,E6123,Fire,105871283,06-Aug-19,Postage & Carriage,WRAY BROS LIMITED,CLEANING&JANITORIAL SVCS,1.74
Lancs Fire & Rescue Service,E6123,Fire,105871283,06-Aug-19,Stocks And Stores - General,WRAY BROS LIMITED,CLEANING&JANITORIAL SVCS,"1,144.64"
Lancs Fire & Rescue Service,E6123,Fire,105871286,06-Aug-19,Postage & Carriage,VERNON MORRIS UTILITY SOLUTIONS LIMITED,ENVIRON TEST & INSPECTION,20
Lancs Fire & Rescue Service,E6123,Fire,105871286,06-Aug-19,Stocks And Stores - General,VERNON MORRIS UTILITY SOLUTIONS LIMITED,ENVIRON TEST & INSPECTION,523.02
Lancs Fire & Rescue Service,E6123,Fire,105871291,06-Aug-19,Stocks And Stores - General,ALSICO LAUCUBA LTD,CLOTHING PERSONAL,534.64
Lancs Fire & Rescue Service,E6123,Fire,105871292,06-Aug-19,Postage & Carriage,SAFEQUIP LTD,HEALTH&SAFETY PRODUCTS,10
Lancs Fire & Rescue Service,E6123,Fire,105871292,06-Aug-19,Stocks And Stores - General,SAFEQUIP LTD,HEALTH&SAFETY PRODUCTS,475
Lancs Fire & Rescue Service,E6123,Fire,105871293,06-Aug-19,Stocks And Stores - General,GOLIATH FOOTWEAR LTD,CLOTHING SAFETYFOOTWARE,"3,112.64"
Lancs Fire & Rescue Service,E6123,Fire,105871295,06-Aug-19,Stocks And Stores - General,NPS SHOES LTD,CLOTHING PERSONAL,667
Lancs Fire & Rescue Service,E6123,Fire,105871296,06-Aug-19,Stocks And Stores - General,NPS SHOES LTD,CLOTHING PERSONAL,667
Lancs Fire & Rescue Service,E6123,Fire,105871300,06-Aug-19,Stocks And Stores - General,CPC (COMBINED PRECISION COMPONENTS) PLC,BUILDING MATS&SVCS ELEC,988
Lancs Fire & Rescue Service,E6123,Fire,105871302,06-Aug-19,Stocks And Stores - General,AUTOMOTIVE TOOLS & SUPPLIES LTD,BUILDING MATS&SVCS GEN,644.88
Lancs Fire & Rescue Service,E6123,Fire,105871329,06-Aug-19,Fire - Operational Equipment,TRAFALGAR CLEANING EQUIPMENT LTD,CLEANING&JAN LAUNDRYEQT,"1,829.00"
Lancs Fire & Rescue Service,E6123,Fire,105871330,13-Dec-19,Professional Services,UCLAN BUSINESS SERVICES LTD,HR TRAINING&CONFERENCES,"3,013.20"
Lancs Fire & Rescue Service,E6123,Fire,105871334,06-Aug-19,Works Fees (External),BRADSHAW GASS & HOPE LLP,CONSULTANCY CONSTRUCTION,"3,097.50"
Lancs Fire & Rescue Service,E6123,Fire,105871335,13-Aug-19,Works Fees (External),BRADSHAW GASS & HOPE LLP,CONSULTANCY CONSTRUCTION,"2,531.25"
Lancs Fire & Rescue Service,E6123,Fire,105871336,06-Aug-19,Works Fees (External),BRADSHAW GASS & HOPE LLP,CONSULTANCY CONSTRUCTION,"4,866.24"
Lancs Fire & Rescue Service,E6123,Fire,105871337,13-Aug-19,Works Fees (External),BRADSHAW GASS & HOPE LLP,CONSULTANCY CONSTRUCTION,"4,597.50"
Lancs Fire & Rescue Service,E6123,Fire,105871341,06-Aug-19,Programmed Work,RED ROSE BUILDING MAINTENANCE,BUILDING MATS&SVCS GEN,494.8
Lancs Fire & Rescue Service,E6123,Fire,105871341,06-Aug-19,Programmed Work,RED ROSE BUILDING MAINTENANCE,BUILDING MATS&SVCS GEN,50
Lancs Fire & Rescue Service,E6123,Fire,105871349,06-Aug-19,Programmed Work,WILLIAM PYE LTD,HORTICULTURAL SERVICES,"14,080.00"
Lancs Fire & Rescue Service,E6123,Fire,105871354,06-Aug-19,Course Providers,LEGAL EXPERIENCE TRAINING LTD,LEGAL SVCS ADVOCACY,204
Lancs Fire & Rescue Service,E6123,Fire,105871354,06-Aug-19,Course Providers,LEGAL EXPERIENCE TRAINING LTD,LEGAL SVCS ADVOCACY,120
Lancs Fire & Rescue Service,E6123,Fire,105871354,06-Aug-19,Course Providers,LEGAL EXPERIENCE TRAINING LTD,LEGAL SVCS ADVOCACY,"1,560.00"
Lancs Fire & Rescue Service,E6123,Fire,105871364,06-Aug-19,Chg - Audit Fees (Internal),LANCASHIRE COUNTY COUNCIL,LOCAL GOVERNMENT,650
Lancs Fire & Rescue Service,E6123,Fire,105871364,06-Aug-19,Chg - Audit Fees (Internal),LANCASHIRE COUNTY COUNCIL,LOCAL GOVERNMENT,"12,675.00"
Lancs Fire & Rescue Service,E6123,Fire,105871412,09-Aug-19,Fire Mobs Network Maint,LARS COMMUNICATION,ICT MAINTENANCE,"1,200.00"
Lancs Fire & Rescue Service,E6123,Fire,105871548,23-Aug-19,Programmed Work,MEL GREEN CONSTRUCTION LTD,HIGHWAY BITUMEN&SURFACE,"22,105.00"
Lancs Fire & Rescue Service,E6123,Fire,105871551,28-Aug-19,Repairs & Maintenance General,DLP SERVICES NORTHERN LTD,BUILDING MATS&SVCS GEN,489.19
Lancs Fire & Rescue Service,E6123,Fire,105871554,06-Aug-19,Repairs & Maintenance General,PDP PROPERTY SERVICES LTD,BUILDING MATS&SVCS PAINT,649
Lancs Fire & Rescue Service,E6123,Fire,105871555,06-Aug-19,Premises Materials & Equipment,PDP PROPERTY SERVICES LTD,BUILDING MATS&SVCS PAINT,"7,670.00"
Lancs Fire & Rescue Service,E6123,Fire,105871556,06-Aug-19,Programmed Work,PDP PROPERTY SERVICES LTD,BUILDING MATS&SVCS PAINT,856.9
Lancs Fire & Rescue Service,E6123,Fire,105871557,23-Aug-19,Repairs & Maintenance General,A & D DRAIN SERVICES LTD,BUILDING MATS&SVCS PLUMB,696
Lancs Fire & Rescue Service,E6123,Fire,105871558,06-Aug-19,Printing - External,KLEER PRINT,FACIL&MGMT REPROGRAPHICS,595
Lancs Fire & Rescue Service,E6123,Fire,105871558,06-Aug-19,Printing - External,KLEER PRINT,FACIL&MGMT REPROGRAPHICS,20
Lancs Fire & Rescue Service,E6123,Fire,105871604,06-Aug-19,Fire - Operational Equipment,SOUTHCOMBE BROTHERS LTD,CLOTHING PERSONAL,-13
Lancs Fire & Rescue Service,E6123,Fire,105871604,06-Aug-19,Fire - Operational Equipment,SOUTHCOMBE BROTHERS LTD,CLOTHING PERSONAL,546
Lancs Fire & Rescue Service,E6123,Fire,105871604,06-Aug-19,Fire - Operational Equipment,SOUTHCOMBE BROTHERS LTD,CLOTHING PERSONAL,-39
Lancs Fire & Rescue Service,E6123,Fire,105871604,06-Aug-19,Fire - Operational Equipment,SOUTHCOMBE BROTHERS LTD,CLOTHING PERSONAL,126
Lancs Fire & Rescue Service,E6123,Fire,105871604,06-Aug-19,Fire - Operational Equipment,SOUTHCOMBE BROTHERS LTD,CLOTHING PERSONAL,42
Lancs Fire & Rescue Service,E6123,Fire,105871604,06-Aug-19,Fire - Operational Equipment,SOUTHCOMBE BROTHERS LTD,CLOTHING PERSONAL,-169
Lancs Fire & Rescue Service,E6123,Fire,105871605,06-Aug-19,Computer Software,SOFTCAT LTD,ICT CALL SYSTEMS,"30,381.00"
Lancs Fire & Rescue Service,E6123,Fire,105871605,06-Aug-19,Computer Software,SOFTCAT LTD,ICT CALL SYSTEMS,"6,091.20"
Lancs Fire & Rescue Service,E6123,Fire,105871605,06-Aug-19,Computer Software,SOFTCAT LTD,ICT CALL SYSTEMS,"1,495.75"
Lancs Fire & Rescue Service,E6123,Fire,105871605,06-Aug-19,Computer Software,SOFTCAT LTD,ICT CALL SYSTEMS,"31,557.20"
Lancs Fire & Rescue Service,E6123,Fire,105871605,06-Aug-19,Computer Software,SOFTCAT LTD,ICT CALL SYSTEMS,155.66
Lancs Fire & Rescue Service,E6123,Fire,105871605,06-Aug-19,Computer Software,SOFTCAT LTD,ICT CALL SYSTEMS,"34,956.00"
Lancs Fire & Rescue Service,E6123,Fire,105871605,06-Aug-19,Computer Software,SOFTCAT LTD,ICT CALL SYSTEMS,42.96
Lancs Fire & Rescue Service,E6123,Fire,105871605,06-Aug-19,Computer Software,SOFTCAT LTD,ICT CALL SYSTEMS,215
Lancs Fire & Rescue Service,E6123,Fire,105871605,06-Aug-19,Computer Software,SOFTCAT LTD,ICT CALL SYSTEMS,"10,704.00"
Lancs Fire & Rescue Service,E6123,Fire,105871605,06-Aug-19,Computer Software,SOFTCAT LTD,ICT CALL SYSTEMS,"4,632.00"
Lancs Fire & Rescue Service,E6123,Fire,105871605,06-Aug-19,Computer Software,SOFTCAT LTD,ICT CALL SYSTEMS,"10,269.00"
Lancs Fire & Rescue Service,E6123,Fire,105871605,06-Aug-19,Computer Software,SOFTCAT LTD,ICT CALL SYSTEMS,11.39
Lancs Fire & Rescue Service,E6123,Fire,105871605,06-Aug-19,Computer Software,SOFTCAT LTD,ICT CALL SYSTEMS,"1,067.15"
Lancs Fire & Rescue Service,E6123,Fire,105871605,06-Aug-19,Computer Software,SOFTCAT LTD,ICT CALL SYSTEMS,"3,483.16"
Lancs Fire & Rescue Service,E6123,Fire,105871605,06-Aug-19,Computer Software,SOFTCAT LTD,ICT CALL SYSTEMS,"3,951.00"
Lancs Fire & Rescue Service,E6123,Fire,105871605,06-Aug-19,Computer Software,SOFTCAT LTD,ICT CALL SYSTEMS,22.36
Lancs Fire & Rescue Service,E6123,Fire,105871605,06-Aug-19,Computer Software,SOFTCAT LTD,ICT CALL SYSTEMS,"20,650.94"
Lancs Fire & Rescue Service,E6123,Fire,105871605,06-Aug-19,Computer Software,SOFTCAT LTD,ICT CALL SYSTEMS,"2,965.82"
Lancs Fire & Rescue Service,E6123,Fire,105871605,06-Aug-19,Computer Software,SOFTCAT LTD,ICT CALL SYSTEMS,903.3
Lancs Fire & Rescue Service,E6123,Fire,105871605,06-Aug-19,Computer Software,SOFTCAT LTD,ICT CALL SYSTEMS,67.63
Lancs Fire & Rescue Service,E6123,Fire,105871605,06-Aug-19,Computer Software,SOFTCAT LTD,ICT CALL SYSTEMS,39.87
Lancs Fire & Rescue Service,E6123,Fire,105871605,06-Aug-19,Computer Software,SOFTCAT LTD,ICT CALL SYSTEMS,53.21
Lancs Fire & Rescue Service,E6123,Fire,105871605,06-Aug-19,Computer Software,SOFTCAT LTD,ICT CALL SYSTEMS,36.12
Lancs Fire & Rescue Service,E6123,Fire,105871605,06-Aug-19,Computer Software,SOFTCAT LTD,ICT CALL SYSTEMS,"4,476.87"
Lancs Fire & Rescue Service,E6123,Fire,105871605,06-Aug-19,Computer Software,SOFTCAT LTD,ICT CALL SYSTEMS,175.74
Lancs Fire & Rescue Service,E6123,Fire,105871605,06-Aug-19,Computer Software,SOFTCAT LTD,ICT CALL SYSTEMS,101.32
Lancs Fire & Rescue Service,E6123,Fire,105871605,06-Aug-19,Computer Software,SOFTCAT LTD,ICT CALL SYSTEMS,93.2
Lancs Fire & Rescue Service,E6123,Fire,105871605,06-Aug-19,Computer Software,SOFTCAT LTD,ICT CALL SYSTEMS,"20,700.00"
Lancs Fire & Rescue Service,E6123,Fire,105871607,13-Aug-19,Vehicle Purchase,SCENESAFE,POLICING,8.25
Lancs Fire & Rescue Service,E6123,Fire,105871607,13-Aug-19,Vehicle Purchase,SCENESAFE,POLICING,"1,050.00"
Lancs Fire & Rescue Service,E6123,Fire,105871607,13-Aug-19,Vehicle Purchase,SCENESAFE,POLICING,10
Lancs Fire & Rescue Service,E6123,Fire,105871608,23-Aug-19,Medical Fees,ELITE BREATHLESSNESS LTD,HEALTH&SAFETY SERVICES,800
Lancs Fire & Rescue Service,E6123,Fire,105872474,13-Aug-19,Water,WATER PLUS LTD,UTILITIES WATER,"1,037.83"
Lancs Fire & Rescue Service,E6123,Fire,105872480,13-Aug-19,Water,WATER PLUS LTD,UTILITIES WATER,557.33
Lancs Fire & Rescue Service,E6123,Fire,105872481,13-Aug-19,Water,WATER PLUS LTD,UTILITIES WATER,"1,379.72"
Lancs Fire & Rescue Service,E6123,Fire,105872482,13-Aug-19,Water,WATER PLUS LTD,UTILITIES WATER,546.88
Lancs Fire & Rescue Service,E6123,Fire,105872484,13-Aug-19,Vehicle & Plant R&M (External),LANCASHIRE DAF,VEHICLES HEAVY CONST,583.04
Lancs Fire & Rescue Service,E6123,Fire,105872486,23-Aug-19,Vehicle & Plant R&M (External),STEADPLAN LTD,VEHICLES MAINTENANCE,750
Lancs Fire & Rescue Service,E6123,Fire,105872488,13-Aug-19,Vehicle & Plant R&M (External),LANCASHIRE DAF,VEHICLES HEAVY CONST,491.78
Lancs Fire & Rescue Service,E6123,Fire,105872493,30-Aug-19,Tyres,GOODYEAR DUNLOP TYRES UK LTD,VEHICLES MAINTENANCE,"1,039.18"
Lancs Fire & Rescue Service,E6123,Fire,105872496,30-Aug-19,Tyres,GOODYEAR DUNLOP TYRES UK LTD,VEHICLES MAINTENANCE,"4,015.33"
Lancs Fire & Rescue Service,E6123,Fire,105872508,13-Aug-19,Vehicle & Plant R&M (External),ROSENBAUER UK LTD,FRS SPECIALIST VEHICLES,781.03
Lancs Fire & Rescue Service,E6123,Fire,105872514,13-Aug-19,Combined Liability Policy,HAMPSON HUGHES,LEGAL SVCS ADVOCACY,"35,000.00"
Lancs Fire & Rescue Service,E6123,Fire,105872669,06-Aug-19,Protective Clothing,ALTBERG LTD,CLOTHING PERSONAL,104.24
Lancs Fire & Rescue Service,E6123,Fire,105872669,06-Aug-19,Protective Clothing,ALTBERG LTD,CLOTHING PERSONAL,104.24
Lancs Fire & Rescue Service,E6123,Fire,105872669,06-Aug-19,Protective Clothing,ALTBERG LTD,CLOTHING PERSONAL,208.48
Lancs Fire & Rescue Service,E6123,Fire,105872669,06-Aug-19,Protective Clothing,ALTBERG LTD,CLOTHING PERSONAL,208.48
Lancs Fire & Rescue Service,E6123,Fire,105876631,09-Aug-19,Fire - Op Equip Repairs,OTRA LTD,VEHICLES MAINTENANCE,796
Lancs Fire & Rescue Service,E6123,Fire,105876634,09-Aug-19,Course Providers,LYON EQUIPMENT LTD,CLOTHING PROTECTIVE,"1,520.00"
Lancs Fire & Rescue Service,E6123,Fire,105876634,09-Aug-19,Course Providers,LYON EQUIPMENT LTD,CLOTHING PROTECTIVE,"1,520.00"
Lancs Fire & Rescue Service,E6123,Fire,105876638,09-Aug-19,Fire - Breathing Apparatus,RESPIREX INT LIMITED,DOMESTIC GDS:COMMERCIAL,"7,410.00"
Lancs Fire & Rescue Service,E6123,Fire,105876646,09-Aug-19,Fire - Hydrants,UNITED UTILITIES WATER PLC,UTILITIES WATER,570.04
Lancs Fire & Rescue Service,E6123,Fire,105876820,13-Aug-19,Stationery,VOW EUROPE LTD,STATIONERY PAPER,"1,488.69"
Lancs Fire & Rescue Service,E6123,Fire,105876994,13-Aug-19,Fire Mobs Airwave costs,HOME OFFICE,GOVERNMENT,"1,787.11"
Lancs Fire & Rescue Service,E6123,Fire,105876994,13-Aug-19,Fire Mobs Airwave costs,HOME OFFICE,GOVERNMENT,"41,162.47"
Lancs Fire & Rescue Service,E6123,Fire,105876995,13-Aug-19,Photocopying,XEROX (UK) LTD,FACIL&MGMT PRINTING,"3,910.89"
Lancs Fire & Rescue Service,E6123,Fire,105876995,13-Aug-19,Photocopying,XEROX (UK) LTD,FACIL&MGMT PRINTING,"14,188.47"
Lancs Fire & Rescue Service,E6123,Fire,105876996,13-Dec-19,Professional Services,UCLAN BUSINESS SERVICES LTD,HR TRAINING&CONFERENCES,"-3,013.20"
Lancs Fire & Rescue Service,E6123,Fire,105876998,13-Aug-19,Consumable Materials,C & W BERRY LTD,BUILDING MATS&SVCS GEN,578.5
Lancs Fire & Rescue Service,E6123,Fire,105876998,13-Aug-19,Repairs & Maintenance General,C & W BERRY LTD,BUILDING MATS&SVCS GEN,86.58
Lancs Fire & Rescue Service,E6123,Fire,105876998,13-Aug-19,Repairs & Maintenance General,C & W BERRY LTD,BUILDING MATS&SVCS GEN,12.12
Lancs Fire & Rescue Service,E6123,Fire,105876998,13-Aug-19,Repairs & Maintenance General,C & W BERRY LTD,BUILDING MATS&SVCS GEN,13.14
Lancs Fire & Rescue Service,E6123,Fire,105877000,13-Aug-19,Fire - Training Props,KFT FIRE TRAINER GMBH,FRS SPECIALIST EQUIPMENT,"1,429.31"
Lancs Fire & Rescue Service,E6123,Fire,105877000,04-Oct-19,Fire - Training Props,KFT FIRE TRAINER GMBH,FRS SPECIALIST EQUIPMENT,"-1,429.31"
Lancs Fire & Rescue Service,E6123,Fire,105877380,28-Aug-19,ICT Support Services (External),SOFTCAT LTD,ICT CALL SYSTEMS,"2,000.00"
Lancs Fire & Rescue Service,E6123,Fire,105877380,28-Aug-19,ICT Support Services (External),SOFTCAT LTD,ICT CALL SYSTEMS,-500
Lancs Fire & Rescue Service,E6123,Fire,105877389,03-Sep-19,Programmed Work,A & D DRAIN SERVICES LTD,BUILDING MATS&SVCS PLUMB,596
Lancs Fire & Rescue Service,E6123,Fire,105877417,16-Aug-19,Consumable Materials,RECYCLING LIVES LTD,ENVIRON WASTE MGMT,440
Lancs Fire & Rescue Service,E6123,Fire,105877419,16-Aug-19,Mobile Phone Costs,O2 (UK) LTD,ICT TELECOMMS MOBILE,"4,604.12"
Lancs Fire & Rescue Service,E6123,Fire,105877420,16-Aug-19,Professional Services,WALMSLEY ASSOCIATES LTD,CONSULTANCY CONSTRUCTION,"2,740.00"
Lancs Fire & Rescue Service,E6123,Fire,105877421,28-Aug-19,Programmed Work,MEL GREEN CONSTRUCTION LTD,HIGHWAY BITUMEN&SURFACE,"1,500.00"
Lancs Fire & Rescue Service,E6123,Fire,105877423,16-Aug-19,Programmed Work,R H WELLS ELECTRICAL LTD,BUILDING MATS&SVCS ELEC,"1,559.00"
Lancs Fire & Rescue Service,E6123,Fire,105877424,16-Aug-19,Repairs & Maintenance General,RED ROSE BLINDS,BUILDING MATS&SVCS GEN,"2,580.50"
Lancs Fire & Rescue Service,E6123,Fire,105877426,16-Aug-19,Repairs & Maintenance General,TEMPERATURE CONTROL LTD,WORKS BUILDINGS,695.44
Lancs Fire & Rescue Service,E6123,Fire,105877428,16-Aug-19,Programmed Work,WILLIAM PYE LTD,HORTICULTURAL SERVICES,"5,550.00"
Lancs Fire & Rescue Service,E6123,Fire,105877429,16-Aug-19,Fire - Op Equip Repairs,CIVIL DEFENCE SUPPLY LTD,FACIL&MGMT SECURITY,527.98
Lancs Fire & Rescue Service,E6123,Fire,105877432,16-Aug-19,Computer Software,BYTES SOFTWARE SERVICES LTD,ICT SOFTWARE,"1,278.57"
Lancs Fire & Rescue Service,E6123,Fire,105877433,16-Aug-19,Exchange Phones,MAINTEL EUROPE LTD,ICT TELECOMMS FIXED,"2,276.21"
Lancs Fire & Rescue Service,E6123,Fire,105877435,16-Aug-19,Equipment General,ARGOS BUSINESS SOLUTIONS,FACIL&MGMT RETAIL,41.66
Lancs Fire & Rescue Service,E6123,Fire,105877435,16-Aug-19,Equipment General,ARGOS BUSINESS SOLUTIONS,FACIL&MGMT RETAIL,16.66
Lancs Fire & Rescue Service,E6123,Fire,105877435,16-Aug-19,Equipment General,ARGOS BUSINESS SOLUTIONS,FACIL&MGMT RETAIL,274.99
Lancs Fire & Rescue Service,E6123,Fire,105877435,16-Aug-19,Equipment General,ARGOS BUSINESS SOLUTIONS,FACIL&MGMT RETAIL,3.29
Lancs Fire & Rescue Service,E6123,Fire,105877435,16-Aug-19,Equipment General,ARGOS BUSINESS SOLUTIONS,FACIL&MGMT RETAIL,3.29
Lancs Fire & Rescue Service,E6123,Fire,105877435,16-Aug-19,Other Expenses,ARGOS BUSINESS SOLUTIONS,FACIL&MGMT RETAIL,83.32
Lancs Fire & Rescue Service,E6123,Fire,105877435,16-Aug-19,Other Expenses,ARGOS BUSINESS SOLUTIONS,FACIL&MGMT RETAIL,108.29
Lancs Fire & Rescue Service,E6123,Fire,105877435,16-Aug-19,Other Expenses,ARGOS BUSINESS SOLUTIONS,FACIL&MGMT RETAIL,3.29
Lancs Fire & Rescue Service,E6123,Fire,105877437,16-Aug-19,Catering Service (External),BRAKE BROS LTD,CATERING FOOD&BEVERAGE,574.56
Lancs Fire & Rescue Service,E6123,Fire,105877448,28-Aug-19,Catering Service (External),BRAKE BROS LTD,CATERING FOOD&BEVERAGE,606.94
Lancs Fire & Rescue Service,E6123,Fire,105879509,09-Aug-19,Course Providers,PINKSTON WATERSPORTS,TRAINING,630
Lancs Fire & Rescue Service,E6123,Fire,105879509,09-Aug-19,Course Providers,PINKSTON WATERSPORTS,TRAINING,117
Lancs Fire & Rescue Service,E6123,Fire,105879509,09-Aug-19,Course Providers,PINKSTON WATERSPORTS,TRAINING,30
Lancs Fire & Rescue Service,E6123,Fire,105879509,09-Aug-19,Course Providers,PINKSTON WATERSPORTS,TRAINING,85
Lancs Fire & Rescue Service,E6123,Fire,105879509,09-Aug-19,Course Providers,PINKSTON WATERSPORTS,TRAINING,100
Lancs Fire & Rescue Service,E6123,Fire,105879585,09-Aug-19,Course Providers,SILVESTERS FARM,TRAINING,350
Lancs Fire & Rescue Service,E6123,Fire,105879585,09-Aug-19,Course Providers,SILVESTERS FARM,TRAINING,"1,050.00"
Lancs Fire & Rescue Service,E6123,Fire,105879585,09-Aug-19,Training Expenses (External),SILVESTERS FARM,TRAINING,"2,450.00"
Lancs Fire & Rescue Service,E6123,Fire,105879585,09-Aug-19,Training Expenses (External),SILVESTERS FARM,TRAINING,350
Lancs Fire & Rescue Service,E6123,Fire,105879595,05-Nov-19,Clothing & Uniform,KEELA INTERNATIONAL LTD,CLOTHING PERSONAL,-20
Lancs Fire & Rescue Service,E6123,Fire,105879595,05-Nov-19,Clothing & Uniform,KEELA INTERNATIONAL LTD,CLOTHING PERSONAL,20
Lancs Fire & Rescue Service,E6123,Fire,105879595,05-Nov-19,Clothing & Uniform,KEELA INTERNATIONAL LTD,CLOTHING PERSONAL,22.3
Lancs Fire & Rescue Service,E6123,Fire,105879595,05-Nov-19,Clothing & Uniform,KEELA INTERNATIONAL LTD,CLOTHING PERSONAL,24
Lancs Fire & Rescue Service,E6123,Fire,105879595,05-Nov-19,Clothing & Uniform,KEELA INTERNATIONAL LTD,CLOTHING PERSONAL,20
Lancs Fire & Rescue Service,E6123,Fire,105879595,05-Nov-19,Clothing & Uniform,KEELA INTERNATIONAL LTD,CLOTHING PERSONAL,24
Lancs Fire & Rescue Service,E6123,Fire,105879595,05-Nov-19,Clothing & Uniform,KEELA INTERNATIONAL LTD,CLOTHING PERSONAL,96
Lancs Fire & Rescue Service,E6123,Fire,105879595,05-Nov-19,Clothing & Uniform,KEELA INTERNATIONAL LTD,CLOTHING PERSONAL,24
Lancs Fire & Rescue Service,E6123,Fire,105879595,05-Nov-19,Clothing & Uniform,KEELA INTERNATIONAL LTD,CLOTHING PERSONAL,20
Lancs Fire & Rescue Service,E6123,Fire,105879595,05-Nov-19,Clothing & Uniform,KEELA INTERNATIONAL LTD,CLOTHING PERSONAL,20
Lancs Fire & Rescue Service,E6123,Fire,105879595,05-Nov-19,Clothing & Uniform,KEELA INTERNATIONAL LTD,CLOTHING PERSONAL,178.4
Lancs Fire & Rescue Service,E6123,Fire,105879595,05-Nov-19,Clothing & Uniform,KEELA INTERNATIONAL LTD,CLOTHING PERSONAL,133.8
Lancs Fire & Rescue Service,E6123,Fire,105879595,05-Nov-19,Clothing & Uniform,KEELA INTERNATIONAL LTD,CLOTHING PERSONAL,22.3
Lancs Fire & Rescue Service,E6123,Fire,105879595,05-Nov-19,Clothing & Uniform,KEELA INTERNATIONAL LTD,CLOTHING PERSONAL,22.3
Lancs Fire & Rescue Service,E6123,Fire,105879605,09-Aug-19,Fire - Operational Equipment,MSA BRITAIN LIMITED,HEALTH&SAFETY PRODUCTS,473.2
Lancs Fire & Rescue Service,E6123,Fire,105879606,30-Aug-19,Diesel,ALLSTAR BUSINESS SOLUTIONS LTD,VEHICLES FUEL,"18,861.85"
Lancs Fire & Rescue Service,E6123,Fire,105879606,30-Aug-19,Petrol,ALLSTAR BUSINESS SOLUTIONS LTD,VEHICLES FUEL,"1,107.36"
Lancs Fire & Rescue Service,E6123,Fire,105882023,09-Aug-19,Stocks And Stores - General,COMPASS FUEL OILS LTD,VEHICLES MAINTENANCE,720
Lancs Fire & Rescue Service,E6123,Fire,105882025,09-Aug-19,Stocks And Stores - General,SAANRO INTERNATIONAL LTD,CLEANING&JANITORIAL MATS,563
Lancs Fire & Rescue Service,E6123,Fire,105882027,09-Aug-19,Stocks And Stores - General,SOUTHCOMBE BROTHERS LTD,CLOTHING PERSONAL,"2,243.25"
Lancs Fire & Rescue Service,E6123,Fire,105882032,09-Aug-19,Stocks And Stores - General,DRAEGER SAFETY UK LTD,HEALTH&SAFETY PRODUCTS,486
Lancs Fire & Rescue Service,E6123,Fire,105882035,09-Aug-19,Stocks And Stores - General,SLINGERS 1858 LTD,BUILDING MATS&SVCS GEN,"1,423.00"
Lancs Fire & Rescue Service,E6123,Fire,105882038,09-Aug-19,Stocks And Stores - General,NPS SHOES LTD,CLOTHING PERSONAL,451.5
Lancs Fire & Rescue Service,E6123,Fire,105882043,09-Aug-19,Stocks And Stores - General,AUTOMOTIVE TOOLS & SUPPLIES LTD,BUILDING MATS&SVCS GEN,660
Lancs Fire & Rescue Service,E6123,Fire,105883636,13-Aug-19,Repairs & Maintenance General,WEST LANCASHIRE ELECTRICAL CONTRACTORS LTD,BUILDING MATS&SVCS ELEC,821.82
Lancs Fire & Rescue Service,E6123,Fire,105883641,13-Aug-19,Repairs & Maintenance General,RED ROSE BUILDING MAINTENANCE,BUILDING MATS&SVCS GEN,160
Lancs Fire & Rescue Service,E6123,Fire,105883641,13-Aug-19,Repairs & Maintenance General,RED ROSE BUILDING MAINTENANCE,BUILDING MATS&SVCS GEN,480
Lancs Fire & Rescue Service,E6123,Fire,105883642,30-Aug-19,Repairs & Maintenance General,DLP SERVICES NORTHERN LTD,BUILDING MATS&SVCS GEN,818.82
Lancs Fire & Rescue Service,E6123,Fire,105883645,13-Aug-19,Professional Services,FORBES SOLICITORS,LEGAL SVCS GENERAL,"1,560.00"
Lancs Fire & Rescue Service,E6123,Fire,105883649,03-Sep-19,Professional Services,MERSEYSIDE FIRE & RESCUE AUTHORITY,LOCAL GOVERNMENT,"1,667.33"
Lancs Fire & Rescue Service,E6123,Fire,105883654,13-Aug-19,Professional Services,IKG CONSULTING LIMITED,CONSULTANCY BUSINESS,"2,320.00"
Lancs Fire & Rescue Service,E6123,Fire,105883660,30-Aug-19,Professional Services,REID JONES PARTNERSHIP,CONSULTANCY CONSTRUCTION,"1,700.00"
Lancs Fire & Rescue Service,E6123,Fire,105883662,23-Aug-19,Other Expenses,ARGOS BUSINESS SOLUTIONS,FACIL&MGMT RETAIL,8.32
Lancs Fire & Rescue Service,E6123,Fire,105883662,23-Aug-19,Other Expenses,ARGOS BUSINESS SOLUTIONS,FACIL&MGMT RETAIL,58.32
Lancs Fire & Rescue Service,E6123,Fire,105883662,23-Aug-19,Other Expenses,ARGOS BUSINESS SOLUTIONS,FACIL&MGMT RETAIL,150
Lancs Fire & Rescue Service,E6123,Fire,105883662,23-Aug-19,Other Expenses,ARGOS BUSINESS SOLUTIONS,FACIL&MGMT RETAIL,30
Lancs Fire & Rescue Service,E6123,Fire,105883662,23-Aug-19,Other Expenses,ARGOS BUSINESS SOLUTIONS,FACIL&MGMT RETAIL,26.66
Lancs Fire & Rescue Service,E6123,Fire,105883662,23-Aug-19,Other Expenses,ARGOS BUSINESS SOLUTIONS,FACIL&MGMT RETAIL,79.16
Lancs Fire & Rescue Service,E6123,Fire,105883662,23-Aug-19,Other Expenses,ARGOS BUSINESS SOLUTIONS,FACIL&MGMT RETAIL,199.17
Lancs Fire & Rescue Service,E6123,Fire,105883662,23-Aug-19,Other Expenses,ARGOS BUSINESS SOLUTIONS,FACIL&MGMT RETAIL,124.98
Lancs Fire & Rescue Service,E6123,Fire,105883662,23-Aug-19,Other Expenses,ARGOS BUSINESS SOLUTIONS,FACIL&MGMT RETAIL,37.47
Lancs Fire & Rescue Service,E6123,Fire,105883662,23-Aug-19,Other Expenses,ARGOS BUSINESS SOLUTIONS,FACIL&MGMT RETAIL,16.45
Lancs Fire & Rescue Service,E6123,Fire,105883662,23-Aug-19,Other Expenses,ARGOS BUSINESS SOLUTIONS,FACIL&MGMT RETAIL,99.98
Lancs Fire & Rescue Service,E6123,Fire,105883662,23-Aug-19,Other Expenses,ARGOS BUSINESS SOLUTIONS,FACIL&MGMT RETAIL,29.17
Lancs Fire & Rescue Service,E6123,Fire,105883662,23-Aug-19,Other Expenses,ARGOS BUSINESS SOLUTIONS,FACIL&MGMT RETAIL,27.49
Lancs Fire & Rescue Service,E6123,Fire,105883665,13-Aug-19,Agency Staff,OFFICE ANGELS LIMITED,HR TEMPOARY&AGENCY STAFF,512.43
Lancs Fire & Rescue Service,E6123,Fire,105883669,13-Aug-19,Agency Staff,OFFICE ANGELS LIMITED,HR TEMPOARY&AGENCY STAFF,468.13
Lancs Fire & Rescue Service,E6123,Fire,105883673,23-Aug-19,Laundry,BERENDSEN UK LTD,CLEANING&JAN LAUNDRYMAINT,"7,250.31"
Lancs Fire & Rescue Service,E6123,Fire,105887076,13-Aug-19,Vehicle Repairs & Maintenance,LANCASHIRE COUNTY COUNCIL,LOCAL GOVERNMENT,"10,289.24"
Lancs Fire & Rescue Service,E6123,Fire,105887076,13-Aug-19,Vehicle Repairs & Maintenance,LANCASHIRE COUNTY COUNCIL,LOCAL GOVERNMENT,"9,544.35"
Lancs Fire & Rescue Service,E6123,Fire,105887076,13-Aug-19,Vehicle Repairs & Maintenance,LANCASHIRE COUNTY COUNCIL,LOCAL GOVERNMENT,"3,390.15"
Lancs Fire & Rescue Service,E6123,Fire,105887076,13-Aug-19,Vehicle Repairs & Maintenance,LANCASHIRE COUNTY COUNCIL,LOCAL GOVERNMENT,"26,794.01"
Lancs Fire & Rescue Service,E6123,Fire,105887080,13-Aug-19,Spoilt Meals & Other Refreshments,DEREK SMITH T/A DAS ASSOCIATES,CATERING FOOD&BEVERAGE,654
Lancs Fire & Rescue Service,E6123,Fire,105887102,16-Aug-19,Protective Clothing,SAFEQUIP LTD,HEALTH&SAFETY PRODUCTS,10
Lancs Fire & Rescue Service,E6123,Fire,105887102,16-Aug-19,Protective Clothing,SAFEQUIP LTD,HEALTH&SAFETY PRODUCTS,60
Lancs Fire & Rescue Service,E6123,Fire,105887102,16-Aug-19,Protective Clothing,SAFEQUIP LTD,HEALTH&SAFETY PRODUCTS,60
Lancs Fire & Rescue Service,E6123,Fire,105887102,16-Aug-19,Protective Clothing,SAFEQUIP LTD,HEALTH&SAFETY PRODUCTS,60
Lancs Fire & Rescue Service,E6123,Fire,105887102,16-Aug-19,Protective Clothing,SAFEQUIP LTD,HEALTH&SAFETY PRODUCTS,60
Lancs Fire & Rescue Service,E6123,Fire,105887102,16-Aug-19,Protective Clothing,SAFEQUIP LTD,HEALTH&SAFETY PRODUCTS,40
Lancs Fire & Rescue Service,E6123,Fire,105887102,16-Aug-19,Protective Clothing,SAFEQUIP LTD,HEALTH&SAFETY PRODUCTS,353.5
Lancs Fire & Rescue Service,E6123,Fire,105887102,16-Aug-19,Protective Clothing,SAFEQUIP LTD,HEALTH&SAFETY PRODUCTS,52
Lancs Fire & Rescue Service,E6123,Fire,105887102,16-Aug-19,Protective Clothing,SAFEQUIP LTD,HEALTH&SAFETY PRODUCTS,91.75
Lancs Fire & Rescue Service,E6123,Fire,105887102,16-Aug-19,Protective Clothing,SAFEQUIP LTD,HEALTH&SAFETY PRODUCTS,128.45
Lancs Fire & Rescue Service,E6123,Fire,105887108,13-Aug-19,Support for Member Champion,LOMAX PROMO GIFTS,FACIL&MGMT PRINTING,"1,995.00"
Lancs Fire & Rescue Service,E6123,Fire,105889120,16-Aug-19,Support for Member Champion,STONEWALL EQUALITY LTD,CONSULTANCY LEGAL,"2,500.00"
Lancs Fire & Rescue Service,E6123,Fire,105890574,16-Aug-19,Water,WATER PLUS LTD,UTILITIES WATER,"1,140.55"
Lancs Fire & Rescue Service,E6123,Fire,105890579,16-Aug-19,Water,WATER PLUS LTD,UTILITIES WATER,967.24
Lancs Fire & Rescue Service,E6123,Fire,105890583,20-Dec-19,Combined Liability Policy,FORBES SOLICITORS,LEGAL SVCS GENERAL,"3,701.05"
Lancs Fire & Rescue Service,E6123,Fire,105892998,20-Aug-19,Programmed Work,P.G.B ROOFING,BUILDING MATS&SVCS ROOF,800.55
Lancs Fire & Rescue Service,E6123,Fire,105893010,20-Aug-19,Programmed Work,HARVEY ENVIRONMENTAL SERVICES,ENVIRON PEST CONTROL,650
Lancs Fire & Rescue Service,E6123,Fire,105893012,20-Aug-19,Repairs & Maintenance General,LANCASHIRE COUNTY COUNCIL,LOCAL GOVERNMENT,715
Lancs Fire & Rescue Service,E6123,Fire,105895023,30-Aug-19,Protective Clothing,THE OUTDOORS CO,FRS SPECIALIST EQUIPMENT,106.7
Lancs Fire & Rescue Service,E6123,Fire,105895023,30-Aug-19,Protective Clothing,THE OUTDOORS CO,FRS SPECIALIST EQUIPMENT,163.44
Lancs Fire & Rescue Service,E6123,Fire,105895023,30-Aug-19,Protective Clothing,THE OUTDOORS CO,FRS SPECIALIST EQUIPMENT,106
Lancs Fire & Rescue Service,E6123,Fire,105895023,30-Aug-19,Protective Clothing,THE OUTDOORS CO,FRS SPECIALIST EQUIPMENT,207.76
Lancs Fire & Rescue Service,E6123,Fire,105895028,20-Aug-19,Vehicle & Plant R&M (External),THOMAS HARDIE COMMERCIALS LTD,VEHICLES COMMERCIAL,"1,361.93"
Lancs Fire & Rescue Service,E6123,Fire,105895030,20-Aug-19,Vehicle & Plant R&M (External),JAMES HART (CHORLEY) LTD,TRANSPORT MAINTENANCE,"2,641.90"
Lancs Fire & Rescue Service,E6123,Fire,105895032,30-Aug-19,Fire - Op Equip Repairs,OTRA LTD,VEHICLES MAINTENANCE,705
Lancs Fire & Rescue Service,E6123,Fire,105895033,20-Aug-19,Diesel,STANDARD FUEL OILS LTD,UTILITIES HEATING OIL,"6,217.20"
Lancs Fire & Rescue Service,E6123,Fire,105895034,20-Aug-19,Diesel,STANDARD FUEL OILS LTD,UTILITIES HEATING OIL,"2,589.50"
Lancs Fire & Rescue Service,E6123,Fire,105895035,20-Aug-19,Diesel,STANDARD FUEL OILS LTD,UTILITIES HEATING OIL,"2,589.50"
Lancs Fire & Rescue Service,E6123,Fire,105895038,20-Aug-19,Diesel,STANDARD FUEL OILS LTD,UTILITIES HEATING OIL,"2,589.50"
Lancs Fire & Rescue Service,E6123,Fire,105895726,20-Aug-19,Course Providers,TEES BARRAGE INTERNATIONAL,TRAINING,700
Lancs Fire & Rescue Service,E6123,Fire,105895726,20-Aug-19,Course Providers,TEES BARRAGE INTERNATIONAL,TRAINING,700
Lancs Fire & Rescue Service,E6123,Fire,105895726,20-Aug-19,Course Providers,TEES BARRAGE INTERNATIONAL,TRAINING,700
Lancs Fire & Rescue Service,E6123,Fire,105895726,20-Aug-19,Course Providers,TEES BARRAGE INTERNATIONAL,TRAINING,166.8
Lancs Fire & Rescue Service,E6123,Fire,105895737,03-Sep-19,Course Providers,R3 SAFETY & RESCUE LTD,TRAINING,525
Lancs Fire & Rescue Service,E6123,Fire,105895761,28-Aug-19,Computer Software,STONE CREATE LTD,FACIL&MGMT DESIGN&PHOTO,"1,650.00"
Lancs Fire & Rescue Service,E6123,Fire,105895765,20-Aug-19,Professional Services,ST FILLANS MEDICAL CENTRE,MEDICAL SERVICES,"1,926.80"
Lancs Fire & Rescue Service,E6123,Fire,105895768,30-Aug-19,Fire - Op Equip Repairs,OTRA LTD,VEHICLES MAINTENANCE,782.35
Lancs Fire & Rescue Service,E6123,Fire,105895782,20-Aug-19,Professional Services,AMCAT (UK) LTD,HR PROFESSIONAL&ADVISORY,884.08
Lancs Fire & Rescue Service,E6123,Fire,105895784,20-Aug-19,Professional Services,RICHARD L THOMAS ASSOCIATES LTD,CONSULTANCY BUSINESS,873
Lancs Fire & Rescue Service,E6123,Fire,105895792,10-Sep-19,Programmed Work,DLP SERVICES NORTHERN LTD,BUILDING MATS&SVCS GEN,"1,905.14"
Lancs Fire & Rescue Service,E6123,Fire,105895796,28-Aug-19,Vehicle Purchase,ROSENBAUER UK LTD,FRS SPECIALIST VEHICLES,"484,000.00"
Lancs Fire & Rescue Service,E6123,Fire,105895797,20-Aug-19,Professional Services,REDACTED,TRAINING,"1,085.00"
Lancs Fire & Rescue Service,E6123,Fire,105895797,20-Aug-19,Professional Services,REDACTED,TRAINING,295
Lancs Fire & Rescue Service,E6123,Fire,105895797,20-Aug-19,Professional Services,REDACTED,TRAINING,590
Lancs Fire & Rescue Service,E6123,Fire,105895797,20-Aug-19,Professional Services,REDACTED,TRAINING,272.5
Lancs Fire & Rescue Service,E6123,Fire,105895797,20-Aug-19,Professional Services,REDACTED,TRAINING,"1,542.50"
Lancs Fire & Rescue Service,E6123,Fire,105895797,20-Aug-19,Professional Services,REDACTED,TRAINING,308.5
Lancs Fire & Rescue Service,E6123,Fire,105895797,20-Aug-19,Professional Services,REDACTED,TRAINING,885
Lancs Fire & Rescue Service,E6123,Fire,105895797,20-Aug-19,Professional Services,REDACTED,TRAINING,395
Lancs Fire & Rescue Service,E6123,Fire,105895797,20-Aug-19,Professional Services,REDACTED,TRAINING,295
Lancs Fire & Rescue Service,E6123,Fire,105895797,20-Aug-19,Professional Services,REDACTED,TRAINING,495
Lancs Fire & Rescue Service,E6123,Fire,105895797,20-Aug-19,Professional Services,REDACTED,TRAINING,590
Lancs Fire & Rescue Service,E6123,Fire,105895797,20-Aug-19,Professional Services,REDACTED,TRAINING,495
Lancs Fire & Rescue Service,E6123,Fire,105895817,30-Aug-19,Waste Collection Charges,SUEZ RECYCLING & RECOVERY UK LTD,ENVIRON WASTE MGMT,"2,145.93"
Lancs Fire & Rescue Service,E6123,Fire,105895839,10-Sep-19,Fire - Operational Equipment,MARLBOROUGH COMMUNICATIONS LTD,FRS SPECIALIST EQUIPMENT,305
Lancs Fire & Rescue Service,E6123,Fire,105895839,10-Sep-19,Fire - Operational Equipment,MARLBOROUGH COMMUNICATIONS LTD,FRS SPECIALIST EQUIPMENT,"6,763.00"
Lancs Fire & Rescue Service,E6123,Fire,105895903,20-Aug-19,Agency Staff,OFFICE ANGELS LIMITED,HR TEMPOARY&AGENCY STAFF,-512.43
Lancs Fire & Rescue Service,E6123,Fire,105895904,20-Aug-19,Agency Staff,OFFICE ANGELS LIMITED,HR TEMPOARY&AGENCY STAFF,-512.43
Lancs Fire & Rescue Service,E6123,Fire,105895905,20-Aug-19,Agency Staff,OFFICE ANGELS LIMITED,HR TEMPOARY&AGENCY STAFF,-512.43
Lancs Fire & Rescue Service,E6123,Fire,105895907,20-Aug-19,Agency Staff,OFFICE ANGELS LIMITED,HR TEMPOARY&AGENCY STAFF,525
Lancs Fire & Rescue Service,E6123,Fire,105895912,20-Aug-19,Agency Staff,OFFICE ANGELS LIMITED,HR TEMPOARY&AGENCY STAFF,549.26
Lancs Fire & Rescue Service,E6123,Fire,105895914,20-Aug-19,Agency Staff,OFFICE ANGELS LIMITED,HR TEMPOARY&AGENCY STAFF,549.26
Lancs Fire & Rescue Service,E6123,Fire,105895915,20-Aug-19,Agency Staff,OFFICE ANGELS LIMITED,HR TEMPOARY&AGENCY STAFF,549.26
Lancs Fire & Rescue Service,E6123,Fire,105895917,20-Aug-19,Agency Staff,OFFICE ANGELS LIMITED,HR TEMPOARY&AGENCY STAFF,549.26
Lancs Fire & Rescue Service,E6123,Fire,105895918,20-Aug-19,Agency Staff,OFFICE ANGELS LIMITED,HR TEMPOARY&AGENCY STAFF,549.26
Lancs Fire & Rescue Service,E6123,Fire,105895920,20-Aug-19,Agency Staff,OFFICE ANGELS LIMITED,HR TEMPOARY&AGENCY STAFF,-512.43
Lancs Fire & Rescue Service,E6123,Fire,105895939,20-Aug-19,Agency Staff,OFFICE ANGELS LIMITED,HR TEMPOARY&AGENCY STAFF,-512.43
Lancs Fire & Rescue Service,E6123,Fire,105898836,16-Aug-19,PFI - Capital Charge,MERSEYSIDE FIRE & RESCUE AUTHORITY,LOCAL GOVERNMENT,-732.8
Lancs Fire & Rescue Service,E6123,Fire,105898837,16-Aug-19,PFI - Capital Charge,MERSEYSIDE FIRE & RESCUE AUTHORITY,LOCAL GOVERNMENT,"152,856.69"
Lancs Fire & Rescue Service,E6123,Fire,105900976,20-Aug-19,Computer Software,FORMOTUS INC,ICT SOFTWARE,"46,953.16"
Lancs Fire & Rescue Service,E6123,Fire,105901670,13-Sep-19,Repairs & Maintenance General,WORTHINGTON & GRAHAM OF PRESTON LTD,BUILDING MATS&SVCS GEN,449.22
Lancs Fire & Rescue Service,E6123,Fire,105901673,23-Aug-19,Computer Data Network,MAINTEL EUROPE LTD,ICT TELECOMMS FIXED,"1,800.00"
Lancs Fire & Rescue Service,E6123,Fire,105901674,23-Aug-19,Ext� Adapt� Improv� Etc,J GREENWOOD (BUILDERS) LTD,BUILDING MATS&SVCS GEN,"128,704.19"
Lancs Fire & Rescue Service,E6123,Fire,105901677,23-Aug-19,Repairs & Maintenance General,BID GROUP LTD,BUILDING MATS&SVCS GEN,998.62
Lancs Fire & Rescue Service,E6123,Fire,105901690,03-Sep-19,Fire � Op equip R&D,FIRE HOSETECH LTD,HEALTH&SAFETY PRODUCTS,423.28
Lancs Fire & Rescue Service,E6123,Fire,105901798,06-Sep-19,Electricity,NPOWER,UTILITIES ELECTRICITY,693.5
Lancs Fire & Rescue Service,E6123,Fire,105901799,06-Sep-19,Electricity,NPOWER,UTILITIES ELECTRICITY,559.21
Lancs Fire & Rescue Service,E6123,Fire,105901804,06-Sep-19,Electricity,NPOWER,UTILITIES ELECTRICITY,479.04
Lancs Fire & Rescue Service,E6123,Fire,105901813,06-Sep-19,Electricity,NPOWER,UTILITIES ELECTRICITY,570.48
Lancs Fire & Rescue Service,E6123,Fire,105901820,06-Sep-19,Electricity,NPOWER,UTILITIES ELECTRICITY,432.69
Lancs Fire & Rescue Service,E6123,Fire,105901841,06-Sep-19,Electricity,NPOWER,UTILITIES ELECTRICITY,"4,016.90"
Lancs Fire & Rescue Service,E6123,Fire,105901847,06-Sep-19,Electricity,NPOWER,UTILITIES ELECTRICITY,"4,110.71"
Lancs Fire & Rescue Service,E6123,Fire,105901849,06-Sep-19,Electricity,NPOWER,UTILITIES ELECTRICITY,"1,431.81"
Lancs Fire & Rescue Service,E6123,Fire,105901851,06-Sep-19,Electricity,NPOWER,UTILITIES ELECTRICITY,"1,048.01"
Lancs Fire & Rescue Service,E6123,Fire,105901864,06-Sep-19,Electricity,NPOWER,UTILITIES ELECTRICITY,449.04
Lancs Fire & Rescue Service,E6123,Fire,105901870,06-Sep-19,Electricity,NPOWER,UTILITIES ELECTRICITY,508.82
Lancs Fire & Rescue Service,E6123,Fire,105901874,06-Sep-19,Electricity,NPOWER,UTILITIES ELECTRICITY,831.17
Lancs Fire & Rescue Service,E6123,Fire,105901956,28-Aug-19,Surveys & Consultation,OPINION RESEARCH SERVICES,FACIL&MGMT MKTRESEARCH,"1,245.00"
Lancs Fire & Rescue Service,E6123,Fire,105901956,28-Aug-19,Surveys & Consultation,OPINION RESEARCH SERVICES,FACIL&MGMT MKTRESEARCH,800
Lancs Fire & Rescue Service,E6123,Fire,105901956,28-Aug-19,Surveys & Consultation,OPINION RESEARCH SERVICES,FACIL&MGMT MKTRESEARCH,"2,575.00"
Lancs Fire & Rescue Service,E6123,Fire,105901967,28-Aug-19,Consumable Materials,C & W BERRY LTD,BUILDING MATS&SVCS GEN,630.5
Lancs Fire & Rescue Service,E6123,Fire,105901971,28-Aug-19,Fire - Operational Equipment,CLAN TOOLS & PLANT LTD,FRS EMERGENCY OPS EQT,70
Lancs Fire & Rescue Service,E6123,Fire,105901971,28-Aug-19,Fire - Operational Equipment,CLAN TOOLS & PLANT LTD,FRS EMERGENCY OPS EQT,"2,393.00"
Lancs Fire & Rescue Service,E6123,Fire,105902110,28-Aug-19,Fire - Op Equip Repairs,RITELITE SYSTEMS,UTILITIES ELECTRICITY,25
Lancs Fire & Rescue Service,E6123,Fire,105902110,28-Aug-19,Fire - Op Equip Repairs,RITELITE SYSTEMS,UTILITIES ELECTRICITY,120.85
Lancs Fire & Rescue Service,E6123,Fire,105902110,28-Aug-19,Fire - Op Equip Repairs,RITELITE SYSTEMS,UTILITIES ELECTRICITY,110.9
Lancs Fire & Rescue Service,E6123,Fire,105902110,28-Aug-19,Fire - Op Equip Repairs,RITELITE SYSTEMS,UTILITIES ELECTRICITY,150
Lancs Fire & Rescue Service,E6123,Fire,105902110,28-Aug-19,Fire - Op Equip Repairs,RITELITE SYSTEMS,UTILITIES ELECTRICITY,155.95
Lancs Fire & Rescue Service,E6123,Fire,105903712,31-Dec-19,Photographic,DIGITAL ID LTD,EDUCATION SUPPLIES,967
Lancs Fire & Rescue Service,E6123,Fire,105903712,31-Dec-19,Photographic,DIGITAL ID LTD,EDUCATION SUPPLIES,"2,953.00"
Lancs Fire & Rescue Service,E6123,Fire,105903712,31-Dec-19,Photographic,DIGITAL ID LTD,EDUCATION SUPPLIES,"3,920.00"
Lancs Fire & Rescue Service,E6123,Fire,105903712,31-Dec-19,Photographic,DIGITAL ID LTD,EDUCATION SUPPLIES,"-3,920.00"
Lancs Fire & Rescue Service,E6123,Fire,105903718,28-Aug-19,Course Providers,REDACTED,EDUCATION SERVICES,44.8
Lancs Fire & Rescue Service,E6123,Fire,105903718,28-Aug-19,Course Providers,REDACTED,EDUCATION SERVICES,520
Lancs Fire & Rescue Service,E6123,Fire,105903718,28-Aug-19,Course Providers,REDACTED,EDUCATION SERVICES,-520
Lancs Fire & Rescue Service,E6123,Fire,105903718,28-Aug-19,Course Providers,REDACTED,EDUCATION SERVICES,44.8
Lancs Fire & Rescue Service,E6123,Fire,105903718,28-Aug-19,Course Providers,REDACTED,EDUCATION SERVICES,-44.8
Lancs Fire & Rescue Service,E6123,Fire,105903718,28-Aug-19,Course Providers,REDACTED,EDUCATION SERVICES,520
Lancs Fire & Rescue Service,E6123,Fire,105909581,22-Aug-19,PFI - Capital Charge,PFF LANCASHIRE LTD,FACIL&MGMT RETAIL,"59,482.57"
Lancs Fire & Rescue Service,E6123,Fire,105909724,28-Aug-19,Professional Services,SURVEY OPERATIONS LIMITED,CONSULTANCY BUSINESS,"2,655.00"
Lancs Fire & Rescue Service,E6123,Fire,105909725,28-Aug-19,Course Providers,ASCENTIS,EDUCATION SERVICES,600
Lancs Fire & Rescue Service,E6123,Fire,105909728,13-Sep-19,Fire Safety - Publicity & Promotion,BLACKBURN WITH DARWEN BOROUGH COUNCIL,LOCAL GOVERNMENT,"1,400.00"
Lancs Fire & Rescue Service,E6123,Fire,105909733,10-Sep-19,Course Providers,SIMTRAINERUK LTD,TRAINING,975
Lancs Fire & Rescue Service,E6123,Fire,105909749,30-Aug-19,Clothing & Uniform,SPEEDINGS LIMITED,HR TRAINING&CONFERENCES,"2,320.50"
Lancs Fire & Rescue Service,E6123,Fire,105909749,30-Aug-19,Clothing & Uniform,SPEEDINGS LIMITED,HR TRAINING&CONFERENCES,20
Lancs Fire & Rescue Service,E6123,Fire,105909754,28-Aug-19,Equipment General,ARGOS BUSINESS SOLUTIONS,FACIL&MGMT RETAIL,99.17
Lancs Fire & Rescue Service,E6123,Fire,105909754,28-Aug-19,Equipment General,ARGOS BUSINESS SOLUTIONS,FACIL&MGMT RETAIL,3.29
Lancs Fire & Rescue Service,E6123,Fire,105909754,28-Aug-19,Equipment General,ARGOS BUSINESS SOLUTIONS,FACIL&MGMT RETAIL,3.29
Lancs Fire & Rescue Service,E6123,Fire,105909754,28-Aug-19,Equipment General,ARGOS BUSINESS SOLUTIONS,FACIL&MGMT RETAIL,3.29
Lancs Fire & Rescue Service,E6123,Fire,105909754,28-Aug-19,Equipment General,ARGOS BUSINESS SOLUTIONS,FACIL&MGMT RETAIL,37.99
Lancs Fire & Rescue Service,E6123,Fire,105909754,28-Aug-19,Equipment General,ARGOS BUSINESS SOLUTIONS,FACIL&MGMT RETAIL,49.99
Lancs Fire & Rescue Service,E6123,Fire,105909754,28-Aug-19,Equipment General,ARGOS BUSINESS SOLUTIONS,FACIL&MGMT RETAIL,45.82
Lancs Fire & Rescue Service,E6123,Fire,105909754,28-Aug-19,Other Expenses,ARGOS BUSINESS SOLUTIONS,FACIL&MGMT RETAIL,3.29
Lancs Fire & Rescue Service,E6123,Fire,105909754,28-Aug-19,Other Expenses,ARGOS BUSINESS SOLUTIONS,FACIL&MGMT RETAIL,215.83
Lancs Fire & Rescue Service,E6123,Fire,105909755,28-Aug-19,Catering Service (External),THE BURNLEY FOOTBALL & ATHLETIC CO LTD,LEISURE SVCS SPORTFITNESS,750
Lancs Fire & Rescue Service,E6123,Fire,105909756,28-Aug-19,Catering Service (External),PENDLE BOROUGH COUNCIL,LOCAL GOVERNMENT,766.66
Lancs Fire & Rescue Service,E6123,Fire,105909758,28-Aug-19,Catering Service (External),MORECAMBE FOOTBALL CLUB LTD,LEISURE SVCS SPORTFITNESS,600
Lancs Fire & Rescue Service,E6123,Fire,105909763,28-Aug-19,Vehicle & Plant R&M (External),STEADPLAN LTD,VEHICLES MAINTENANCE,491.78
Lancs Fire & Rescue Service,E6123,Fire,105910741,28-Aug-19,Postage & Carriage,LIFEAXE SAFETY PRODUCTS,HEALTH&SAFETY PRODUCTS,26.9
Lancs Fire & Rescue Service,E6123,Fire,105910741,28-Aug-19,Stocks And Stores - General,LIFEAXE SAFETY PRODUCTS,HEALTH&SAFETY PRODUCTS,"1,128.50"
Lancs Fire & Rescue Service,E6123,Fire,105910743,28-Aug-19,Stocks And Stores - General,FIREANGEL SAFETY TECHNOLOGY LTD,HEALTH&SAFETY PRODUCTS,"12,100.00"
Lancs Fire & Rescue Service,E6123,Fire,105910744,28-Aug-19,Stocks And Stores - General,THOMAS KNEALE & CO LIMITED,CATERING EQPMT&UTENSILS,"1,162.48"
Lancs Fire & Rescue Service,E6123,Fire,105910747,28-Aug-19,Stocks And Stores - General,WRAY BROS LIMITED,CLEANING&JANITORIAL SVCS,743.9
Lancs Fire & Rescue Service,E6123,Fire,105910757,28-Aug-19,Stocks And Stores - General,AUTOMOTIVE TOOLS & SUPPLIES LTD,BUILDING MATS&SVCS GEN,615.28
Lancs Fire & Rescue Service,E6123,Fire,105911623,30-Aug-19,Fire - Op Equip Repairs,HOLMATRO UK LTD,VEHICLES PARTS,696
Lancs Fire & Rescue Service,E6123,Fire,105911623,30-Aug-19,Fire - Op Equip Repairs,HOLMATRO UK LTD,VEHICLES PARTS,17.5
Lancs Fire & Rescue Service,E6123,Fire,105911623,30-Aug-19,Fire - Op Equip Repairs,HOLMATRO UK LTD,VEHICLES PARTS,456
Lancs Fire & Rescue Service,E6123,Fire,105911623,30-Aug-19,Fire - Op Equip Repairs,HOLMATRO UK LTD,VEHICLES PARTS,114.3
Lancs Fire & Rescue Service,E6123,Fire,105915831,27-Sep-19,Repairs & Maintenance General,J HARGREAVES TOWNSON LTD T/A RAINBOW INTERNATIONAL,BUILDING MATS&SVCS GEN,503.5
Lancs Fire & Rescue Service,E6123,Fire,105915832,03-Sep-19,Public Transport,ROSENBAUER UK LTD,FRS SPECIALIST VEHICLES,899.38
Lancs Fire & Rescue Service,E6123,Fire,105915832,03-Sep-19,Public Transport,ROSENBAUER UK LTD,FRS SPECIALIST VEHICLES,924.25
Lancs Fire & Rescue Service,E6123,Fire,105915832,03-Sep-19,Subsistence,ROSENBAUER UK LTD,FRS SPECIALIST VEHICLES,671.65
Lancs Fire & Rescue Service,E6123,Fire,105915832,03-Sep-19,Subsistence,ROSENBAUER UK LTD,FRS SPECIALIST VEHICLES,576
Lancs Fire & Rescue Service,E6123,Fire,105915834,13-Sep-19,Conference Expenses,SOUTH WALES FIRE & RESCUE AUTHORITY,LOCAL GOVERNMENT,620
Lancs Fire & Rescue Service,E6123,Fire,105916687,30-Aug-19,Course Providers,REDACTED,TRAINING,745
Lancs Fire & Rescue Service,E6123,Fire,105916689,30-Aug-19,Vehicle & Plant Insurance Below Excess,TRAVELLERS INSURANCE COMPANY LTD,FINANCIAL� INSURANCE,"4,216.95"
Lancs Fire & Rescue Service,E6123,Fire,105916705,30-Aug-19,Repairs & Maintenance General,TEMPERATURE CONTROL LTD,WORKS BUILDINGS,939
Lancs Fire & Rescue Service,E6123,Fire,105917574,03-Sep-19,Building Cleaning Contract (External),ANDRON FACILITIES MANAGEMENT,FACIL&MGMT SECURITY,602.53
Lancs Fire & Rescue Service,E6123,Fire,105917576,03-Sep-19,Building Cleaning Contract (External),ANDRON FACILITIES MANAGEMENT,FACIL&MGMT SECURITY,602.53
Lancs Fire & Rescue Service,E6123,Fire,105917578,03-Sep-19,Spoilt Meals & Other Refreshments,ANDRON FACILITIES MANAGEMENT,FACIL&MGMT SECURITY,602.53
Lancs Fire & Rescue Service,E6123,Fire,105917581,03-Sep-19,Building Cleaning Contract (External),ANDRON FACILITIES MANAGEMENT,FACIL&MGMT SECURITY,"17,545.06"
Lancs Fire & Rescue Service,E6123,Fire,105917584,03-Sep-19,Vehicle & Plant R&M (External),LANCASHIRE DAF,VEHICLES HEAVY CONST,"2,961.00"
Lancs Fire & Rescue Service,E6123,Fire,105917635,03-Sep-19,Vehicle & Plant R&M (External),JAMES HART (CHORLEY) LTD,TRANSPORT MAINTENANCE,"1,920.85"
Lancs Fire & Rescue Service,E6123,Fire,105917636,03-Sep-19,Vehicle & Plant R&M (External),JAMES HART (CHORLEY) LTD,TRANSPORT MAINTENANCE,"2,219.90"
Lancs Fire & Rescue Service,E6123,Fire,105917647,03-Sep-19,Vehicle & Plant R&M (External),EMERGENCY ONE UK LTD,TRANSPORT REPAIR,"2,151.50"
Lancs Fire & Rescue Service,E6123,Fire,105917654,03-Sep-19,Computer Software,CIVICA UK LTD,ICT SOFTWARE,"11,275.00"
Lancs Fire & Rescue Service,E6123,Fire,105918161,03-Sep-19,Computer Software,CIVICA UK LTD,ICT SOFTWARE,"7,250.00"
Lancs Fire & Rescue Service,E6123,Fire,105918161,03-Sep-19,Computer Software,CIVICA UK LTD,ICT SOFTWARE,"1,500.00"
Lancs Fire & Rescue Service,E6123,Fire,105920113,03-Sep-19,Agency Staff,OFFICE ANGELS LIMITED,HR TEMPOARY&AGENCY STAFF,476.88
Lancs Fire & Rescue Service,E6123,Fire,105920140,20-Sep-19,Fire Safety - Consumables,BHW PRINT GROUP LTD T/A HASLAM PRINTERS,MEDIA AND MARKETING,"1,222.00"
Lancs Fire & Rescue Service,E6123,Fire,105920140,20-Sep-19,Fire Safety - Consumables,BHW PRINT GROUP LTD T/A HASLAM PRINTERS,MEDIA AND MARKETING,"3,361.00"
Lancs Fire & Rescue Service,E6123,Fire,105920140,20-Sep-19,Fire Safety - Consumables,BHW PRINT GROUP LTD T/A HASLAM PRINTERS,MEDIA AND MARKETING,"1,469.00"
Lancs Fire & Rescue Service,E6123,Fire,105920140,20-Sep-19,Fire Safety - Consumables,BHW PRINT GROUP LTD T/A HASLAM PRINTERS,MEDIA AND MARKETING,274
Lancs Fire & Rescue Service,E6123,Fire,105920140,20-Sep-19,Fire Safety - Consumables,BHW PRINT GROUP LTD T/A HASLAM PRINTERS,MEDIA AND MARKETING,"1,328.00"
Lancs Fire & Rescue Service,E6123,Fire,105920200,24-Sep-19,Professional Services,REID JONES PARTNERSHIP,CONSULTANCY CONSTRUCTION,725
Lancs Fire & Rescue Service,E6123,Fire,105920203,17-Sep-19,Repairs & Maintenance General,FUTURE TECHNOLOGY SERVICES LTD,BUILDING MATS&SVCS ELEC,750
Lancs Fire & Rescue Service,E6123,Fire,105920204,17-Sep-19,Repairs & Maintenance General,FUTURE TECHNOLOGY SERVICES LTD,BUILDING MATS&SVCS ELEC,448
Lancs Fire & Rescue Service,E6123,Fire,105920210,20-Sep-19,Publications for Office Use,CIPFA BUSINESS LTD (FORMERLY INSTITUTE OF PUBLIC FINANCE LTD),FINANCIAL ACCOUNTANCY,"1,125.00"
Lancs Fire & Rescue Service,E6123,Fire,105920211,03-Sep-19,Professional Services,LANCASHIRE COUNTY COUNCIL,LOCAL GOVERNMENT,"11,505.44"
Lancs Fire & Rescue Service,E6123,Fire,105920213,06-Sep-19,Programmed Work,LARS COMMUNICATION,ICT MAINTENANCE,800
Lancs Fire & Rescue Service,E6123,Fire,105920214,24-Sep-19,Professional Services,REID JONES PARTNERSHIP,CONSULTANCY CONSTRUCTION,630
Lancs Fire & Rescue Service,E6123,Fire,105920228,03-Sep-19,Computer Hardware,DELL COMPUTER CORPORATION LTD,ICT SOFTWARE,"4,420.00"
Lancs Fire & Rescue Service,E6123,Fire,105920242,03-Sep-19,Medical Fees,DRS.DIRECT,MEDICAL SERVICES,900
Lancs Fire & Rescue Service,E6123,Fire,105920248,03-Sep-19,Agency Staff,OCCUPATIONAL HEALTH STAFFING LTD,UNCLASSIFIED,195
Lancs Fire & Rescue Service,E6123,Fire,105920248,03-Sep-19,Agency Staff,OCCUPATIONAL HEALTH STAFFING LTD,UNCLASSIFIED,180
Lancs Fire & Rescue Service,E6123,Fire,105920248,03-Sep-19,Agency Staff,OCCUPATIONAL HEALTH STAFFING LTD,UNCLASSIFIED,195
Lancs Fire & Rescue Service,E6123,Fire,105920267,10-Sep-19,Mobile Phone Costs,EVERYTHING EVERYWHERE LTD,TELEPHONE SERVICES,"1,735.04"
Lancs Fire & Rescue Service,E6123,Fire,105920271,06-Sep-19,Computer Data Network,SOUTHERN COMMUNICATIONS CORPORATE SOLUTIONS LTD,ICT SOFTWARE,"57,775.74"
Lancs Fire & Rescue Service,E6123,Fire,105920273,13-Sep-19,Mobile Phone Costs,MAINTEL EUROPE LTD,ICT TELECOMMS FIXED,"2,379.87"
Lancs Fire & Rescue Service,E6123,Fire,105920280,03-Sep-19,Computer Software,BYTES SOFTWARE SERVICES LTD,ICT SOFTWARE,911.66
Lancs Fire & Rescue Service,E6123,Fire,105920287,13-Sep-19,Fire Operational Communications,OTRA LTD,VEHICLES MAINTENANCE,"2,068.30"
Lancs Fire & Rescue Service,E6123,Fire,105920297,06-Sep-19,Course Providers,MANAGEMENT ASSOCIATES LTD,TRAINING,125
Lancs Fire & Rescue Service,E6123,Fire,105920297,06-Sep-19,Course Providers,MANAGEMENT ASSOCIATES LTD,TRAINING,13.2
Lancs Fire & Rescue Service,E6123,Fire,105920297,06-Sep-19,Course Providers,MANAGEMENT ASSOCIATES LTD,TRAINING,125
Lancs Fire & Rescue Service,E6123,Fire,105920297,06-Sep-19,Course Providers,MANAGEMENT ASSOCIATES LTD,TRAINING,520
Lancs Fire & Rescue Service,E6123,Fire,105920302,06-Sep-19,Programmed Work,KAISER & KRAFT LTD,VEHICLES INDUSTRIAL,"5,641.95"
Lancs Fire & Rescue Service,E6123,Fire,105920308,03-Sep-19,Fire - Op Equip Repairs,DELTA FIRE,HEALTH&SAFETY PRODUCTS,147
Lancs Fire & Rescue Service,E6123,Fire,105920308,03-Sep-19,Fire - Op Equip Repairs,DELTA FIRE,HEALTH&SAFETY PRODUCTS,16.44
Lancs Fire & Rescue Service,E6123,Fire,105920308,03-Sep-19,Fire - Op Equip Repairs,DELTA FIRE,HEALTH&SAFETY PRODUCTS,4.54
Lancs Fire & Rescue Service,E6123,Fire,105920308,03-Sep-19,Fire - Op Equip Repairs,DELTA FIRE,HEALTH&SAFETY PRODUCTS,30.18
Lancs Fire & Rescue Service,E6123,Fire,105920308,03-Sep-19,Fire - Op Equip Repairs,DELTA FIRE,HEALTH&SAFETY PRODUCTS,48.84
Lancs Fire & Rescue Service,E6123,Fire,105920308,03-Sep-19,Fire - Op Equip Repairs,DELTA FIRE,HEALTH&SAFETY PRODUCTS,19.47
Lancs Fire & Rescue Service,E6123,Fire,105920308,03-Sep-19,Fire - Op Equip Repairs,DELTA FIRE,HEALTH&SAFETY PRODUCTS,34.28
Lancs Fire & Rescue Service,E6123,Fire,105920308,03-Sep-19,Fire - Op Equip Repairs,DELTA FIRE,HEALTH&SAFETY PRODUCTS,109.2
Lancs Fire & Rescue Service,E6123,Fire,105920308,03-Sep-19,Fire - Op Equip Repairs,DELTA FIRE,HEALTH&SAFETY PRODUCTS,279.2
Lancs Fire & Rescue Service,E6123,Fire,105920308,03-Sep-19,Fire - Op Equip Repairs,DELTA FIRE,HEALTH&SAFETY PRODUCTS,147
Lancs Fire & Rescue Service,E6123,Fire,105920308,03-Sep-19,Fire - Op Equip Repairs,DELTA FIRE,HEALTH&SAFETY PRODUCTS,85.98
Lancs Fire & Rescue Service,E6123,Fire,105920308,03-Sep-19,Fire - Op Equip Repairs,DELTA FIRE,HEALTH&SAFETY PRODUCTS,97.9
Lancs Fire & Rescue Service,E6123,Fire,105920308,03-Sep-19,Fire - Op Equip Repairs,DELTA FIRE,HEALTH&SAFETY PRODUCTS,80.13
Lancs Fire & Rescue Service,E6123,Fire,105920308,03-Sep-19,Fire - Op Equip Repairs,DELTA FIRE,HEALTH&SAFETY PRODUCTS,-40.5
Lancs Fire & Rescue Service,E6123,Fire,105920308,03-Sep-19,Fire - Op Equip Repairs,DELTA FIRE,HEALTH&SAFETY PRODUCTS,48.84
Lancs Fire & Rescue Service,E6123,Fire,105920308,03-Sep-19,Fire - Op Equip Repairs,DELTA FIRE,HEALTH&SAFETY PRODUCTS,14.7
Lancs Fire & Rescue Service,E6123,Fire,105920308,03-Sep-19,Fire - Op Equip Repairs,DELTA FIRE,HEALTH&SAFETY PRODUCTS,64.9
Lancs Fire & Rescue Service,E6123,Fire,105920308,03-Sep-19,Fire - Op Equip Repairs,DELTA FIRE,HEALTH&SAFETY PRODUCTS,123.3
Lancs Fire & Rescue Service,E6123,Fire,105921342,06-Sep-19,Stocks And Stores - General,FIREANGEL SAFETY TECHNOLOGY LTD,HEALTH&SAFETY PRODUCTS,796
Lancs Fire & Rescue Service,E6123,Fire,105921347,06-Sep-19,Stocks And Stores - General,BENNETT SAFETYWARE LTD,CLOTHING PERSONAL,"1,005.10"
Lancs Fire & Rescue Service,E6123,Fire,105921350,06-Sep-19,Postage & Carriage,HOLYWELL INTERNATIONAL LTD,VEHICLES COMMERCIAL,42.75
Lancs Fire & Rescue Service,E6123,Fire,105921350,06-Sep-19,Stocks And Stores - General,HOLYWELL INTERNATIONAL LTD,VEHICLES COMMERCIAL,557.28
Lancs Fire & Rescue Service,E6123,Fire,105921351,06-Sep-19,Stocks And Stores - General,MPL (YORKSHIRE) LTD T/A MPL,BUILDING MATS&SVCS TOOL1,472.5
Lancs Fire & Rescue Service,E6123,Fire,105921361,06-Sep-19,Stocks And Stores - General,WM SUGDEN & SONS LTD,CLOTHING PERSONAL,"4,129.10"
Lancs Fire & Rescue Service,E6123,Fire,105924247,20-Sep-19,Gas,CORONA ENERGY,UTILITIES GAS,"1,380.02"
Lancs Fire & Rescue Service,E6123,Fire,105924263,06-Sep-19,Professional Services,WALMSLEY ASSOCIATES LTD,CONSULTANCY CONSTRUCTION,"2,250.00"
Lancs Fire & Rescue Service,E6123,Fire,105924272,27-Sep-19,Programmed Work,WORTHINGTON & GRAHAM OF PRESTON LTD,BUILDING MATS&SVCS GEN,"3,373.42"
Lancs Fire & Rescue Service,E6123,Fire,105924276,20-Sep-19,Gas,CORONA ENERGY,UTILITIES GAS,652.21
Lancs Fire & Rescue Service,E6123,Fire,105924280,27-Sep-19,Repairs & Maintenance General,DLP SERVICES NORTHERN LTD,BUILDING MATS&SVCS GEN,600.61
Lancs Fire & Rescue Service,E6123,Fire,105924283,06-Sep-19,Repairs & Maintenance General,CENTRAL POWER SERVICES LTD,VEHICLES HEAVY CONST,875.4
Lancs Fire & Rescue Service,E6123,Fire,105924286,06-Sep-19,Service Contracts,ARRESTA SAFETY PRODUCTS,HEALTH&SAFETY PRODUCTS,585
Lancs Fire & Rescue Service,E6123,Fire,105924324,20-Sep-19,Gas,CORONA ENERGY,UTILITIES GAS,657.04
Lancs Fire & Rescue Service,E6123,Fire,105924330,20-Sep-19,Gas,CORONA ENERGY,UTILITIES GAS,692.25
Lancs Fire & Rescue Service,E6123,Fire,105924935,06-Sep-19,Fire - Operational Equipment,ROSENBAUER UK LTD,FRS SPECIALIST VEHICLES,370.76
Lancs Fire & Rescue Service,E6123,Fire,105924935,06-Sep-19,Fire - Operational Equipment,ROSENBAUER UK LTD,FRS SPECIALIST VEHICLES,730
Lancs Fire & Rescue Service,E6123,Fire,105924935,06-Sep-19,Fire - Operational Equipment,ROSENBAUER UK LTD,FRS SPECIALIST VEHICLES,297.8
Lancs Fire & Rescue Service,E6123,Fire,105924935,06-Sep-19,Fire - Operational Equipment,ROSENBAUER UK LTD,FRS SPECIALIST VEHICLES,-1
Lancs Fire & Rescue Service,E6123,Fire,105924943,06-Sep-19,Course Providers,MERSEYSIDE FIRE & RESCUE AUTHORITY,LOCAL GOVERNMENT,518
Lancs Fire & Rescue Service,E6123,Fire,105924946,10-Sep-19,Catering Service (External),BRAKE BROS LTD,CATERING FOOD&BEVERAGE,528.43
Lancs Fire & Rescue Service,E6123,Fire,105924952,06-Sep-19,Protective Clothing,BALLYCLARE LHD LTD,CLOTHING PERSONAL,"2,714.40"
Lancs Fire & Rescue Service,E6123,Fire,105924952,06-Sep-19,Protective Clothing,BALLYCLARE LHD LTD,CLOTHING PERSONAL,"4,071.60"
Lancs Fire & Rescue Service,E6123,Fire,105924952,06-Sep-19,Protective Clothing,BALLYCLARE LHD LTD,CLOTHING PERSONAL,"1,628.64"
Lancs Fire & Rescue Service,E6123,Fire,105924952,06-Sep-19,Protective Clothing,BALLYCLARE LHD LTD,CLOTHING PERSONAL,"1,784.64"
Lancs Fire & Rescue Service,E6123,Fire,105924952,06-Sep-19,Protective Clothing,BALLYCLARE LHD LTD,CLOTHING PERSONAL,"1,784.64"
Lancs Fire & Rescue Service,E6123,Fire,105924952,06-Sep-19,Protective Clothing,BALLYCLARE LHD LTD,CLOTHING PERSONAL,"1,784.64"
Lancs Fire & Rescue Service,E6123,Fire,105924952,06-Sep-19,Protective Clothing,BALLYCLARE LHD LTD,CLOTHING PERSONAL,"3,569.28"
Lancs Fire & Rescue Service,E6123,Fire,105924959,06-Sep-19,Protective Clothing,BALLYCLARE LHD LTD,CLOTHING PERSONAL,"1,784.64"
Lancs Fire & Rescue Service,E6123,Fire,105924968,17-Sep-19,Clothing & Uniform,DEALERSHIP SERVICES LTD,CLOTHING PERSONAL,72
Lancs Fire & Rescue Service,E6123,Fire,105924968,17-Sep-19,Clothing & Uniform,DEALERSHIP SERVICES LTD,CLOTHING PERSONAL,144
Lancs Fire & Rescue Service,E6123,Fire,105924968,17-Sep-19,Clothing & Uniform,DEALERSHIP SERVICES LTD,CLOTHING PERSONAL,216
Lancs Fire & Rescue Service,E6123,Fire,105924968,17-Sep-19,Clothing & Uniform,DEALERSHIP SERVICES LTD,CLOTHING PERSONAL,72
Lancs Fire & Rescue Service,E6123,Fire,105924968,17-Sep-19,Clothing & Uniform,DEALERSHIP SERVICES LTD,CLOTHING PERSONAL,33.9
Lancs Fire & Rescue Service,E6123,Fire,105924968,17-Sep-19,Clothing & Uniform,DEALERSHIP SERVICES LTD,CLOTHING PERSONAL,16.95
Lancs Fire & Rescue Service,E6123,Fire,105924968,17-Sep-19,Clothing & Uniform,DEALERSHIP SERVICES LTD,CLOTHING PERSONAL,84.75
Lancs Fire & Rescue Service,E6123,Fire,105924968,17-Sep-19,Clothing & Uniform,DEALERSHIP SERVICES LTD,CLOTHING PERSONAL,67.8
Lancs Fire & Rescue Service,E6123,Fire,105924968,17-Sep-19,Clothing & Uniform,DEALERSHIP SERVICES LTD,CLOTHING PERSONAL,360
Lancs Fire & Rescue Service,E6123,Fire,105924971,17-Sep-19,Clothing & Uniform,DEALERSHIP SERVICES LTD,CLOTHING PERSONAL,59.85
Lancs Fire & Rescue Service,E6123,Fire,105924971,17-Sep-19,Clothing & Uniform,DEALERSHIP SERVICES LTD,CLOTHING PERSONAL,139.65
Lancs Fire & Rescue Service,E6123,Fire,105924971,17-Sep-19,Clothing & Uniform,DEALERSHIP SERVICES LTD,CLOTHING PERSONAL,19.95
Lancs Fire & Rescue Service,E6123,Fire,105924971,17-Sep-19,Clothing & Uniform,DEALERSHIP SERVICES LTD,CLOTHING PERSONAL,19.95
Lancs Fire & Rescue Service,E6123,Fire,105924971,17-Sep-19,Clothing & Uniform,DEALERSHIP SERVICES LTD,CLOTHING PERSONAL,4.95
Lancs Fire & Rescue Service,E6123,Fire,105924971,17-Sep-19,Clothing & Uniform,DEALERSHIP SERVICES LTD,CLOTHING PERSONAL,54.45
Lancs Fire & Rescue Service,E6123,Fire,105924971,17-Sep-19,Clothing & Uniform,DEALERSHIP SERVICES LTD,CLOTHING PERSONAL,30.85
Lancs Fire & Rescue Service,E6123,Fire,105924971,17-Sep-19,Clothing & Uniform,DEALERSHIP SERVICES LTD,CLOTHING PERSONAL,246.8
Lancs Fire & Rescue Service,E6123,Fire,105924971,17-Sep-19,Clothing & Uniform,DEALERSHIP SERVICES LTD,CLOTHING PERSONAL,92.55
Lancs Fire & Rescue Service,E6123,Fire,105924974,06-Sep-19,Protective Clothing,DEALERSHIP SERVICES LTD,CLOTHING PERSONAL,29.7
Lancs Fire & Rescue Service,E6123,Fire,105924974,06-Sep-19,Protective Clothing,DEALERSHIP SERVICES LTD,CLOTHING PERSONAL,432
Lancs Fire & Rescue Service,E6123,Fire,105924974,06-Sep-19,Protective Clothing,DEALERSHIP SERVICES LTD,CLOTHING PERSONAL,215.95
Lancs Fire & Rescue Service,E6123,Fire,105924974,06-Sep-19,Protective Clothing,DEALERSHIP SERVICES LTD,CLOTHING PERSONAL,119.7
Lancs Fire & Rescue Service,E6123,Fire,105924974,06-Sep-19,Protective Clothing,DEALERSHIP SERVICES LTD,CLOTHING PERSONAL,67.8
Lancs Fire & Rescue Service,E6123,Fire,105924978,06-Sep-19,Professional Services,REDACTED,CONSULTANCY MANAGEMENT,"1,262.50"
Lancs Fire & Rescue Service,E6123,Fire,105924985,06-Sep-19,Agency Staff,OFFICE ANGELS LIMITED,HR TEMPOARY&AGENCY STAFF,421.42
Lancs Fire & Rescue Service,E6123,Fire,105924990,06-Sep-19,Agency Staff,OFFICE ANGELS LIMITED,HR TEMPOARY&AGENCY STAFF,498.9
Lancs Fire & Rescue Service,E6123,Fire,105924995,06-Sep-19,Agency Staff,OFFICE ANGELS LIMITED,HR TEMPOARY&AGENCY STAFF,558.73
Lancs Fire & Rescue Service,E6123,Fire,105925006,06-Sep-19,Agency Staff,OFFICE ANGELS LIMITED,HR TEMPOARY&AGENCY STAFF,623.63
Lancs Fire & Rescue Service,E6123,Fire,105925009,06-Sep-19,Support for Member Champion,ADGIFTDISCOUNTS,STATIONERY SUNDRIES,25
Lancs Fire & Rescue Service,E6123,Fire,105925009,06-Sep-19,Support for Member Champion,ADGIFTDISCOUNTS,STATIONERY SUNDRIES,10
Lancs Fire & Rescue Service,E6123,Fire,105925009,06-Sep-19,Support for Member Champion,ADGIFTDISCOUNTS,STATIONERY SUNDRIES,315
Lancs Fire & Rescue Service,E6123,Fire,105925009,06-Sep-19,Support for Member Champion,ADGIFTDISCOUNTS,STATIONERY SUNDRIES,768.6
Lancs Fire & Rescue Service,E6123,Fire,105925042,06-Sep-19,Fire - Hydrants,UNITED UTILITIES WATER PLC,UTILITIES WATER,627.04
Lancs Fire & Rescue Service,E6123,Fire,105925058,06-Sep-19,Fire - Hydrants,UNITED UTILITIES WATER PLC,UTILITIES WATER,"1,063.47"
Lancs Fire & Rescue Service,E6123,Fire,105925066,06-Sep-19,Fire - Hydrants,UNITED UTILITIES WATER PLC,UTILITIES WATER,966.79
Lancs Fire & Rescue Service,E6123,Fire,105925071,06-Sep-19,Catering Service (External),BRAKE BROS LTD,CATERING FOOD&BEVERAGE,807.24
Lancs Fire & Rescue Service,E6123,Fire,105925426,10-Sep-19,Vehicle & Plant R&M (External),MILLERS OF LONGTON LTD,VEHICLES MAINTENANCE,489
Lancs Fire & Rescue Service,E6123,Fire,105925428,10-Sep-19,Vehicle & Plant R&M (External),MILLERS OF LONGTON LTD,VEHICLES MAINTENANCE,841.95
Lancs Fire & Rescue Service,E6123,Fire,105925466,10-Sep-19,Vehicle & Plant R&M (External),MELLOR PLANT UK LTD,VEHICLES INDUSTRIAL,437.1
Lancs Fire & Rescue Service,E6123,Fire,105925493,10-Sep-19,Water,WATER PLUS LTD,UTILITIES WATER,"1,427.61"
Lancs Fire & Rescue Service,E6123,Fire,105929746,24-Sep-19,Cleaning & Domestic General,SCOTT ELLIOTT T/A RAINBOW INTERNATIONAL,CLEANING&JANITORIAL SVCS,420
Lancs Fire & Rescue Service,E6123,Fire,105929747,10-Sep-19,Postage & Carriage,ROYAL MAIL,MAIL SVCS COURIERS,787
Lancs Fire & Rescue Service,E6123,Fire,105929748,27-Sep-19,Fire Safety - Publicity & Promotion,CLEAR CHANNEL UK LTD,HIGHWAY EQUIPM & MATERIAL,"3,800.00"
Lancs Fire & Rescue Service,E6123,Fire,105929749,24-Sep-19,Consumable Materials,ABBOTT (FORMELY ALERE TOXICOLOGY),SCIENTIFIC SERVICES,450
Lancs Fire & Rescue Service,E6123,Fire,105929749,24-Sep-19,Postage & Carriage,ABBOTT (FORMELY ALERE TOXICOLOGY),SCIENTIFIC SERVICES,10
Lancs Fire & Rescue Service,E6123,Fire,105929754,17-Sep-19,Protective Clothing,OXFORD SAFETY SUPPLIES,CLOTHING UNIFORMS,"2,210.00"
Lancs Fire & Rescue Service,E6123,Fire,105929754,17-Sep-19,Protective Clothing,OXFORD SAFETY SUPPLIES,CLOTHING UNIFORMS,260
Lancs Fire & Rescue Service,E6123,Fire,105929754,17-Sep-19,Protective Clothing,OXFORD SAFETY SUPPLIES,CLOTHING UNIFORMS,39
Lancs Fire & Rescue Service,E6123,Fire,105929754,17-Sep-19,Protective Clothing,OXFORD SAFETY SUPPLIES,CLOTHING UNIFORMS,130
Lancs Fire & Rescue Service,E6123,Fire,105929760,13-Sep-19,Fire - Operational Equipment,SEDDONS (PLANT & ENGINEERS) LTD,VEHICLES FUEL,489
Lancs Fire & Rescue Service,E6123,Fire,105929829,27-Sep-19,Works Fees (External),SCOTT HUGHES DESIGN LTD,CONSULTANCY CONSTRUCTION,"2,260.00"
Lancs Fire & Rescue Service,E6123,Fire,105929832,10-Sep-19,Programmed Work,AC ELECTRICAL SUPPLIES LTD,BUILDING MATS&SVCS ELEC,"3,068.71"
Lancs Fire & Rescue Service,E6123,Fire,105929835,10-Sep-19,Programmed Work,AC ELECTRICAL SUPPLIES LTD,BUILDING MATS&SVCS ELEC,"3,407.85"
Lancs Fire & Rescue Service,E6123,Fire,105929837,10-Sep-19,Programmed Work,HARDACRES PLUMBERS (NW) LTD,WORKS BUILDINGS,"2,320.24"
Lancs Fire & Rescue Service,E6123,Fire,105929838,10-Sep-19,Repairs & Maintenance General,HARDACRES PLUMBERS (NW) LTD,WORKS BUILDINGS,"5,432.00"
Lancs Fire & Rescue Service,E6123,Fire,105929840,20-Sep-19,Programmed Work,A & D DRAIN SERVICES LTD,BUILDING MATS&SVCS PLUMB,596
Lancs Fire & Rescue Service,E6123,Fire,105929841,20-Sep-19,Programmed Work,A & D DRAIN SERVICES LTD,BUILDING MATS&SVCS PLUMB,"1,446.00"
Lancs Fire & Rescue Service,E6123,Fire,105931990,13-Sep-19,Course Providers,STONEWALL EQUALITY LTD,CONSULTANCY LEGAL,"1,000.00"
Lancs Fire & Rescue Service,E6123,Fire,105931995,17-Sep-19,Course Providers,QA LTD,ICT HARDWARE,0.5
Lancs Fire & Rescue Service,E6123,Fire,105931995,17-Sep-19,Course Providers,QA LTD,ICT HARDWARE,"1,965.00"
Lancs Fire & Rescue Service,E6123,Fire,105931995,17-Sep-19,Course Providers,QA LTD,ICT HARDWARE,"1,965.00"
Lancs Fire & Rescue Service,E6123,Fire,105931995,17-Sep-19,Course Providers,QA LTD,ICT HARDWARE,"-1,965.00"
Lancs Fire & Rescue Service,E6123,Fire,105931996,17-Sep-19,Course Providers,QA LTD,ICT HARDWARE,"3,785.32"
Lancs Fire & Rescue Service,E6123,Fire,105931997,13-Sep-19,Course Providers,BRATHAY SERVICES LTD,CONSULTANCY MANAGEMENT,"8,875.00"
Lancs Fire & Rescue Service,E6123,Fire,105931998,13-Sep-19,Training Expenses (External),BRATHAY SERVICES LTD,CONSULTANCY MANAGEMENT,"3,610.00"
Lancs Fire & Rescue Service,E6123,Fire,105932000,13-Sep-19,Computer Software,TECHNOLOGY SERVICES GROUP,ICT MAINTENANCE,"8,000.00"
Lancs Fire & Rescue Service,E6123,Fire,105932026,27-Sep-19,Works Fees (External),SCOTT HUGHES DESIGN LTD,CONSULTANCY CONSTRUCTION,"2,670.00"
Lancs Fire & Rescue Service,E6123,Fire,105932031,13-Sep-19,Service Contracts,HARVEY ENVIRONMENTAL SERVICES,ENVIRON PEST CONTROL,752.22
Lancs Fire & Rescue Service,E6123,Fire,105932034,13-Sep-19,Service Contracts,HARVEY ENVIRONMENTAL SERVICES,ENVIRON PEST CONTROL,"1,447.48"
Lancs Fire & Rescue Service,E6123,Fire,105932035,13-Sep-19,Service Contracts,HARVEY ENVIRONMENTAL SERVICES,ENVIRON PEST CONTROL,"1,697.00"
Lancs Fire & Rescue Service,E6123,Fire,105932845,13-Sep-19,Professional Services,UK MEDIATION LTD,TRAINING,"1,175.00"
Lancs Fire & Rescue Service,E6123,Fire,105935017,13-Sep-19,Stocks And Stores - General,THOMAS KNEALE & CO LIMITED,CATERING EQPMT&UTENSILS,"1,534.00"
Lancs Fire & Rescue Service,E6123,Fire,105935019,13-Sep-19,Postage & Carriage,WRAY BROS LIMITED,CLEANING&JANITORIAL SVCS,3.49
Lancs Fire & Rescue Service,E6123,Fire,105935019,13-Sep-19,Stocks And Stores - General,WRAY BROS LIMITED,CLEANING&JANITORIAL SVCS,"1,251.34"
Lancs Fire & Rescue Service,E6123,Fire,105935023,13-Sep-19,Stocks And Stores - General,RELIANCE MEDICAL LTD,MEDICAL CONSUMABLES,799.88
Lancs Fire & Rescue Service,E6123,Fire,105935024,13-Sep-19,Postage & Carriage,SITELINK COMMUNICATIONS LTD,ICT SOFTWARE,10
Lancs Fire & Rescue Service,E6123,Fire,105935024,13-Sep-19,Stocks And Stores - General,SITELINK COMMUNICATIONS LTD,ICT SOFTWARE,550
Lancs Fire & Rescue Service,E6123,Fire,105935025,13-Sep-19,Stocks And Stores - General,WELDBANK PLASTIC CO LTD,BUILDING MATS&SVCS GEN,760
Lancs Fire & Rescue Service,E6123,Fire,105935032,13-Sep-19,Stocks And Stores - General,AUTOMOTIVE TOOLS & SUPPLIES LTD,BUILDING MATS&SVCS GEN,534.22
Lancs Fire & Rescue Service,E6123,Fire,105935033,13-Sep-19,Postage & Carriage,ANDREW MITCHELL & CO LTD,CLEANING&JANITORIAL SVCS,25
Lancs Fire & Rescue Service,E6123,Fire,105935033,13-Sep-19,Stocks And Stores - General,ANDREW MITCHELL & CO LTD,CLEANING&JANITORIAL SVCS,"2,612.40"
Lancs Fire & Rescue Service,E6123,Fire,105936605,13-Sep-19,Programmed Work,AC ELECTRICAL SUPPLIES LTD,BUILDING MATS&SVCS ELEC,"2,931.08"
Lancs Fire & Rescue Service,E6123,Fire,105936607,13-Sep-19,Repairs & Maintenance General,AC ELECTRICAL SUPPLIES LTD,BUILDING MATS&SVCS ELEC,"3,293.85"
Lancs Fire & Rescue Service,E6123,Fire,105936608,13-Sep-19,Repairs & Maintenance General,R H WELLS ELECTRICAL LTD,BUILDING MATS&SVCS ELEC,681.3
Lancs Fire & Rescue Service,E6123,Fire,105936614,17-Sep-19,Course Providers,LINDE STERLING LTD,VEHICLES INDUSTRIAL,"1,040.00"
Lancs Fire & Rescue Service,E6123,Fire,105936615,13-Sep-19,Professional Services,IKG CONSULTING LIMITED,CONSULTANCY BUSINESS,"1,913.60"
Lancs Fire & Rescue Service,E6123,Fire,105936617,27-Sep-19,Diesel,ALLSTAR BUSINESS SOLUTIONS LTD,VEHICLES FUEL,"17,202.43"
Lancs Fire & Rescue Service,E6123,Fire,105936617,27-Sep-19,Petrol,ALLSTAR BUSINESS SOLUTIONS LTD,VEHICLES FUEL,"1,054.67"
Lancs Fire & Rescue Service,E6123,Fire,105937862,13-Sep-19,Road Fund Licences,DVLA,VEHICLES INDUSTRIAL,"1,155.00"
Lancs Fire & Rescue Service,E6123,Fire,105937864,29-Nov-19,Combined Liability Policy,FORBES SOLICITORS,LEGAL SVCS GENERAL,"7,479.60"
Lancs Fire & Rescue Service,E6123,Fire,105938126,27-Sep-19,Fire - Operational Equipment,SUPPLY PLUS LTD,TRANSPORT FLEET MGMT,8.05
Lancs Fire & Rescue Service,E6123,Fire,105938126,27-Sep-19,Fire - Operational Equipment,SUPPLY PLUS LTD,TRANSPORT FLEET MGMT,"2,163.98"
Lancs Fire & Rescue Service,E6123,Fire,105938126,27-Sep-19,Fire - Operational Equipment,SUPPLY PLUS LTD,TRANSPORT FLEET MGMT,-8.05
Lancs Fire & Rescue Service,E6123,Fire,105938126,27-Sep-19,Fire - Operational Equipment,SUPPLY PLUS LTD,TRANSPORT FLEET MGMT,-56.47
Lancs Fire & Rescue Service,E6123,Fire,105938126,27-Sep-19,Fire - Operational Equipment,SUPPLY PLUS LTD,TRANSPORT FLEET MGMT,56.47
Lancs Fire & Rescue Service,E6123,Fire,105938126,27-Sep-19,Fire - Operational Equipment,SUPPLY PLUS LTD,TRANSPORT FLEET MGMT,64.52
Lancs Fire & Rescue Service,E6123,Fire,105938132,17-Sep-19,Service Contracts,HARVEY ENVIRONMENTAL SERVICES,ENVIRON PEST CONTROL,"2,540.34"
Lancs Fire & Rescue Service,E6123,Fire,105938134,17-Sep-19,Service Contracts,HARVEY ENVIRONMENTAL SERVICES,ENVIRON PEST CONTROL,"-8,404.10"
Lancs Fire & Rescue Service,E6123,Fire,105938134,17-Sep-19,Service Contracts,HARVEY ENVIRONMENTAL SERVICES,ENVIRON PEST CONTROL,497.94
Lancs Fire & Rescue Service,E6123,Fire,105938134,17-Sep-19,Service Contracts,HARVEY ENVIRONMENTAL SERVICES,ENVIRON PEST CONTROL,"8,404.10"
Lancs Fire & Rescue Service,E6123,Fire,105938187,17-Sep-19,Fire - Breathing Apparatus,TSI INSTRUMENTS LTD,ENVIRON TECHNICAL EQT,470
Lancs Fire & Rescue Service,E6123,Fire,105938987,17-Sep-19,Professional Services,MERSEYSIDE FIRE & RESCUE AUTHORITY,LOCAL GOVERNMENT,"1,667.33"
Lancs Fire & Rescue Service,E6123,Fire,105939011,27-Sep-19,Building Cleaning Contract (External),ANDRON FACILITIES MANAGEMENT,FACIL&MGMT SECURITY,"17,545.06"
Lancs Fire & Rescue Service,E6123,Fire,105939204,24-Sep-19,Ext� Adapt� Improv� Etc,CALIBRATION & CONSULTANCY SERVICES (UK) LTD,VEHICLES MAINTENANCE,"5,902.00"
Lancs Fire & Rescue Service,E6123,Fire,105939834,17-Sep-19,Clothing & Uniform,FUTURE SAFETY LIMITED,CLOTHING PROTECTIVE,10.18
Lancs Fire & Rescue Service,E6123,Fire,105939834,17-Sep-19,Clothing & Uniform,FUTURE SAFETY LIMITED,CLOTHING PROTECTIVE,780
Lancs Fire & Rescue Service,E6123,Fire,105940890,20-Sep-19,Programmed Work,PEERLESS FENCING LTD,BUILDING MATS&SVCS FENC,"4,740.05"
Lancs Fire & Rescue Service,E6123,Fire,105940892,17-Sep-19,Water,WATER PLUS LTD,UTILITIES WATER,"18,087.61"
Lancs Fire & Rescue Service,E6123,Fire,105940896,17-Sep-19,Computer Software,SOFTCAT LTD,ICT CALL SYSTEMS,"3,102.00"
Lancs Fire & Rescue Service,E6123,Fire,105940896,17-Sep-19,Computer Software,SOFTCAT LTD,ICT CALL SYSTEMS,"2,974.97"
Lancs Fire & Rescue Service,E6123,Fire,105940896,17-Sep-19,Computer Software,SOFTCAT LTD,ICT CALL SYSTEMS,583.96
Lancs Fire & Rescue Service,E6123,Fire,105940896,17-Sep-19,Computer Software,SOFTCAT LTD,ICT CALL SYSTEMS,"10,393.60"
Lancs Fire & Rescue Service,E6123,Fire,105940896,17-Sep-19,Computer Software,SOFTCAT LTD,ICT CALL SYSTEMS,"1,095.56"
Lancs Fire & Rescue Service,E6123,Fire,105940896,17-Sep-19,Computer Software,SOFTCAT LTD,ICT CALL SYSTEMS,864
Lancs Fire & Rescue Service,E6123,Fire,105940903,17-Sep-19,Service Contracts,HARVEY ENVIRONMENTAL SERVICES,ENVIRON PEST CONTROL,679.02
Lancs Fire & Rescue Service,E6123,Fire,105940911,11-Oct-19,Fire - Breathing Apparatus,OTRA LTD,VEHICLES MAINTENANCE,700
Lancs Fire & Rescue Service,E6123,Fire,105940912,17-Sep-19,Repairs & Maintenance General,WEST LANCASHIRE ELECTRICAL CONTRACTORS LTD,BUILDING MATS&SVCS ELEC,594.69
Lancs Fire & Rescue Service,E6123,Fire,105940914,17-Sep-19,Service Contracts,HARVEY ENVIRONMENTAL SERVICES,ENVIRON PEST CONTROL,430.03
Lancs Fire & Rescue Service,E6123,Fire,105940916,17-Sep-19,Service Contracts,HARVEY ENVIRONMENTAL SERVICES,ENVIRON PEST CONTROL,707.7
Lancs Fire & Rescue Service,E6123,Fire,105940919,17-Sep-19,Service Contracts,HARVEY ENVIRONMENTAL SERVICES,ENVIRON PEST CONTROL,430.03
Lancs Fire & Rescue Service,E6123,Fire,105940925,17-Sep-19,Service Contracts,HARVEY ENVIRONMENTAL SERVICES,ENVIRON PEST CONTROL,507.53
Lancs Fire & Rescue Service,E6123,Fire,105940929,17-Sep-19,Service Contracts,HARVEY ENVIRONMENTAL SERVICES,ENVIRON PEST CONTROL,514.9
Lancs Fire & Rescue Service,E6123,Fire,105940931,17-Sep-19,Service Contracts,HARVEY ENVIRONMENTAL SERVICES,ENVIRON PEST CONTROL,520.23
Lancs Fire & Rescue Service,E6123,Fire,105940933,17-Sep-19,Service Contracts,HARVEY ENVIRONMENTAL SERVICES,ENVIRON PEST CONTROL,943.06
Lancs Fire & Rescue Service,E6123,Fire,105940934,17-Sep-19,Service Contracts,HARVEY ENVIRONMENTAL SERVICES,ENVIRON PEST CONTROL,450
Lancs Fire & Rescue Service,E6123,Fire,105940935,17-Sep-19,Service Contracts,HARVEY ENVIRONMENTAL SERVICES,ENVIRON PEST CONTROL,450
Lancs Fire & Rescue Service,E6123,Fire,105941002,17-Sep-19,Other Expenses,REDACTED,NOT CLASSIFIED,500
Lancs Fire & Rescue Service,E6123,Fire,105941609,17-Sep-19,Fire - Breathing Apparatus,TSI INSTRUMENTS LTD,ENVIRON TECHNICAL EQT,-505
Lancs Fire & Rescue Service,E6123,Fire,105941609,17-Sep-19,Fire - Breathing Apparatus,TSI INSTRUMENTS LTD,ENVIRON TECHNICAL EQT,-7.85
Lancs Fire & Rescue Service,E6123,Fire,105941951,20-Sep-19,Service Contracts,BEST TRADING DIVISION OF PTSG ELECTRICAL SERVICES LTD,WORKS BUILDINGS,490
Lancs Fire & Rescue Service,E6123,Fire,105941957,24-Sep-19,Mobile Phone Costs,O2 (UK) LTD,ICT TELECOMMS MOBILE,"4,500.16"
Lancs Fire & Rescue Service,E6123,Fire,105941978,24-Sep-19,Accounts Payable SLA,LANCASHIRE COUNTY COUNCIL,LOCAL GOVERNMENT,"6,012.17"
Lancs Fire & Rescue Service,E6123,Fire,105941978,24-Sep-19,Financial Services SLA,LANCASHIRE COUNTY COUNCIL,LOCAL GOVERNMENT,"10,415.00"
Lancs Fire & Rescue Service,E6123,Fire,105941978,24-Sep-19,Financial Services SLA,LANCASHIRE COUNTY COUNCIL,LOCAL GOVERNMENT,"2,731.00"
Lancs Fire & Rescue Service,E6123,Fire,105941978,24-Sep-19,Treasurers Services SLA,LANCASHIRE COUNTY COUNCIL,LOCAL GOVERNMENT,600
Lancs Fire & Rescue Service,E6123,Fire,105941978,24-Sep-19,Treasurers Services SLA,LANCASHIRE COUNTY COUNCIL,LOCAL GOVERNMENT,"1,300.00"
Lancs Fire & Rescue Service,E6123,Fire,105941978,24-Sep-19,Treasurers Services SLA,LANCASHIRE COUNTY COUNCIL,LOCAL GOVERNMENT,525
Lancs Fire & Rescue Service,E6123,Fire,105941978,24-Sep-19,Treasurers Services SLA,LANCASHIRE COUNTY COUNCIL,LOCAL GOVERNMENT,"1,725.00"
Lancs Fire & Rescue Service,E6123,Fire,105941978,24-Sep-19,Treasurers Services SLA,LANCASHIRE COUNTY COUNCIL,LOCAL GOVERNMENT,"1,825.00"
Lancs Fire & Rescue Service,E6123,Fire,105941978,24-Sep-19,Treasurers Services SLA,LANCASHIRE COUNTY COUNCIL,LOCAL GOVERNMENT,900
Lancs Fire & Rescue Service,E6123,Fire,105941990,24-Sep-19,Computer Software,SOLARWINDS SOFTWARE EUROPE LTD,ICT SOFTWARE,"1,994.00"
Lancs Fire & Rescue Service,E6123,Fire,105941990,24-Sep-19,Computer Software,SOLARWINDS SOFTWARE EUROPE LTD,ICT SOFTWARE,"3,644.33"
Lancs Fire & Rescue Service,E6123,Fire,105941990,24-Sep-19,Computer Software,SOLARWINDS SOFTWARE EUROPE LTD,ICT SOFTWARE,615.33
Lancs Fire & Rescue Service,E6123,Fire,105941992,24-Sep-19,Agency Staff,OFFICE ANGELS LIMITED,HR TEMPOARY&AGENCY STAFF,549.26
Lancs Fire & Rescue Service,E6123,Fire,105941993,24-Sep-19,Agency Staff,OFFICE ANGELS LIMITED,HR TEMPOARY&AGENCY STAFF,498.9
Lancs Fire & Rescue Service,E6123,Fire,105941997,24-Sep-19,Accounts Payable SLA,LANCASHIRE COUNTY COUNCIL,LOCAL GOVERNMENT,"4,172.11"
Lancs Fire & Rescue Service,E6123,Fire,105941997,24-Sep-19,Financial Services SLA,LANCASHIRE COUNTY COUNCIL,LOCAL GOVERNMENT,"2,731.00"
Lancs Fire & Rescue Service,E6123,Fire,105941997,24-Sep-19,Financial Services SLA,LANCASHIRE COUNTY COUNCIL,LOCAL GOVERNMENT,"10,415.00"
Lancs Fire & Rescue Service,E6123,Fire,105941997,24-Sep-19,Treasurers Services SLA,LANCASHIRE COUNTY COUNCIL,LOCAL GOVERNMENT,"1,759.50"
Lancs Fire & Rescue Service,E6123,Fire,105941997,24-Sep-19,Treasurers Services SLA,LANCASHIRE COUNTY COUNCIL,LOCAL GOVERNMENT,"1,861.50"
Lancs Fire & Rescue Service,E6123,Fire,105941997,24-Sep-19,Treasurers Services SLA,LANCASHIRE COUNTY COUNCIL,LOCAL GOVERNMENT,918
Lancs Fire & Rescue Service,E6123,Fire,105941997,24-Sep-19,Treasurers Services SLA,LANCASHIRE COUNTY COUNCIL,LOCAL GOVERNMENT,535.5
Lancs Fire & Rescue Service,E6123,Fire,105941997,24-Sep-19,Treasurers Services SLA,LANCASHIRE COUNTY COUNCIL,LOCAL GOVERNMENT,"1,326.00"
Lancs Fire & Rescue Service,E6123,Fire,105941997,24-Sep-19,Treasurers Services SLA,LANCASHIRE COUNTY COUNCIL,LOCAL GOVERNMENT,612
Lancs Fire & Rescue Service,E6123,Fire,105942002,24-Sep-19,Fire Mobs Airwave costs,HOME OFFICE,GOVERNMENT,"1,787.11"
Lancs Fire & Rescue Service,E6123,Fire,105942002,24-Sep-19,Fire Mobs Airwave costs,HOME OFFICE,GOVERNMENT,"41,162.47"
Lancs Fire & Rescue Service,E6123,Fire,105942004,27-Sep-19,Course Providers,SAFETY MANAGEMENT CONSULTANCY LTD,CONSULTANCY BUSINESS,"1,960.00"
Lancs Fire & Rescue Service,E6123,Fire,105942005,27-Sep-19,Course Providers,SAFETY MANAGEMENT CONSULTANCY LTD,CONSULTANCY BUSINESS,"1,960.00"
Lancs Fire & Rescue Service,E6123,Fire,105942007,04-Oct-19,Audit Fees (External),GRANT THORNTON UK LLP,FINANCIAL ACCOUNTANCY,"5,917.25"
Lancs Fire & Rescue Service,E6123,Fire,105942015,27-Sep-19,Waste Collection Charges,SUEZ RECYCLING & RECOVERY UK LTD,ENVIRON WASTE MGMT,"2,500.81"
Lancs Fire & Rescue Service,E6123,Fire,105942017,27-Sep-19,Computer Software,SOFTCAT LTD,ICT CALL SYSTEMS,"2,192.40"
Lancs Fire & Rescue Service,E6123,Fire,105942017,27-Sep-19,Computer Software,SOFTCAT LTD,ICT CALL SYSTEMS,"3,997.88"
Lancs Fire & Rescue Service,E6123,Fire,105942017,27-Sep-19,Computer Software,SOFTCAT LTD,ICT CALL SYSTEMS,112.8
Lancs Fire & Rescue Service,E6123,Fire,105942018,24-Sep-19,Computer Hardware,INSIGHT DIRECT (UK) LTD,ICT SOFTWARE,"5,236.19"
Lancs Fire & Rescue Service,E6123,Fire,105942024,24-Sep-19,Professional Services,HARRISON NETWORK,HR PROFESSIONAL&ADVISORY,220
Lancs Fire & Rescue Service,E6123,Fire,105942024,24-Sep-19,Professional Services,HARRISON NETWORK,HR PROFESSIONAL&ADVISORY,105.3
Lancs Fire & Rescue Service,E6123,Fire,105942024,24-Sep-19,Professional Services,HARRISON NETWORK,HR PROFESSIONAL&ADVISORY,315
Lancs Fire & Rescue Service,E6123,Fire,105942024,24-Sep-19,Professional Services,HARRISON NETWORK,HR PROFESSIONAL&ADVISORY,925
Lancs Fire & Rescue Service,E6123,Fire,105942041,24-Sep-19,Computer Software,SOFTCAT LTD,ICT CALL SYSTEMS,388.45
Lancs Fire & Rescue Service,E6123,Fire,105942041,24-Sep-19,Computer Software,SOFTCAT LTD,ICT CALL SYSTEMS,"1,830.80"
Lancs Fire & Rescue Service,E6123,Fire,105942041,24-Sep-19,Computer Software,SOFTCAT LTD,ICT CALL SYSTEMS,"3,850.20"
Lancs Fire & Rescue Service,E6123,Fire,105942051,24-Sep-19,Fire - Operational Equipment,DELTA FIRE,HEALTH&SAFETY PRODUCTS,"2,250.00"
Lancs Fire & Rescue Service,E6123,Fire,105942053,24-Sep-19,Conference Expenses,LOCAL GOVERNMENT ASSOCIATION,CONSULTANCY MANAGEMENT,790
Lancs Fire & Rescue Service,E6123,Fire,105942055,24-Sep-19,Agency Staff,OFFICE ANGELS LIMITED,HR TEMPOARY&AGENCY STAFF,498.9
Lancs Fire & Rescue Service,E6123,Fire,105942059,11-Oct-19,Fire - Op Equip Repairs,MARLBOROUGH COMMUNICATIONS LTD,FRS SPECIALIST EQUIPMENT,184
Lancs Fire & Rescue Service,E6123,Fire,105942059,11-Oct-19,Fire - Op Equip Repairs,MARLBOROUGH COMMUNICATIONS LTD,FRS SPECIALIST EQUIPMENT,460
Lancs Fire & Rescue Service,E6123,Fire,105942059,11-Oct-19,Fire - Op Equip Repairs,MARLBOROUGH COMMUNICATIONS LTD,FRS SPECIALIST EQUIPMENT,"1,265.00"
Lancs Fire & Rescue Service,E6123,Fire,105942059,11-Oct-19,Fire - Op Equip Repairs,MARLBOROUGH COMMUNICATIONS LTD,FRS SPECIALIST EQUIPMENT,"1,265.00"
Lancs Fire & Rescue Service,E6123,Fire,105942059,11-Oct-19,Fire - Op Equip Repairs,MARLBOROUGH COMMUNICATIONS LTD,FRS SPECIALIST EQUIPMENT,"1,636.00"
Lancs Fire & Rescue Service,E6123,Fire,105942059,11-Oct-19,Fire - Op Equip Repairs,MARLBOROUGH COMMUNICATIONS LTD,FRS SPECIALIST EQUIPMENT,481
Lancs Fire & Rescue Service,E6123,Fire,105942059,11-Oct-19,Fire - Op Equip Repairs,MARLBOROUGH COMMUNICATIONS LTD,FRS SPECIALIST EQUIPMENT,305
Lancs Fire & Rescue Service,E6123,Fire,105942083,24-Sep-19,Agency Staff,OFFICE ANGELS LIMITED,HR TEMPOARY&AGENCY STAFF,468.13
Lancs Fire & Rescue Service,E6123,Fire,105942086,27-Sep-19,Medical Fees,ORGANISATIONAL HEALTHCARE LTD,HEALTH&SAFETY SERVICES,"3,150.00"
Lancs Fire & Rescue Service,E6123,Fire,105942088,24-Sep-19,Medical Fees,ORGANISATIONAL HEALTHCARE LTD,HEALTH&SAFETY SERVICES,"5,775.00"
Lancs Fire & Rescue Service,E6123,Fire,105942101,24-Sep-19,Medical Fees,DRS.DIRECT,MEDICAL SERVICES,900
Lancs Fire & Rescue Service,E6123,Fire,105942126,24-Sep-19,Vehicle Repairs & Maintenance,LANCASHIRE COUNTY COUNCIL,LOCAL GOVERNMENT,"5,127.08"
Lancs Fire & Rescue Service,E6123,Fire,105942126,24-Sep-19,Vehicle Repairs & Maintenance,LANCASHIRE COUNTY COUNCIL,LOCAL GOVERNMENT,"21,055.69"
Lancs Fire & Rescue Service,E6123,Fire,105942129,24-Sep-19,Vehicle Purchase,FORD MOTOR CO LTD,VEHICLES COMMERCIAL,"13,871.07"
Lancs Fire & Rescue Service,E6123,Fire,105942129,24-Sep-19,Vehicle Purchase,FORD MOTOR CO LTD,VEHICLES COMMERCIAL,"-13,871.07"
Lancs Fire & Rescue Service,E6123,Fire,105942129,24-Sep-19,Vehicle Purchase,FORD MOTOR CO LTD,VEHICLES COMMERCIAL,"13,871.07"
Lancs Fire & Rescue Service,E6123,Fire,105942129,24-Sep-19,Vehicle Purchase,FORD MOTOR CO LTD,VEHICLES COMMERCIAL,"41,613.21"
Lancs Fire & Rescue Service,E6123,Fire,105942129,24-Sep-19,Vehicle Purchase,FORD MOTOR CO LTD,VEHICLES COMMERCIAL,-0.01
Lancs Fire & Rescue Service,E6123,Fire,105942129,24-Sep-19,Vehicle Purchase,FORD MOTOR CO LTD,VEHICLES COMMERCIAL,"-41,613.21"
Lancs Fire & Rescue Service,E6123,Fire,105942141,11-Oct-19,Support for Member Champion,ORVEC INTERNATIONAL LTD (ORVECARE),MEDICAL EQUIPMENT,35
Lancs Fire & Rescue Service,E6123,Fire,105942141,11-Oct-19,Support for Member Champion,ORVEC INTERNATIONAL LTD (ORVECARE),MEDICAL EQUIPMENT,722.4
Lancs Fire & Rescue Service,E6123,Fire,105942150,24-Sep-19,Professional Services,HUMAN SPIRIT LTD,TRAINING,250
Lancs Fire & Rescue Service,E6123,Fire,105942150,24-Sep-19,Professional Services,HUMAN SPIRIT LTD,TRAINING,250
Lancs Fire & Rescue Service,E6123,Fire,105942150,24-Sep-19,Professional Services,HUMAN SPIRIT LTD,TRAINING,250
Lancs Fire & Rescue Service,E6123,Fire,105942150,24-Sep-19,Professional Services,HUMAN SPIRIT LTD,TRAINING,57.6
Lancs Fire & Rescue Service,E6123,Fire,105942152,24-Sep-19,Consumable Materials,C & W BERRY LTD,BUILDING MATS&SVCS GEN,59.5
Lancs Fire & Rescue Service,E6123,Fire,105942152,24-Sep-19,Consumable Materials,C & W BERRY LTD,BUILDING MATS&SVCS GEN,37.5
Lancs Fire & Rescue Service,E6123,Fire,105942152,24-Sep-19,Consumable Materials,C & W BERRY LTD,BUILDING MATS&SVCS GEN,-219.75
Lancs Fire & Rescue Service,E6123,Fire,105942152,24-Sep-19,Consumable Materials,C & W BERRY LTD,BUILDING MATS&SVCS GEN,945.75
Lancs Fire & Rescue Service,E6123,Fire,105948659,17-Sep-19,PFI - Capital Charge,MERSEYSIDE FIRE & RESCUE AUTHORITY,LOCAL GOVERNMENT,"152,856.69"
Lancs Fire & Rescue Service,E6123,Fire,105948660,17-Sep-19,PFI - Capital Charge,MERSEYSIDE FIRE & RESCUE AUTHORITY,LOCAL GOVERNMENT,-877.74
Lancs Fire & Rescue Service,E6123,Fire,105950362,20-Sep-19,Vehicle Spares & Small Tools,WILLIAM MOORE & SON LTD,FRS SPECIALIST EQUIPMENT,815.07
Lancs Fire & Rescue Service,E6123,Fire,105950366,20-Sep-19,Publications for Office Use,FREIGHT TRANSPORT ASSOCIATION LTD,HR PROFESSIONAL&ADVISORY,"1,063.00"
Lancs Fire & Rescue Service,E6123,Fire,105950383,20-Sep-19,Vehicle & Plant R&M (External),JAMES HART (CHORLEY) LTD,TRANSPORT MAINTENANCE,"3,666.20"
Lancs Fire & Rescue Service,E6123,Fire,105950391,20-Sep-19,Tyres,GOODYEAR DUNLOP TYRES UK LTD,VEHICLES MAINTENANCE,"7,494.40"
Lancs Fire & Rescue Service,E6123,Fire,105950393,20-Sep-19,Vehicle & Plant R&M (External),EMERGENCY ONE UK LTD,TRANSPORT REPAIR,"1,422.50"
Lancs Fire & Rescue Service,E6123,Fire,105950394,20-Sep-19,Vehicle & Plant R&M (External),ROSENBAUER UK LTD,FRS SPECIALIST VEHICLES,"2,869.90"
Lancs Fire & Rescue Service,E6123,Fire,105955702,18-Oct-19,Vehicle & Plant R&M (External),OTRA LTD,VEHICLES MAINTENANCE,"1,096.00"
Lancs Fire & Rescue Service,E6123,Fire,105955714,24-Sep-19,Diesel,STANDARD FUEL OILS LTD,UTILITIES HEATING OIL,"2,590.50"
Lancs Fire & Rescue Service,E6123,Fire,105955715,24-Sep-19,Diesel,STANDARD FUEL OILS LTD,UTILITIES HEATING OIL,"5,179.96"
Lancs Fire & Rescue Service,E6123,Fire,105955717,24-Sep-19,Diesel,STANDARD FUEL OILS LTD,UTILITIES HEATING OIL,"3,108.60"
Lancs Fire & Rescue Service,E6123,Fire,105956578,24-Sep-19,Programmed Work,FOX TAIL LTD,BUILDING MATS&SVCS FLOOR,"2,128.00"
Lancs Fire & Rescue Service,E6123,Fire,105956589,24-Sep-19,Fire Operational Communications,HOME OFFICE,GOVERNMENT,"41,162.47"
Lancs Fire & Rescue Service,E6123,Fire,105956589,24-Sep-19,Fire Operational Communications,HOME OFFICE,GOVERNMENT,"1,787.11"
Lancs Fire & Rescue Service,E6123,Fire,105956593,24-Sep-19,Computer Hardware,INSIGHT DIRECT (UK) LTD,ICT SOFTWARE,"1,047.24"
Lancs Fire & Rescue Service,E6123,Fire,105956593,24-Sep-19,Computer Hardware,INSIGHT DIRECT (UK) LTD,ICT SOFTWARE,"5,236.19"
Lancs Fire & Rescue Service,E6123,Fire,105956593,24-Sep-19,Computer Hardware,INSIGHT DIRECT (UK) LTD,ICT SOFTWARE,"-1,047.24"
Lancs Fire & Rescue Service,E6123,Fire,105956613,24-Sep-19,Professional Services,AMCAT (UK) LTD,HR PROFESSIONAL&ADVISORY,741.75
Lancs Fire & Rescue Service,E6123,Fire,105956613,24-Sep-19,Professional Services,AMCAT (UK) LTD,HR PROFESSIONAL&ADVISORY,12
Lancs Fire & Rescue Service,E6123,Fire,105956614,27-Sep-19,Programmed Work,FOX TAIL LTD,BUILDING MATS&SVCS FLOOR,"2,840.00"
Lancs Fire & Rescue Service,E6123,Fire,105956617,27-Sep-19,Ext� Adapt� Improv� Etc,J GREENWOOD (BUILDERS) LTD,BUILDING MATS&SVCS GEN,"5,306.75"
Lancs Fire & Rescue Service,E6123,Fire,105956619,24-Sep-19,Programmed Work,AC ELECTRICAL SUPPLIES LTD,BUILDING MATS&SVCS ELEC,420
Lancs Fire & Rescue Service,E6123,Fire,105956626,24-Sep-19,Repairs & Maintenance General,R H WELLS ELECTRICAL LTD,BUILDING MATS&SVCS ELEC,"1,417.50"
Lancs Fire & Rescue Service,E6123,Fire,105956630,24-Sep-19,Delegated Grounds Maintenance,LANCASHIRE COUNTY COUNCIL,LOCAL GOVERNMENT,825
Lancs Fire & Rescue Service,E6123,Fire,105956993,27-Sep-19,Fire Mobs Network Maint,LARS COMMUNICATION,ICT MAINTENANCE,"1,661.79"
Lancs Fire & Rescue Service,E6123,Fire,105957098,08-Oct-19,Rents - Premises,WEST LANCASHIRE BOROUGH COUNCIL,LOCAL GOVERNMENT,"1,010.50"
Lancs Fire & Rescue Service,E6123,Fire,105957099,11-Oct-19,Rents - Premises,PRESTON CITY COUNCIL,LOCAL GOVERNMENT,912.5
Lancs Fire & Rescue Service,E6123,Fire,105957100,15-Oct-19,Gas,CORONA ENERGY,UTILITIES GAS,664.84
Lancs Fire & Rescue Service,E6123,Fire,105957106,15-Oct-19,Gas,CORONA ENERGY,UTILITIES GAS,"1,417.49"
Lancs Fire & Rescue Service,E6123,Fire,105957108,15-Oct-19,Gas,CORONA ENERGY,UTILITIES GAS,699.94
Lancs Fire & Rescue Service,E6123,Fire,105957153,15-Oct-19,Gas,CORONA ENERGY,UTILITIES GAS,677.74
Lancs Fire & Rescue Service,E6123,Fire,105957304,01-Oct-19,Medical Fees,P&A MEDICAL LTD,MEDICAL SERVICES,94.5
Lancs Fire & Rescue Service,E6123,Fire,105957304,01-Oct-19,Medical Fees,P&A MEDICAL LTD,MEDICAL SERVICES,50
Lancs Fire & Rescue Service,E6123,Fire,105957304,01-Oct-19,Medical Fees,P&A MEDICAL LTD,MEDICAL SERVICES,130.5
Lancs Fire & Rescue Service,E6123,Fire,105957304,01-Oct-19,Medical Fees,P&A MEDICAL LTD,MEDICAL SERVICES,45.5
Lancs Fire & Rescue Service,E6123,Fire,105957304,01-Oct-19,Medical Fees,P&A MEDICAL LTD,MEDICAL SERVICES,130.5
Lancs Fire & Rescue Service,E6123,Fire,105957304,01-Oct-19,Medical Fees,P&A MEDICAL LTD,MEDICAL SERVICES,130.5
Lancs Fire & Rescue Service,E6123,Fire,105957304,01-Oct-19,Medical Fees,P&A MEDICAL LTD,MEDICAL SERVICES,36.5
Lancs Fire & Rescue Service,E6123,Fire,105957304,01-Oct-19,Medical Fees,P&A MEDICAL LTD,MEDICAL SERVICES,45.5
Lancs Fire & Rescue Service,E6123,Fire,105957304,01-Oct-19,Medical Fees,P&A MEDICAL LTD,MEDICAL SERVICES,261
Lancs Fire & Rescue Service,E6123,Fire,105957304,01-Oct-19,Medical Fees,P&A MEDICAL LTD,MEDICAL SERVICES,98
Lancs Fire & Rescue Service,E6123,Fire,105957307,01-Oct-19,Course Providers,RED ONE LTD,EDUCATION SERVICES,"3,922.00"
Lancs Fire & Rescue Service,E6123,Fire,105957308,11-Oct-19,Professional Services,SURETY FIRE SOLUTIONS LTD,CONSULTANCY BUSINESS,-900
Lancs Fire & Rescue Service,E6123,Fire,105957308,11-Oct-19,Professional Services,SURETY FIRE SOLUTIONS LTD,CONSULTANCY BUSINESS,"-5,400.00"
Lancs Fire & Rescue Service,E6123,Fire,105957308,11-Oct-19,Professional Services,SURETY FIRE SOLUTIONS LTD,CONSULTANCY BUSINESS,"5,400.00"
Lancs Fire & Rescue Service,E6123,Fire,105957308,11-Oct-19,Professional Services,SURETY FIRE SOLUTIONS LTD,CONSULTANCY BUSINESS,"5,400.00"
Lancs Fire & Rescue Service,E6123,Fire,105957310,15-Oct-19,Catering Service (External),PRESTON'S COLLEGE,EDUCATION SERVICES,419.25
Lancs Fire & Rescue Service,E6123,Fire,105957316,01-Oct-19,General Fees & Charges,THE POLICE & CRIME COMMISSIONER FOR LANCASHIRE,POLICING,"2,002.00"
Lancs Fire & Rescue Service,E6123,Fire,105957325,11-Oct-19,Professional Services,THOMSON REUTERS PROFESSIONAL UK LTD,LEGAL SVCS ADVOCACY,"1,346.75"
Lancs Fire & Rescue Service,E6123,Fire,105957325,11-Oct-19,Professional Services,THOMSON REUTERS PROFESSIONAL UK LTD,LEGAL SVCS ADVOCACY,"1,170.98"
Lancs Fire & Rescue Service,E6123,Fire,105957325,11-Oct-19,Professional Services,THOMSON REUTERS PROFESSIONAL UK LTD,LEGAL SVCS ADVOCACY,175.77
Lancs Fire & Rescue Service,E6123,Fire,105957325,11-Oct-19,Professional Services,THOMSON REUTERS PROFESSIONAL UK LTD,LEGAL SVCS ADVOCACY,"-1,170.98"
Lancs Fire & Rescue Service,E6123,Fire,105957325,11-Oct-19,Professional Services,THOMSON REUTERS PROFESSIONAL UK LTD,LEGAL SVCS ADVOCACY,-175.77
Lancs Fire & Rescue Service,E6123,Fire,105957325,11-Oct-19,Professional Services,THOMSON REUTERS PROFESSIONAL UK LTD,LEGAL SVCS ADVOCACY,-175.77
Lancs Fire & Rescue Service,E6123,Fire,105957325,11-Oct-19,Professional Services,THOMSON REUTERS PROFESSIONAL UK LTD,LEGAL SVCS ADVOCACY,175.77
Lancs Fire & Rescue Service,E6123,Fire,105957337,01-Oct-19,Programmed Work,FOX TAIL LTD,BUILDING MATS&SVCS FLOOR,"1,330.00"
Lancs Fire & Rescue Service,E6123,Fire,105957338,01-Oct-19,Programmed Work,HARVEY ENVIRONMENTAL SERVICES,ENVIRON PEST CONTROL,"3,998.50"
Lancs Fire & Rescue Service,E6123,Fire,105957341,01-Oct-19,Repairs & Maintenance General,HARVEY ENVIRONMENTAL SERVICES,ENVIRON PEST CONTROL,822
Lancs Fire & Rescue Service,E6123,Fire,105957346,01-Oct-19,Repairs & Maintenance General,HARDACRES PLUMBERS (NW) LTD,WORKS BUILDINGS,940.81
Lancs Fire & Rescue Service,E6123,Fire,105957355,18-Oct-19,Programmed Work,BEST TRADING DIVISION OF PTSG ELECTRICAL SERVICES LTD,WORKS BUILDINGS,431
Lancs Fire & Rescue Service,E6123,Fire,105957356,26-Sep-19,PFI - Capital Charge,PFF LANCASHIRE LTD,FACIL&MGMT RETAIL,"10,893.14"
Lancs Fire & Rescue Service,E6123,Fire,105957357,26-Sep-19,PFI - Capital Charge,PFF LANCASHIRE LTD,FACIL&MGMT RETAIL,"59,482.57"
Lancs Fire & Rescue Service,E6123,Fire,105957362,01-Oct-19,Professional Services,PHASE 3 CONSULTING,CONSULTANCY BUSINESS,942.3
Lancs Fire & Rescue Service,E6123,Fire,105957363,01-Oct-19,Consumable Materials,C & W BERRY LTD,BUILDING MATS&SVCS GEN,578.5
Lancs Fire & Rescue Service,E6123,Fire,105957365,08-Oct-19,Catering Service (External),BRAKE BROS LTD,CATERING FOOD&BEVERAGE,692.45
Lancs Fire & Rescue Service,E6123,Fire,105957365,08-Oct-19,Catering Service (External),BRAKE BROS LTD,CATERING FOOD&BEVERAGE,14.26
Lancs Fire & Rescue Service,E6123,Fire,105957541,01-Oct-19,Stationery,VOW EUROPE LTD,STATIONERY PAPER,"1,811.28"
Lancs Fire & Rescue Service,E6123,Fire,105958856,27-Sep-19,Repairs & Maintenance General,BID GROUP LTD,BUILDING MATS&SVCS GEN,482
Lancs Fire & Rescue Service,E6123,Fire,105958862,15-Oct-19,Programmed Work,BEST TRADING DIVISION OF PTSG ELECTRICAL SERVICES LTD,WORKS BUILDINGS,421
Lancs Fire & Rescue Service,E6123,Fire,105958875,27-Sep-19,Catering Service (External),NORTH EUSTON HOTEL,FACIL&MGMT TRAVEL,500
Lancs Fire & Rescue Service,E6123,Fire,105958880,06-Dec-19,Course Providers,SERCO LTD,ICT SOFTWARE,880
Lancs Fire & Rescue Service,E6123,Fire,105958880,06-Dec-19,Training Expenses (External),SERCO LTD,ICT SOFTWARE,57.5
Lancs Fire & Rescue Service,E6123,Fire,105958880,06-Dec-19,Training Expenses (External),SERCO LTD,ICT SOFTWARE,17.5
Lancs Fire & Rescue Service,E6123,Fire,105958883,27-Sep-19,Fire Mobs Paging Equipment,PAGEONE COMMUNICATIONS LTD,ICT CALL SYSTEMS,"1,823.12"
Lancs Fire & Rescue Service,E6123,Fire,105958884,04-Oct-19,Computer Hardware,STONE COMPUTERS LTD,ICT HARDWARE,"2,051.13"
Lancs Fire & Rescue Service,E6123,Fire,105958884,22-Oct-19,Computer Hardware,STONE COMPUTERS LTD,ICT HARDWARE,"2,051.13"
Lancs Fire & Rescue Service,E6123,Fire,105959566,24-Sep-19,Professional Services,REDACTED,CONSULTANCY MANAGEMENT,"1,262.50"
Lancs Fire & Rescue Service,E6123,Fire,105964766,11-Oct-19,Electricity,NPOWER,UTILITIES ELECTRICITY,570.48
Lancs Fire & Rescue Service,E6123,Fire,105964772,11-Oct-19,Electricity,NPOWER,UTILITIES ELECTRICITY,436.16
Lancs Fire & Rescue Service,E6123,Fire,105964793,11-Oct-19,Electricity,NPOWER,UTILITIES ELECTRICITY,447.23
Lancs Fire & Rescue Service,E6123,Fire,105964802,11-Oct-19,Electricity,NPOWER,UTILITIES ELECTRICITY,834.76
Lancs Fire & Rescue Service,E6123,Fire,105964808,11-Oct-19,Electricity,NPOWER,UTILITIES ELECTRICITY,731.42
Lancs Fire & Rescue Service,E6123,Fire,105964810,11-Oct-19,Electricity,NPOWER,UTILITIES ELECTRICITY,543.34
Lancs Fire & Rescue Service,E6123,Fire,105964817,11-Oct-19,Electricity,NPOWER,UTILITIES ELECTRICITY,"3,843.66"
Lancs Fire & Rescue Service,E6123,Fire,105964823,11-Oct-19,Electricity,NPOWER,UTILITIES ELECTRICITY,"3,948.82"
Lancs Fire & Rescue Service,E6123,Fire,105964824,11-Oct-19,Electricity,NPOWER,UTILITIES ELECTRICITY,"1,395.85"
Lancs Fire & Rescue Service,E6123,Fire,105964825,11-Oct-19,Electricity,NPOWER,UTILITIES ELECTRICITY,"1,030.22"
Lancs Fire & Rescue Service,E6123,Fire,105964837,11-Oct-19,Electricity,NPOWER,UTILITIES ELECTRICITY,488.38
Lancs Fire & Rescue Service,E6123,Fire,105964840,11-Oct-19,Electricity,NPOWER,UTILITIES ELECTRICITY,425.37
Lancs Fire & Rescue Service,E6123,Fire,105964841,11-Oct-19,Electricity,NPOWER,UTILITIES ELECTRICITY,537.77
Lancs Fire & Rescue Service,E6123,Fire,105965717,15-Oct-19,Programmed Work,DLP SERVICES NORTHERN LTD,BUILDING MATS&SVCS GEN,630.88
Lancs Fire & Rescue Service,E6123,Fire,105965721,18-Oct-19,Programmed Work,BEST TRADING DIVISION OF PTSG ELECTRICAL SERVICES LTD,WORKS BUILDINGS,"1,660.00"
Lancs Fire & Rescue Service,E6123,Fire,105965725,01-Oct-19,Vehicle Purchase,FORD MOTOR CO LTD,VEHICLES COMMERCIAL,"18,007.67"
Lancs Fire & Rescue Service,E6123,Fire,105965726,08-Oct-19,Fire - Op Equip Repairs,DELTA FIRE,HEALTH&SAFETY PRODUCTS,26
Lancs Fire & Rescue Service,E6123,Fire,105965726,08-Oct-19,Fire - Op Equip Repairs,DELTA FIRE,HEALTH&SAFETY PRODUCTS,4
Lancs Fire & Rescue Service,E6123,Fire,105965726,08-Oct-19,Fire - Op Equip Repairs,DELTA FIRE,HEALTH&SAFETY PRODUCTS,12.5
Lancs Fire & Rescue Service,E6123,Fire,105965726,08-Oct-19,Fire - Op Equip Repairs,DELTA FIRE,HEALTH&SAFETY PRODUCTS,15.58
Lancs Fire & Rescue Service,E6123,Fire,105965726,08-Oct-19,Fire - Op Equip Repairs,DELTA FIRE,HEALTH&SAFETY PRODUCTS,4.54
Lancs Fire & Rescue Service,E6123,Fire,105965726,08-Oct-19,Fire - Op Equip Repairs,DELTA FIRE,HEALTH&SAFETY PRODUCTS,429.9
Lancs Fire & Rescue Service,E6123,Fire,105965730,01-Oct-19,Repairs & Maintenance General,A & D DRAIN SERVICES LTD,BUILDING MATS&SVCS PLUMB,448
Lancs Fire & Rescue Service,E6123,Fire,105965732,01-Oct-19,Repairs & Maintenance General,A & D DRAIN SERVICES LTD,BUILDING MATS&SVCS PLUMB,448
Lancs Fire & Rescue Service,E6123,Fire,105965733,01-Oct-19,Repairs & Maintenance General,A & D DRAIN SERVICES LTD,BUILDING MATS&SVCS PLUMB,448
Lancs Fire & Rescue Service,E6123,Fire,105965735,01-Oct-19,Programmed Work,A & D DRAIN SERVICES LTD,BUILDING MATS&SVCS PLUMB,996
Lancs Fire & Rescue Service,E6123,Fire,105965736,01-Oct-19,Programmed Work,A & D DRAIN SERVICES LTD,BUILDING MATS&SVCS PLUMB,896
Lancs Fire & Rescue Service,E6123,Fire,105965742,01-Oct-19,Course Providers,QA LTD,ICT HARDWARE,"2,941.95"
Lancs Fire & Rescue Service,E6123,Fire,105965743,27-Sep-19,Fire - Operational Equipment,SAFEQUIP LTD,HEALTH&SAFETY PRODUCTS,330
Lancs Fire & Rescue Service,E6123,Fire,105965743,27-Sep-19,Fire - Operational Equipment,SAFEQUIP LTD,HEALTH&SAFETY PRODUCTS,660
Lancs Fire & Rescue Service,E6123,Fire,105965746,11-Oct-19,Computer Hardware,STONE COMPUTERS LTD,ICT HARDWARE,"1,186.12"
Lancs Fire & Rescue Service,E6123,Fire,105966910,01-Oct-19,Agency Staff,OFFICE ANGELS LIMITED,HR TEMPOARY&AGENCY STAFF,428.22
Lancs Fire & Rescue Service,E6123,Fire,105968654,27-Sep-19,Stocks And Stores - General,COMPASS FUEL OILS LTD,VEHICLES MAINTENANCE,450
Lancs Fire & Rescue Service,E6123,Fire,105968655,27-Sep-19,Stocks And Stores - General,GOLIATH FOOTWEAR LTD,CLOTHING SAFETYFOOTWARE,"3,890.80"
Lancs Fire & Rescue Service,E6123,Fire,105968656,27-Sep-19,Stocks And Stores - General,KEELA INTERNATIONAL LTD,CLOTHING PERSONAL,"1,073.00"
Lancs Fire & Rescue Service,E6123,Fire,105968657,27-Sep-19,Stocks And Stores - General,GIFFARD NEWTON & SONS LTD,CLOTHING SAFETYFOOTWARE,"1,356.00"
Lancs Fire & Rescue Service,E6123,Fire,105968658,27-Sep-19,Stocks And Stores - General,GIFFARD NEWTON & SONS LTD,CLOTHING SAFETYFOOTWARE,904
Lancs Fire & Rescue Service,E6123,Fire,105968662,27-Sep-19,Stocks And Stores - General,PREMIER ROLLS LTD,STATIONERY SUNDRIES,468.24
Lancs Fire & Rescue Service,E6123,Fire,105968665,27-Sep-19,Postage & Carriage,THE SAFETY LETTER BOX COMPANY LTD,STATIONERY SUNDRIES,36
Lancs Fire & Rescue Service,E6123,Fire,105968665,27-Sep-19,Stocks And Stores - General,THE SAFETY LETTER BOX COMPANY LTD,STATIONERY SUNDRIES,"1,800.00"
Lancs Fire & Rescue Service,E6123,Fire,105968666,27-Sep-19,Postage & Carriage,THE SAFETY LETTER BOX COMPANY LTD,STATIONERY SUNDRIES,36
Lancs Fire & Rescue Service,E6123,Fire,105968666,27-Sep-19,Stocks And Stores - General,THE SAFETY LETTER BOX COMPANY LTD,STATIONERY SUNDRIES,"1,800.00"
Lancs Fire & Rescue Service,E6123,Fire,105968668,27-Sep-19,Postage & Carriage,SPEEDINGS LIMITED,HR TRAINING&CONFERENCES,15
Lancs Fire & Rescue Service,E6123,Fire,105968668,27-Sep-19,Stocks And Stores - General,SPEEDINGS LIMITED,HR TRAINING&CONFERENCES,772
Lancs Fire & Rescue Service,E6123,Fire,105968672,27-Sep-19,Stocks And Stores - General,RELIANCE MEDICAL LTD,MEDICAL CONSUMABLES,"1,341.66"
Lancs Fire & Rescue Service,E6123,Fire,105968675,27-Sep-19,Stocks And Stores - General,MSA BRITAIN LIMITED,HEALTH&SAFETY PRODUCTS,916.8
Lancs Fire & Rescue Service,E6123,Fire,105968677,27-Sep-19,Stocks And Stores - General,CPC (COMBINED PRECISION COMPONENTS) PLC,BUILDING MATS&SVCS ELEC,863.2
Lancs Fire & Rescue Service,E6123,Fire,105969008,01-Oct-19,Pensions Services SLA,GOVERNMENT ACTUARYS DEPARTMENT,GOVERNMENT,"5,499.83"
Lancs Fire & Rescue Service,E6123,Fire,105969918,01-Oct-19,Furniture General,ONLINE ERGONOMICS,FURNITURE OFFICE,455.25
Lancs Fire & Rescue Service,E6123,Fire,105970472,11-Oct-19,Professional Services,THOMSON REUTERS PROFESSIONAL UK LTD,LEGAL SVCS ADVOCACY,"2,063.25"
Lancs Fire & Rescue Service,E6123,Fire,105970472,11-Oct-19,Professional Services,THOMSON REUTERS PROFESSIONAL UK LTD,LEGAL SVCS ADVOCACY,"2,063.25"
Lancs Fire & Rescue Service,E6123,Fire,105970472,11-Oct-19,Professional Services,THOMSON REUTERS PROFESSIONAL UK LTD,LEGAL SVCS ADVOCACY,"-2,063.25"
Lancs Fire & Rescue Service,E6123,Fire,105970476,11-Oct-19,Professional Services,THOMSON REUTERS PROFESSIONAL UK LTD,LEGAL SVCS ADVOCACY,"-2,063.25"
Lancs Fire & Rescue Service,E6123,Fire,105970476,11-Oct-19,Professional Services,THOMSON REUTERS PROFESSIONAL UK LTD,LEGAL SVCS ADVOCACY,"-2,063.25"
Lancs Fire & Rescue Service,E6123,Fire,105970476,11-Oct-19,Professional Services,THOMSON REUTERS PROFESSIONAL UK LTD,LEGAL SVCS ADVOCACY,"2,063.25"
Lancs Fire & Rescue Service,E6123,Fire,105970477,11-Oct-19,Professional Services,THOMSON REUTERS PROFESSIONAL UK LTD,LEGAL SVCS ADVOCACY,"-1,170.98"
Lancs Fire & Rescue Service,E6123,Fire,105970477,11-Oct-19,Professional Services,THOMSON REUTERS PROFESSIONAL UK LTD,LEGAL SVCS ADVOCACY,"-1,018.15"
Lancs Fire & Rescue Service,E6123,Fire,105970477,11-Oct-19,Professional Services,THOMSON REUTERS PROFESSIONAL UK LTD,LEGAL SVCS ADVOCACY,-152.83
Lancs Fire & Rescue Service,E6123,Fire,105970477,11-Oct-19,Professional Services,THOMSON REUTERS PROFESSIONAL UK LTD,LEGAL SVCS ADVOCACY,"1,018.15"
Lancs Fire & Rescue Service,E6123,Fire,105970477,11-Oct-19,Professional Services,THOMSON REUTERS PROFESSIONAL UK LTD,LEGAL SVCS ADVOCACY,152.83
Lancs Fire & Rescue Service,E6123,Fire,105970478,08-Oct-19,Course Providers,MANAGEMENT ASSOCIATES LTD,TRAINING,650
Lancs Fire & Rescue Service,E6123,Fire,105970483,08-Oct-19,Fire - Hydrants,UNITED UTILITIES WATER PLC,UTILITIES WATER,627.04
Lancs Fire & Rescue Service,E6123,Fire,105970484,11-Oct-19,Fire - Operational Equipment,LEDCO LIMITED,UNCLASSIFIED TRADE,0.13
Lancs Fire & Rescue Service,E6123,Fire,105970484,11-Oct-19,Fire - Operational Equipment,LEDCO LIMITED,UNCLASSIFIED TRADE,952.64
Lancs Fire & Rescue Service,E6123,Fire,105970484,11-Oct-19,Fire - Operational Equipment,LEDCO LIMITED,UNCLASSIFIED TRADE,952.77
Lancs Fire & Rescue Service,E6123,Fire,105970484,11-Oct-19,Fire - Operational Equipment,LEDCO LIMITED,UNCLASSIFIED TRADE,-952.77
Lancs Fire & Rescue Service,E6123,Fire,105972783,11-Oct-19,Mobile Phone Costs,EVERYTHING EVERYWHERE LTD,TELEPHONE SERVICES,"1,734.48"
Lancs Fire & Rescue Service,E6123,Fire,105972784,18-Oct-19,Computer Hardware,CDW LTD,ICT MAINTENANCE,455.2
Lancs Fire & Rescue Service,E6123,Fire,105972784,18-Oct-19,Computer Hardware,CDW LTD,ICT MAINTENANCE,149.6
Lancs Fire & Rescue Service,E6123,Fire,105972784,18-Oct-19,Computer Hardware,CDW LTD,ICT MAINTENANCE,876.7
Lancs Fire & Rescue Service,E6123,Fire,105972784,18-Oct-19,Computer Hardware,CDW LTD,ICT MAINTENANCE,"1,382.00"
Lancs Fire & Rescue Service,E6123,Fire,105972786,11-Oct-19,Computer Hardware,PROBRAND LTD,ICT HARDWARE,2
Lancs Fire & Rescue Service,E6123,Fire,105972786,01-Oct-19,Computer Hardware,PROBRAND LTD,ICT HARDWARE,2
Lancs Fire & Rescue Service,E6123,Fire,105972786,01-Oct-19,Computer Hardware,PROBRAND LTD,ICT HARDWARE,"1,141.56"
Lancs Fire & Rescue Service,E6123,Fire,105972786,11-Oct-19,Computer Hardware,PROBRAND LTD,ICT HARDWARE,"1,141.56"
Lancs Fire & Rescue Service,E6123,Fire,105972787,15-Oct-19,Exchange Phones,MAINTEL EUROPE LTD,ICT TELECOMMS FIXED,"2,301.89"
Lancs Fire & Rescue Service,E6123,Fire,105972878,22-Oct-19,Programmed Work,WORTHINGTON & GRAHAM OF PRESTON LTD,BUILDING MATS&SVCS GEN,"1,664.53"
Lancs Fire & Rescue Service,E6123,Fire,105972881,01-Oct-19,Repairs & Maintenance General,WEST LANCASHIRE ELECTRICAL CONTRACTORS LTD,BUILDING MATS&SVCS ELEC,525
Lancs Fire & Rescue Service,E6123,Fire,105972884,01-Oct-19,Programmed Work,WEST LANCASHIRE ELECTRICAL CONTRACTORS LTD,BUILDING MATS&SVCS ELEC,963
Lancs Fire & Rescue Service,E6123,Fire,105972906,01-Oct-19,Professional Services,SURVEY OPERATIONS LIMITED,CONSULTANCY BUSINESS,850
Lancs Fire & Rescue Service,E6123,Fire,105972913,01-Oct-19,Ext� Adapt� Improv� Etc,JOHN TURNER CONSTRUCTION GROUP LTD,WORKS BUILDINGS,"1,134.41"
Lancs Fire & Rescue Service,E6123,Fire,105972914,01-Oct-19,Programmed Work,RED ROSE BLINDS,BUILDING MATS&SVCS GEN,"1,120.00"
Lancs Fire & Rescue Service,E6123,Fire,105972915,01-Oct-19,Programmed Work,RED ROSE BLINDS,BUILDING MATS&SVCS GEN,948
Lancs Fire & Rescue Service,E6123,Fire,105972924,01-Oct-19,Computer Software,WARWICK INTERNATIONAL COMPUTING SYSTEMS,ICT SOFTWARE,"2,200.00"
Lancs Fire & Rescue Service,E6123,Fire,105972924,01-Oct-19,Computer Software,WARWICK INTERNATIONAL COMPUTING SYSTEMS,ICT SOFTWARE,"4,948.00"
Lancs Fire & Rescue Service,E6123,Fire,105972927,01-Oct-19,Cleaning & Domestic General,SCOTT ELLIOTT T/A RAINBOW INTERNATIONAL,CLEANING&JANITORIAL SVCS,225
Lancs Fire & Rescue Service,E6123,Fire,105972927,01-Oct-19,Cleaning & Domestic General,SCOTT ELLIOTT T/A RAINBOW INTERNATIONAL,CLEANING&JANITORIAL SVCS,634
Lancs Fire & Rescue Service,E6123,Fire,105972929,01-Oct-19,Course Providers,QA LTD,ICT HARDWARE,"1,961.30"
Lancs Fire & Rescue Service,E6123,Fire,105972930,01-Oct-19,Repairs & Maintenance General,BID GROUP LTD,BUILDING MATS&SVCS GEN,985
Lancs Fire & Rescue Service,E6123,Fire,105972941,15-Oct-19,Course Providers,SKILLS FOR JUSTICE ENTERPRISES LTD (PART OF WORKFORCE DEVELOPMENT TRUST LTD),EDUCATION SERVICES,30
Lancs Fire & Rescue Service,E6123,Fire,105972941,15-Oct-19,Course Providers,SKILLS FOR JUSTICE ENTERPRISES LTD (PART OF WORKFORCE DEVELOPMENT TRUST LTD),EDUCATION SERVICES,30
Lancs Fire & Rescue Service,E6123,Fire,105972941,15-Oct-19,Course Providers,SKILLS FOR JUSTICE ENTERPRISES LTD (PART OF WORKFORCE DEVELOPMENT TRUST LTD),EDUCATION SERVICES,300
Lancs Fire & Rescue Service,E6123,Fire,105972941,15-Oct-19,Course Providers,SKILLS FOR JUSTICE ENTERPRISES LTD (PART OF WORKFORCE DEVELOPMENT TRUST LTD),EDUCATION SERVICES,360
Lancs Fire & Rescue Service,E6123,Fire,105972942,01-Oct-19,Professional Services,HUMAN SPIRIT LTD,TRAINING,57.6
Lancs Fire & Rescue Service,E6123,Fire,105972942,01-Oct-19,Professional Services,HUMAN SPIRIT LTD,TRAINING,250
Lancs Fire & Rescue Service,E6123,Fire,105972942,01-Oct-19,Professional Services,HUMAN SPIRIT LTD,TRAINING,250
Lancs Fire & Rescue Service,E6123,Fire,105972942,01-Oct-19,Professional Services,HUMAN SPIRIT LTD,TRAINING,57.6
Lancs Fire & Rescue Service,E6123,Fire,105972942,01-Oct-19,Professional Services,HUMAN SPIRIT LTD,TRAINING,250
Lancs Fire & Rescue Service,E6123,Fire,105972942,01-Oct-19,Professional Services,HUMAN SPIRIT LTD,TRAINING,250
Lancs Fire & Rescue Service,E6123,Fire,105972943,01-Oct-19,Course Providers,BSL LADDER,EDUCATION SERVICES,"1,200.00"
Lancs Fire & Rescue Service,E6123,Fire,105972944,01-Oct-19,Course Providers,SAFETY MANAGEMENT CONSULTANCY LTD,CONSULTANCY BUSINESS,480
Lancs Fire & Rescue Service,E6123,Fire,105978362,04-Oct-19,Fire Mobs Network Maint,TELENT TECHNOLOGY SERVICES LTD,TRAFFIC MGMT TRAFFICCTRL,"7,149.75"
Lancs Fire & Rescue Service,E6123,Fire,105978362,04-Oct-19,Fire Mobs Network Maint,TELENT TECHNOLOGY SERVICES LTD,TRAFFIC MGMT TRAFFICCTRL,"2,349.00"
Lancs Fire & Rescue Service,E6123,Fire,105978660,04-Oct-19,Diesel,MILLERS OF LONGTON LTD,VEHICLES MAINTENANCE,250.85
Lancs Fire & Rescue Service,E6123,Fire,105978660,04-Oct-19,Petrol,MILLERS OF LONGTON LTD,VEHICLES MAINTENANCE,69.6
Lancs Fire & Rescue Service,E6123,Fire,105978660,04-Oct-19,Vehicle & Plant R&M (External),MILLERS OF LONGTON LTD,VEHICLES MAINTENANCE,175
Lancs Fire & Rescue Service,E6123,Fire,105978661,04-Oct-19,Diesel,MILLERS OF LONGTON LTD,VEHICLES MAINTENANCE,331.25
Lancs Fire & Rescue Service,E6123,Fire,105978661,04-Oct-19,Vehicle & Plant R&M (External),MILLERS OF LONGTON LTD,VEHICLES MAINTENANCE,152.5
Lancs Fire & Rescue Service,E6123,Fire,105978663,04-Oct-19,Vehicle & Plant R&M (External),JAMES HART (CHORLEY) LTD,TRANSPORT MAINTENANCE,"3,061.40"
Lancs Fire & Rescue Service,E6123,Fire,105978672,04-Oct-19,Fire - Operational Equipment,JOHN TEIRE AND CO LTD,HEALTH&SAFETY PRODUCTS,459
Lancs Fire & Rescue Service,E6123,Fire,105978674,04-Oct-19,Diesel,STANDARD FUEL OILS LTD,UTILITIES HEATING OIL,"2,596.75"
Lancs Fire & Rescue Service,E6123,Fire,105978676,04-Oct-19,Diesel,STANDARD FUEL OILS LTD,UTILITIES HEATING OIL,"2,606.25"
Lancs Fire & Rescue Service,E6123,Fire,105978677,04-Oct-19,Diesel,STANDARD FUEL OILS LTD,UTILITIES HEATING OIL,"2,085.00"
Lancs Fire & Rescue Service,E6123,Fire,105978841,04-Oct-19,Programmed Work,WOODSTOCK SIGNS,BUILDING MATS&SVCS SIGN,"1,440.00"
Lancs Fire & Rescue Service,E6123,Fire,105978843,04-Oct-19,Repairs & Maintenance General,HARDACRES PLUMBERS (NW) LTD,WORKS BUILDINGS,"1,108.20"
Lancs Fire & Rescue Service,E6123,Fire,105978849,25-Oct-19,Fire - Op Equip Repairs,RIBBLE ENVIRO LTD,ENVIRON WASTE MGMT,743
Lancs Fire & Rescue Service,E6123,Fire,105978866,18-Oct-19,Subscriptions,SHL GROUP LTD,MEDICAL EQUIPMENT,"9,900.00"
Lancs Fire & Rescue Service,E6123,Fire,105978899,04-Oct-19,Computer Software,BYTES SOFTWARE SERVICES LTD,ICT SOFTWARE,598.72
Lancs Fire & Rescue Service,E6123,Fire,105978901,04-Oct-19,Computer Software,RICARDO-AEA LTD,CONSULTANCY BUSINESS,"2,400.00"
Lancs Fire & Rescue Service,E6123,Fire,105978903,04-Oct-19,Mobile Phone Costs,O2 (UK) LTD,ICT TELECOMMS MOBILE,"4,560.47"
Lancs Fire & Rescue Service,E6123,Fire,105978918,08-Oct-19,Protective Clothing,KEITH WILCOCK TAILORS,CLOTHING UNIFORMS,"1,425.00"
Lancs Fire & Rescue Service,E6123,Fire,105978920,04-Oct-19,Protective Clothing,EAGLE TECHNICAL PRODUCTS LTD,CLOTHING PERSONAL,"1,475.00"
Lancs Fire & Rescue Service,E6123,Fire,105978967,08-Oct-19,Fire - Training Props,ABBY WELDING LTD,WORKS BUILDINGS,"1,475.00"
Lancs Fire & Rescue Service,E6123,Fire,105979522,11-Oct-19,Protective Clothing,ALTBERG LTD,CLOTHING PERSONAL,75.78
Lancs Fire & Rescue Service,E6123,Fire,105979522,11-Oct-19,Protective Clothing,ALTBERG LTD,CLOTHING PERSONAL,151.56
Lancs Fire & Rescue Service,E6123,Fire,105979522,11-Oct-19,Protective Clothing,ALTBERG LTD,CLOTHING PERSONAL,75.78
Lancs Fire & Rescue Service,E6123,Fire,105979522,11-Oct-19,Protective Clothing,ALTBERG LTD,CLOTHING PERSONAL,75.78
Lancs Fire & Rescue Service,E6123,Fire,105979522,11-Oct-19,Protective Clothing,ALTBERG LTD,CLOTHING PERSONAL,227.34
Lancs Fire & Rescue Service,E6123,Fire,105979522,11-Oct-19,Protective Clothing,ALTBERG LTD,CLOTHING PERSONAL,151.56
Lancs Fire & Rescue Service,E6123,Fire,105979522,11-Oct-19,Protective Clothing,ALTBERG LTD,CLOTHING PERSONAL,75.78
Lancs Fire & Rescue Service,E6123,Fire,105979522,11-Oct-19,Protective Clothing,ALTBERG LTD,CLOTHING PERSONAL,303.12
Lancs Fire & Rescue Service,E6123,Fire,105979522,11-Oct-19,Protective Clothing,ALTBERG LTD,CLOTHING PERSONAL,227.34
Lancs Fire & Rescue Service,E6123,Fire,105979522,11-Oct-19,Protective Clothing,ALTBERG LTD,CLOTHING PERSONAL,75.78
Lancs Fire & Rescue Service,E6123,Fire,105979522,11-Oct-19,Protective Clothing,ALTBERG LTD,CLOTHING PERSONAL,75.78
Lancs Fire & Rescue Service,E6123,Fire,105979527,18-Oct-19,Computer Software,SPECIALIST COMPUTER CENTRE,ICT SOFTWARE,"5,397.20"
Lancs Fire & Rescue Service,E6123,Fire,105979530,29-Oct-19,Programmed Work,DLP SERVICES NORTHERN LTD,BUILDING MATS&SVCS GEN,490.08
Lancs Fire & Rescue Service,E6123,Fire,105979544,11-Oct-19,Fire - Op Equip Repairs,HOLMATRO UK LTD,VEHICLES PARTS,84
Lancs Fire & Rescue Service,E6123,Fire,105979544,11-Oct-19,Fire - Op Equip Repairs,HOLMATRO UK LTD,VEHICLES PARTS,17.5
Lancs Fire & Rescue Service,E6123,Fire,105979544,11-Oct-19,Fire - Op Equip Repairs,HOLMATRO UK LTD,VEHICLES PARTS,693
Lancs Fire & Rescue Service,E6123,Fire,105979545,11-Oct-19,Fire - Op Equip Repairs,HOLMATRO UK LTD,VEHICLES PARTS,17.5
Lancs Fire & Rescue Service,E6123,Fire,105979545,11-Oct-19,Fire - Op Equip Repairs,HOLMATRO UK LTD,VEHICLES PARTS,663
Lancs Fire & Rescue Service,E6123,Fire,105979545,11-Oct-19,Fire - Op Equip Repairs,HOLMATRO UK LTD,VEHICLES PARTS,"2,058.00"
Lancs Fire & Rescue Service,E6123,Fire,105979545,11-Oct-19,Fire - Op Equip Repairs,HOLMATRO UK LTD,VEHICLES PARTS,60
Lancs Fire & Rescue Service,E6123,Fire,105979549,11-Oct-19,Agency Staff,OFFICE ANGELS LIMITED,HR TEMPOARY&AGENCY STAFF,631.94
Lancs Fire & Rescue Service,E6123,Fire,105979552,11-Oct-19,Agency Staff,OFFICE ANGELS LIMITED,HR TEMPOARY&AGENCY STAFF,552.95
Lancs Fire & Rescue Service,E6123,Fire,105979554,11-Oct-19,Agency Staff,OFFICE ANGELS LIMITED,HR TEMPOARY&AGENCY STAFF,623.63
Lancs Fire & Rescue Service,E6123,Fire,105979556,11-Oct-19,Equipment General,PRO HEALTH DIAGNOSTICS LTD,ICT SOFTWARE,"3,500.00"
Lancs Fire & Rescue Service,E6123,Fire,105979556,11-Oct-19,Equipment General,PRO HEALTH DIAGNOSTICS LTD,ICT SOFTWARE,500
Lancs Fire & Rescue Service,E6123,Fire,105979559,11-Oct-19,Course Providers,FIRE SERVICE COLLEGE,TRAINING,"5,200.00"
Lancs Fire & Rescue Service,E6123,Fire,105979559,11-Oct-19,Course Providers,FIRE SERVICE COLLEGE,TRAINING,320
Lancs Fire & Rescue Service,E6123,Fire,105979560,11-Oct-19,Professional Services,ACTUALISE COACHING AND TRAINING LTD,CONSULTANCY MANAGEMENT,295
Lancs Fire & Rescue Service,E6123,Fire,105979560,11-Oct-19,Professional Services,ACTUALISE COACHING AND TRAINING LTD,CONSULTANCY MANAGEMENT,295
Lancs Fire & Rescue Service,E6123,Fire,105979560,11-Oct-19,Professional Services,ACTUALISE COACHING AND TRAINING LTD,CONSULTANCY MANAGEMENT,272.5
Lancs Fire & Rescue Service,E6123,Fire,105979560,11-Oct-19,Professional Services,ACTUALISE COACHING AND TRAINING LTD,CONSULTANCY MANAGEMENT,308.5
Lancs Fire & Rescue Service,E6123,Fire,105979561,15-Oct-19,Course Providers,ACTUALISE COACHING AND TRAINING LTD,CONSULTANCY MANAGEMENT,45
Lancs Fire & Rescue Service,E6123,Fire,105979561,15-Oct-19,Course Providers,ACTUALISE COACHING AND TRAINING LTD,CONSULTANCY MANAGEMENT,195
Lancs Fire & Rescue Service,E6123,Fire,105979561,15-Oct-19,Course Providers,ACTUALISE COACHING AND TRAINING LTD,CONSULTANCY MANAGEMENT,355
Lancs Fire & Rescue Service,E6123,Fire,105979561,15-Oct-19,Course Providers,ACTUALISE COACHING AND TRAINING LTD,CONSULTANCY MANAGEMENT,-45
Lancs Fire & Rescue Service,E6123,Fire,105979561,15-Oct-19,Course Providers,ACTUALISE COACHING AND TRAINING LTD,CONSULTANCY MANAGEMENT,45
Lancs Fire & Rescue Service,E6123,Fire,105979561,15-Oct-19,Course Providers,ACTUALISE COACHING AND TRAINING LTD,CONSULTANCY MANAGEMENT,-550
Lancs Fire & Rescue Service,E6123,Fire,105979561,15-Oct-19,Course Providers,ACTUALISE COACHING AND TRAINING LTD,CONSULTANCY MANAGEMENT,550
Lancs Fire & Rescue Service,E6123,Fire,105979561,15-Oct-19,Course Providers,ACTUALISE COACHING AND TRAINING LTD,CONSULTANCY MANAGEMENT,-240
Lancs Fire & Rescue Service,E6123,Fire,105979561,15-Oct-19,Course Providers,ACTUALISE COACHING AND TRAINING LTD,CONSULTANCY MANAGEMENT,240
Lancs Fire & Rescue Service,E6123,Fire,105979561,15-Oct-19,Course Providers,ACTUALISE COACHING AND TRAINING LTD,CONSULTANCY MANAGEMENT,-355
Lancs Fire & Rescue Service,E6123,Fire,105979561,15-Oct-19,Course Providers,ACTUALISE COACHING AND TRAINING LTD,CONSULTANCY MANAGEMENT,355
Lancs Fire & Rescue Service,E6123,Fire,105979561,15-Oct-19,Course Providers,ACTUALISE COACHING AND TRAINING LTD,CONSULTANCY MANAGEMENT,-355
Lancs Fire & Rescue Service,E6123,Fire,105979561,15-Oct-19,Course Providers,ACTUALISE COACHING AND TRAINING LTD,CONSULTANCY MANAGEMENT,355
Lancs Fire & Rescue Service,E6123,Fire,105979561,15-Oct-19,Professional Services,ACTUALISE COACHING AND TRAINING LTD,CONSULTANCY MANAGEMENT,50
Lancs Fire & Rescue Service,E6123,Fire,105979561,15-Oct-19,Professional Services,ACTUALISE COACHING AND TRAINING LTD,CONSULTANCY MANAGEMENT,200
Lancs Fire & Rescue Service,E6123,Fire,105979561,15-Oct-19,Professional Services,ACTUALISE COACHING AND TRAINING LTD,CONSULTANCY MANAGEMENT,45
Lancs Fire & Rescue Service,E6123,Fire,105979561,15-Oct-19,Professional Services,ACTUALISE COACHING AND TRAINING LTD,CONSULTANCY MANAGEMENT,50
Lancs Fire & Rescue Service,E6123,Fire,105979561,15-Oct-19,Professional Services,ACTUALISE COACHING AND TRAINING LTD,CONSULTANCY MANAGEMENT,-50
Lancs Fire & Rescue Service,E6123,Fire,105979562,11-Oct-19,Course Providers,LYON EQUIPMENT LTD,CLOTHING PROTECTIVE,620
Lancs Fire & Rescue Service,E6123,Fire,105979563,11-Oct-19,Course Providers,A HELM TRAINING SERVICES,EDUCATION SERVICES,650
Lancs Fire & Rescue Service,E6123,Fire,105981727,08-Oct-19,Programmed Work,PEERLESS FENCING LTD,BUILDING MATS&SVCS FENC,"4,980.80"
Lancs Fire & Rescue Service,E6123,Fire,105981730,08-Oct-19,Repairs & Maintenance General,BID GROUP LTD,BUILDING MATS&SVCS GEN,"1,837.00"
Lancs Fire & Rescue Service,E6123,Fire,105981784,08-Oct-19,Programmed Work,WEST LANCASHIRE ELECTRICAL CONTRACTORS LTD,BUILDING MATS&SVCS ELEC,"1,239.00"
Lancs Fire & Rescue Service,E6123,Fire,105981785,08-Oct-19,Programmed Work,WEST LANCASHIRE ELECTRICAL CONTRACTORS LTD,BUILDING MATS&SVCS ELEC,"1,078.50"
Lancs Fire & Rescue Service,E6123,Fire,105981846,08-Oct-19,Course Providers,NATIONAL BREATHING APPARATUS CHALLENGE,UNCLASSIFIED NON TRADE,"1,550.00"
Lancs Fire & Rescue Service,E6123,Fire,105981847,29-Oct-19,Medical Fees,ORGANISATIONAL HEALTHCARE LTD,HEALTH&SAFETY SERVICES,"4,200.00"
Lancs Fire & Rescue Service,E6123,Fire,105981852,08-Oct-19,Professional Services,SURVEY OPERATIONS LIMITED,CONSULTANCY BUSINESS,550
Lancs Fire & Rescue Service,E6123,Fire,105981853,08-Oct-19,Repairs & Maintenance General,HARDACRES PLUMBERS (NW) LTD,WORKS BUILDINGS,994.97
Lancs Fire & Rescue Service,E6123,Fire,105981856,08-Oct-19,Service Contracts,BID GROUP LTD,BUILDING MATS&SVCS GEN,"1,800.00"
Lancs Fire & Rescue Service,E6123,Fire,105981860,08-Oct-19,Agency Staff,PAGEGROUP PLC,HR RECRUITMENT&ASSESSMENT,875
Lancs Fire & Rescue Service,E6123,Fire,105981861,08-Oct-19,Agency Staff,PAGEGROUP PLC,HR RECRUITMENT&ASSESSMENT,875
Lancs Fire & Rescue Service,E6123,Fire,105981862,08-Oct-19,Protective Clothing,KEITH WILCOCK TAILORS,CLOTHING UNIFORMS,785
Lancs Fire & Rescue Service,E6123,Fire,105981865,08-Oct-19,PT Residential Training Courses,J & E MASONS T/A MERE MOUNTAINS,EDUCATION SERVICES,"3,320.00"
Lancs Fire & Rescue Service,E6123,Fire,105981866,08-Oct-19,PT Residential Training Courses,J & E MASONS T/A MERE MOUNTAINS,EDUCATION SERVICES,"3,320.00"
Lancs Fire & Rescue Service,E6123,Fire,105981867,08-Oct-19,PT Residential Training Courses,J & E MASONS T/A MERE MOUNTAINS,EDUCATION SERVICES,"3,320.00"
Lancs Fire & Rescue Service,E6123,Fire,105981868,08-Oct-19,PT Residential Training Courses,J & E MASONS T/A MERE MOUNTAINS,EDUCATION SERVICES,"3,320.00"
Lancs Fire & Rescue Service,E6123,Fire,105981870,08-Oct-19,Agency Staff,PAGEGROUP PLC,HR RECRUITMENT&ASSESSMENT,700
Lancs Fire & Rescue Service,E6123,Fire,105981976,04-Oct-19,Subscriptions,THE CIVIL AVIATION AUTHORITY,UNCLASSIFIED TRADE,"2,652.00"
Lancs Fire & Rescue Service,E6123,Fire,105982100,04-Oct-19,Fire - Training Props,KFT FIRE TRAINER GMBH,FRS SPECIALIST EQUIPMENT,15
Lancs Fire & Rescue Service,E6123,Fire,105982100,04-Oct-19,Fire - Training Props,KFT FIRE TRAINER GMBH,FRS SPECIALIST EQUIPMENT,"1,429.31"
Lancs Fire & Rescue Service,E6123,Fire,105983669,08-Oct-19,Stocks And Stores - General,APEX SIGNS & GRAPHICS LTD,HEALTH&SAFETY PRODUCTS,492
Lancs Fire & Rescue Service,E6123,Fire,105983670,08-Oct-19,Stocks And Stores - General,FIREANGEL SAFETY TECHNOLOGY LTD,HEALTH&SAFETY PRODUCTS,"13,600.00"
Lancs Fire & Rescue Service,E6123,Fire,105983673,08-Oct-19,Stocks And Stores - General,THOMAS KNEALE & CO LIMITED,CATERING EQPMT&UTENSILS,894.68
Lancs Fire & Rescue Service,E6123,Fire,105983676,08-Oct-19,Postage & Carriage,WRAY BROS LIMITED,CLEANING&JANITORIAL SVCS,1
Lancs Fire & Rescue Service,E6123,Fire,105983676,08-Oct-19,Stocks And Stores - General,WRAY BROS LIMITED,CLEANING&JANITORIAL SVCS,955.23
Lancs Fire & Rescue Service,E6123,Fire,105983679,08-Oct-19,Stocks And Stores - General,ALSICO LAUCUBA LTD,CLOTHING PERSONAL,426.25
Lancs Fire & Rescue Service,E6123,Fire,105983680,08-Oct-19,Stocks And Stores - General,SLINGERS 1858 LTD,BUILDING MATS&SVCS GEN,844
Lancs Fire & Rescue Service,E6123,Fire,105983685,08-Oct-19,Stocks And Stores - General,WM SUGDEN & SONS LTD,CLOTHING PERSONAL,479.76
Lancs Fire & Rescue Service,E6123,Fire,105983686,08-Oct-19,Stocks And Stores - General,DAVID NICHOLSON.,BUILDING MATS&SVCS TIMBER,675
Lancs Fire & Rescue Service,E6123,Fire,105990364,11-Oct-19,Pension Strain,IMPROVEMENT & DEVELOPMENT AGENCY,LOCAL GOVERNMENT,"7,130.23"
Lancs Fire & Rescue Service,E6123,Fire,105990618,11-Oct-19,Road Fund Licences,FORD RETAIL LTD T/A TRUST FORD,VEHICLES COMMERCIAL,260
Lancs Fire & Rescue Service,E6123,Fire,105990618,11-Oct-19,Vehicle Purchase,FORD RETAIL LTD T/A TRUST FORD,VEHICLES COMMERCIAL,"11,000.00"
Lancs Fire & Rescue Service,E6123,Fire,105992099,15-Oct-19,Programmed Work,FOX TAIL LTD,BUILDING MATS&SVCS FLOOR,"1,124.00"
Lancs Fire & Rescue Service,E6123,Fire,105992110,01-Nov-19,Programmed Work,FUTURE TECHNOLOGY SERVICES LTD,BUILDING MATS&SVCS ELEC,"1,030.00"
Lancs Fire & Rescue Service,E6123,Fire,105992111,01-Nov-19,Programmed Work,FUTURE TECHNOLOGY SERVICES LTD,BUILDING MATS&SVCS ELEC,753
Lancs Fire & Rescue Service,E6123,Fire,105992121,15-Oct-19,Fire - counselling fees,REDACTED,MEDICAL SERVICES,515
Lancs Fire & Rescue Service,E6123,Fire,105992127,15-Oct-19,Professional Services,PHASE 3 CONSULTING,CONSULTANCY BUSINESS,"1,875.60"
Lancs Fire & Rescue Service,E6123,Fire,105992666,15-Oct-19,Vehicle & Plant Insurance Below Excess,COMMERCIAL CONTRACT ENGINEERS LTD,VEHICLES MAINTENANCE,"3,890.13"
Lancs Fire & Rescue Service,E6123,Fire,105992667,29-Oct-19,Tyres,GOODYEAR DUNLOP TYRES UK LTD,VEHICLES MAINTENANCE,456.9
Lancs Fire & Rescue Service,E6123,Fire,105992668,29-Oct-19,Tyres,GOODYEAR DUNLOP TYRES UK LTD,VEHICLES MAINTENANCE,"3,865.66"
Lancs Fire & Rescue Service,E6123,Fire,105992669,15-Oct-19,Other Expenses,THE BRITISH COMMERCIAL VEHICLE MUSEUM,FRS SPECIALIST VEHICLES,493.5
Lancs Fire & Rescue Service,E6123,Fire,105992670,15-Oct-19,Vehicle & Plant R&M (External),OTRA LTD,VEHICLES MAINTENANCE,550
Lancs Fire & Rescue Service,E6123,Fire,105992674,15-Oct-19,Vehicle & Plant R&M (External),EMERGENCY ONE UK LTD,TRANSPORT REPAIR,642.4
Lancs Fire & Rescue Service,E6123,Fire,105992675,15-Oct-19,Vehicle & Plant R&M (External),ROSENBAUER UK LTD,FRS SPECIALIST VEHICLES,"1,890.96"
Lancs Fire & Rescue Service,E6123,Fire,105992676,15-Oct-19,Vehicle & Plant R&M (External),ROSENBAUER UK LTD,FRS SPECIALIST VEHICLES,"3,334.11"
Lancs Fire & Rescue Service,E6123,Fire,105992677,15-Oct-19,Diesel,STANDARD FUEL OILS LTD,UTILITIES HEATING OIL,"2,606.25"
Lancs Fire & Rescue Service,E6123,Fire,105992679,15-Oct-19,Vehicle Purchase,JAMES HART (CHORLEY) LTD,TRANSPORT MAINTENANCE,869.9
Lancs Fire & Rescue Service,E6123,Fire,105992763,01-Nov-19,Fire Mobs Network Maint,TELENT TECHNOLOGY SERVICES LTD,TRAFFIC MGMT TRAFFICCTRL,"2,349.00"
Lancs Fire & Rescue Service,E6123,Fire,105992763,01-Nov-19,Fire Mobs Network Maint,TELENT TECHNOLOGY SERVICES LTD,TRAFFIC MGMT TRAFFICCTRL,"7,149.75"
Lancs Fire & Rescue Service,E6123,Fire,105992767,29-Oct-19,Computer Software,SOFTCAT LTD,ICT CALL SYSTEMS,"5,300.00"
Lancs Fire & Rescue Service,E6123,Fire,105992772,29-Oct-19,Photocopying,XEROX (UK) LTD,FACIL&MGMT PRINTING,"14,188.47"
Lancs Fire & Rescue Service,E6123,Fire,105992772,29-Oct-19,Photocopying,XEROX (UK) LTD,FACIL&MGMT PRINTING,"4,651.43"
Lancs Fire & Rescue Service,E6123,Fire,105992773,01-Nov-19,Agency Staff,PARASOL LTD,FINANCIAL ACCOUNTANCY,435
Lancs Fire & Rescue Service,E6123,Fire,105992782,15-Oct-19,Course Providers,MANAGEMENT ASSOCIATES LTD,TRAINING,650
Lancs Fire & Rescue Service,E6123,Fire,105992784,15-Oct-19,Course Providers,MANAGEMENT ASSOCIATES LTD,TRAINING,650
Lancs Fire & Rescue Service,E6123,Fire,105992818,29-Oct-19,Catering Service (External),BRAKE BROS LTD,CATERING FOOD&BEVERAGE,587.09
Lancs Fire & Rescue Service,E6123,Fire,105992826,25-Oct-19,Course Providers,CARDIFF COUNCIL,TRAINING,700
Lancs Fire & Rescue Service,E6123,Fire,105992831,01-Nov-19,Fire - Operational Equipment,MARTEK DRONES LTD T/A COPTRZ,FRS SPECIALIST SERVICES,"3,300.00"
Lancs Fire & Rescue Service,E6123,Fire,105992836,15-Oct-19,Course Providers,ILM,TRAINING,833
Lancs Fire & Rescue Service,E6123,Fire,105992836,15-Oct-19,Course Providers,ILM,TRAINING,833
Lancs Fire & Rescue Service,E6123,Fire,105992845,22-Oct-19,Catering Service (External),BRAKE BROS LTD,CATERING FOOD&BEVERAGE,622.93
Lancs Fire & Rescue Service,E6123,Fire,105995906,15-Oct-19,Pensions Services SLA,LANCASHIRE COUNTY COUNCIL,LOCAL GOVERNMENT,"21,802.00"
Lancs Fire & Rescue Service,E6123,Fire,105995912,15-Oct-19,Accounts Payable SLA,LANCASHIRE COUNTY COUNCIL,LOCAL GOVERNMENT,"6,455.48"
Lancs Fire & Rescue Service,E6123,Fire,105995912,15-Oct-19,Financial Services SLA,LANCASHIRE COUNTY COUNCIL,LOCAL GOVERNMENT,"10,415.00"
Lancs Fire & Rescue Service,E6123,Fire,105995912,15-Oct-19,Financial Services SLA,LANCASHIRE COUNTY COUNCIL,LOCAL GOVERNMENT,"2,731.00"
Lancs Fire & Rescue Service,E6123,Fire,105995912,15-Oct-19,Treasurers Services SLA,LANCASHIRE COUNTY COUNCIL,LOCAL GOVERNMENT,"1,759.50"
Lancs Fire & Rescue Service,E6123,Fire,105995912,15-Oct-19,Treasurers Services SLA,LANCASHIRE COUNTY COUNCIL,LOCAL GOVERNMENT,"1,861.50"
Lancs Fire & Rescue Service,E6123,Fire,105995912,15-Oct-19,Treasurers Services SLA,LANCASHIRE COUNTY COUNCIL,LOCAL GOVERNMENT,918
Lancs Fire & Rescue Service,E6123,Fire,105995912,15-Oct-19,Treasurers Services SLA,LANCASHIRE COUNTY COUNCIL,LOCAL GOVERNMENT,535.5
Lancs Fire & Rescue Service,E6123,Fire,105995912,15-Oct-19,Treasurers Services SLA,LANCASHIRE COUNTY COUNCIL,LOCAL GOVERNMENT,"1,326.00"
Lancs Fire & Rescue Service,E6123,Fire,105995912,15-Oct-19,Treasurers Services SLA,LANCASHIRE COUNTY COUNCIL,LOCAL GOVERNMENT,612
Lancs Fire & Rescue Service,E6123,Fire,105999196,15-Oct-19,Rents - Premises,WATER PLUS LTD,UTILITIES WATER,"1,427.61"
Lancs Fire & Rescue Service,E6123,Fire,105999292,10-Oct-19,PFI - Capital Charge,MERSEYSIDE FIRE & RESCUE AUTHORITY,LOCAL GOVERNMENT,"152,856.69"
Lancs Fire & Rescue Service,E6123,Fire,105999318,15-Oct-19,Programmed Work,WEST LANCASHIRE ELECTRICAL CONTRACTORS LTD,BUILDING MATS&SVCS ELEC,"1,062.00"
Lancs Fire & Rescue Service,E6123,Fire,105999321,29-Oct-19,Works Fees (External),BRADSHAW GASS & HOPE LLP,CONSULTANCY CONSTRUCTION,"3,077.50"
Lancs Fire & Rescue Service,E6123,Fire,105999331,15-Oct-19,Repairs & Maintenance General,FUTURE TECHNOLOGY SERVICES LTD,BUILDING MATS&SVCS ELEC,424
Lancs Fire & Rescue Service,E6123,Fire,105999354,29-Oct-19,Diesel,ALLSTAR BUSINESS SOLUTIONS LTD,VEHICLES FUEL,"17,472.46"
Lancs Fire & Rescue Service,E6123,Fire,105999354,29-Oct-19,Petrol,ALLSTAR BUSINESS SOLUTIONS LTD,VEHICLES FUEL,994.01
Lancs Fire & Rescue Service,E6123,Fire,105999359,15-Oct-19,Professional Services,IKG CONSULTING LIMITED,CONSULTANCY BUSINESS,"1,720.00"
Lancs Fire & Rescue Service,E6123,Fire,105999361,29-Oct-19,Course Providers,TRAINING & COACHING FOR EXCELLENCE LTD,TRAINING,550
Lancs Fire & Rescue Service,E6123,Fire,105999361,29-Oct-19,Course Providers,TRAINING & COACHING FOR EXCELLENCE LTD,TRAINING,150
Lancs Fire & Rescue Service,E6123,Fire,105999361,29-Oct-19,Course Providers,TRAINING & COACHING FOR EXCELLENCE LTD,TRAINING,"1,100.00"
Lancs Fire & Rescue Service,E6123,Fire,105999361,29-Oct-19,Course Providers,TRAINING & COACHING FOR EXCELLENCE LTD,TRAINING,"-1,100.00"
Lancs Fire & Rescue Service,E6123,Fire,105999361,29-Oct-19,Course Providers,TRAINING & COACHING FOR EXCELLENCE LTD,TRAINING,48
Lancs Fire & Rescue Service,E6123,Fire,105999361,29-Oct-19,Course Providers,TRAINING & COACHING FOR EXCELLENCE LTD,TRAINING,108
Lancs Fire & Rescue Service,E6123,Fire,105999361,29-Oct-19,Course Providers,TRAINING & COACHING FOR EXCELLENCE LTD,TRAINING,550
Lancs Fire & Rescue Service,E6123,Fire,105999394,29-Oct-19,Service Contracts,KNOWSLEY BUILDING & ENVIRONMENTAL SERVICES LTD,ENVIRON MONITORING,"3,117.00"
Lancs Fire & Rescue Service,E6123,Fire,105999406,29-Oct-19,Service Contracts,KNOWSLEY BUILDING & ENVIRONMENTAL SERVICES LTD,ENVIRON MONITORING,"2,640.00"
Lancs Fire & Rescue Service,E6123,Fire,105999409,29-Oct-19,Service Contracts,KNOWSLEY BUILDING & ENVIRONMENTAL SERVICES LTD,ENVIRON MONITORING,"2,529.00"
Lancs Fire & Rescue Service,E6123,Fire,105999414,29-Oct-19,Service Contracts,KNOWSLEY BUILDING & ENVIRONMENTAL SERVICES LTD,ENVIRON MONITORING,"1,542.00"
Lancs Fire & Rescue Service,E6123,Fire,105999416,29-Oct-19,Service Contracts,KNOWSLEY BUILDING & ENVIRONMENTAL SERVICES LTD,ENVIRON MONITORING,"3,333.00"
Lancs Fire & Rescue Service,E6123,Fire,105999420,29-Oct-19,Service Contracts,KNOWSLEY BUILDING & ENVIRONMENTAL SERVICES LTD,ENVIRON MONITORING,"1,425.00"
Lancs Fire & Rescue Service,E6123,Fire,105999423,29-Oct-19,Service Contracts,KNOWSLEY BUILDING & ENVIRONMENTAL SERVICES LTD,ENVIRON MONITORING,984
Lancs Fire & Rescue Service,E6123,Fire,105999425,29-Oct-19,Service Contracts,KNOWSLEY BUILDING & ENVIRONMENTAL SERVICES LTD,ENVIRON MONITORING,"4,097.00"
Lancs Fire & Rescue Service,E6123,Fire,105999429,15-Oct-19,Equipment General,WATTBIKE LTD,DOMESTIC GDS:COMMERCIAL,58.33
Lancs Fire & Rescue Service,E6123,Fire,105999429,15-Oct-19,Equipment General,WATTBIKE LTD,DOMESTIC GDS:COMMERCIAL,4.58
Lancs Fire & Rescue Service,E6123,Fire,105999429,15-Oct-19,Equipment General,WATTBIKE LTD,DOMESTIC GDS:COMMERCIAL,58.33
Lancs Fire & Rescue Service,E6123,Fire,105999429,15-Oct-19,Equipment General,WATTBIKE LTD,DOMESTIC GDS:COMMERCIAL,395.83
Lancs Fire & Rescue Service,E6123,Fire,105999459,18-Oct-19,Other Expenses,NORTH WEST FIRE CONTROL LIMITED,PUBLIC SECTOR,"297,720.75"
Lancs Fire & Rescue Service,E6123,Fire,105999464,18-Oct-19,Fire - Operational Equipment,JOHN TEIRE AND CO LTD,HEALTH&SAFETY PRODUCTS,130
Lancs Fire & Rescue Service,E6123,Fire,105999464,18-Oct-19,Fire - Operational Equipment,JOHN TEIRE AND CO LTD,HEALTH&SAFETY PRODUCTS,435
Lancs Fire & Rescue Service,E6123,Fire,105999464,18-Oct-19,Fire - Operational Equipment,JOHN TEIRE AND CO LTD,HEALTH&SAFETY PRODUCTS,45
Lancs Fire & Rescue Service,E6123,Fire,105999464,18-Oct-19,Fire - Operational Equipment,JOHN TEIRE AND CO LTD,HEALTH&SAFETY PRODUCTS,780
Lancs Fire & Rescue Service,E6123,Fire,105999468,19-Nov-19,Conference Expenses,CFOA NATIONAL RESILIENCE LTD,CONSULTANCY MANAGEMENT,450
Lancs Fire & Rescue Service,E6123,Fire,105999486,15-Oct-19,Professional Services,CAROL HAYTHORNTHWAITE,EDUCATION SERVICES,"1,120.00"
Lancs Fire & Rescue Service,E6123,Fire,105999493,15-Oct-19,Clothing & Uniform,KEELA INTERNATIONAL LTD,CLOTHING PERSONAL,551.7
Lancs Fire & Rescue Service,E6123,Fire,105999511,15-Oct-19,Fire Safety - Publicity & Promotion,KLEER PRINT,FACIL&MGMT REPROGRAPHICS,20
Lancs Fire & Rescue Service,E6123,Fire,105999511,15-Oct-19,Fire Safety - Publicity & Promotion,KLEER PRINT,FACIL&MGMT REPROGRAPHICS,300
Lancs Fire & Rescue Service,E6123,Fire,105999511,15-Oct-19,Fire Safety - Publicity & Promotion,KLEER PRINT,FACIL&MGMT REPROGRAPHICS,150
Lancs Fire & Rescue Service,E6123,Fire,105999520,15-Oct-19,Fire Safety - Publicity & Promotion,KLEER PRINT,FACIL&MGMT REPROGRAPHICS,"3,600.00"
Lancs Fire & Rescue Service,E6123,Fire,105999524,15-Oct-19,Fire Safety - Publicity & Promotion,KLEER PRINT,FACIL&MGMT REPROGRAPHICS,400
Lancs Fire & Rescue Service,E6123,Fire,105999524,15-Oct-19,Fire Safety - Publicity & Promotion,KLEER PRINT,FACIL&MGMT REPROGRAPHICS,20
Lancs Fire & Rescue Service,E6123,Fire,105999532,29-Oct-19,Waste Collection Charges,SUEZ RECYCLING & RECOVERY UK LTD,ENVIRON WASTE MGMT,"2,125.22"
Lancs Fire & Rescue Service,E6123,Fire,105999540,15-Oct-19,Professional Services,ST FILLANS MEDICAL CENTRE,MEDICAL SERVICES,"1,177.05"
Lancs Fire & Rescue Service,E6123,Fire,105999614,15-Oct-19,Works Fees (External),EQUILIBRIUM ARCHITECTS LTD,CONSULTANCY CONSTRUCTION,667.5
Lancs Fire & Rescue Service,E6123,Fire,106003676,18-Oct-19,Vehicle Purchase,JAMES ALPE LTD,VEHICLES PARTS,"8,194.00"
Lancs Fire & Rescue Service,E6123,Fire,106003678,18-Oct-19,Vehicle Purchase,JAMES ALPE LTD,VEHICLES PARTS,"9,015.00"
Lancs Fire & Rescue Service,E6123,Fire,106003706,25-Oct-19,Stocks And Stores - General,WM SUGDEN & SONS LTD,CLOTHING PERSONAL,600.49
Lancs Fire & Rescue Service,E6123,Fire,106003708,25-Oct-19,Stocks And Stores - General,WM SUGDEN & SONS LTD,CLOTHING PERSONAL,-652.57
Lancs Fire & Rescue Service,E6123,Fire,106006014,22-Oct-19,Vehicle Purchase,ULSTER SUPPORTED EMPLOYMENT LTD,HEALTH&SAFETY PRODUCTS,885
Lancs Fire & Rescue Service,E6123,Fire,106006219,18-Oct-19,PFI - Capital Charge,PFF LANCASHIRE LTD,FACIL&MGMT RETAIL,"59,482.57"
Lancs Fire & Rescue Service,E6123,Fire,106006462,21-Oct-19,Compensation - Loss Of Office,REDACTED,NOT CLASSIFIED,500
Lancs Fire & Rescue Service,E6123,Fire,106007604,18-Oct-19,Equipment General,SALISBURYS LTD,FRS SPECIALIST SERVICES,566.99
Lancs Fire & Rescue Service,E6123,Fire,106014664,22-Oct-19,Stocks And Stores - General,COMPASS FUEL OILS LTD,VEHICLES MAINTENANCE,450
Lancs Fire & Rescue Service,E6123,Fire,106014666,22-Oct-19,Stocks And Stores - General,FIREANGEL SAFETY TECHNOLOGY LTD,HEALTH&SAFETY PRODUCTS,600
Lancs Fire & Rescue Service,E6123,Fire,106014668,22-Oct-19,Stocks And Stores - General,FIREANGEL SAFETY TECHNOLOGY LTD,HEALTH&SAFETY PRODUCTS,796
Lancs Fire & Rescue Service,E6123,Fire,106014670,22-Oct-19,Stocks And Stores - General,KEELA INTERNATIONAL LTD,CLOTHING PERSONAL,"1,118.70"
Lancs Fire & Rescue Service,E6123,Fire,106014671,22-Oct-19,Stocks And Stores - General,BENNETT SAFETYWARE LTD,CLOTHING PERSONAL,"1,092.50"
Lancs Fire & Rescue Service,E6123,Fire,106014672,22-Oct-19,Stocks And Stores - General,GOLIATH FOOTWEAR LTD,CLOTHING SAFETYFOOTWARE,"1,556.32"
Lancs Fire & Rescue Service,E6123,Fire,106014677,22-Oct-19,Stocks And Stores - General,GIFFARD NEWTON & SONS LTD,CLOTHING SAFETYFOOTWARE,"1,017.00"
Lancs Fire & Rescue Service,E6123,Fire,106014679,22-Oct-19,Postage & Carriage,WRAY BROS LIMITED,CLEANING&JANITORIAL SVCS,2
Lancs Fire & Rescue Service,E6123,Fire,106014679,22-Oct-19,Stocks And Stores - General,WRAY BROS LIMITED,CLEANING&JANITORIAL SVCS,756.56
Lancs Fire & Rescue Service,E6123,Fire,106014683,22-Oct-19,Postage & Carriage,SUPPLY PLUS LTD,TRANSPORT FLEET MGMT,321.6
